Workbook

Sheet Table1A List of required stocks
A1: Table1A: List of required stocks
L2: WP years | M2: 2017-2019
L3: AR year | M3: 2017
A4: MS | B4: Reference years | C4: Species | D4: Region | E4: RFMO/RFO/IO | F4: Area / Stock | G4: Selected for sampling (Y/N) | H4: Average landings in the reference years (tons) | I4: EU TAC (if any) (%) | J4: Share (%) in EU landings | K4: Threshold (Y/N) | L4: Comments | M4: Changes in species landings
A5: POL | B5: 2013-2015 | C5: Anguilla anguilla | D5: Baltic Sea | E5: ICES | F5: 22-32 | G5: Y | H5: <200 | J5: 8 | K5: N | L5: Shares in EU landings (column J) are based on the EU landings most recently uploaded by MS to the Regional Data Base (FishFrame) hosted by the ICES, which proved to be most reliable data source. Other available potential data source (e.g. FIDES, EUROSTAT) proved to be not reliable at the level of resolution required (stocks and/or areas).
A6: POL | B6: 2013-2015 | C6: Clupea harengus | D6: Baltic Sea | E6: ICES | F6: 22-24 | G6: Y | H6: 2720 | I6: 13 | K6: N | M6: 0.2433816176
A7: POL | B7: 2013-2015 | C7: Clupea harengus | D7: Baltic Sea | E7: ICES | F7: 25-29 | G7: Y | H7: 27250 | I7: 25 | K7: N | M7: 0.4785025207
A8: POL | B8: 2013-2015 | C8: Coregonus lavaretus | D8: Baltic Sea | E8: ICES | F8: IIId | G8: N | H8: <200 | J8: 3 | K8: Y
A9: POL | B9: 2013-2015 | C9: Coregonus albula | D9: Baltic Sea | E9: ICES | F9: 22-32 | G9: N | H9: None | J9: None | K9: Y
A10: POL | B10: 2013-2015 | C10: Gadus morhua | D10: Baltic Sea | E10: ICES | F10: 22-24 | G10: Y | H10: 780 | I10: 12 | K10: N | M10: 0.214768859
A11: POL | B11: 2013-2015 | C11: Gadus morhua | D11: Baltic Sea | E11: ICES | F11: 25-32 | G11: Y | H11: 11950 | I11: 26 | K11: N | M11: -0.4565035992
A12: POL | B12: 2013-2015 | C12: Limanda limanda | D12: Baltic Sea | E12: ICES | F12: 22-32 | G12: N | H12: None | J12: None | K12: Y
A13: POL | B13: 2013-2015 | C13: Perca fluviatilis | D13: Baltic Sea | E13: ICES | F13: IIId | G13: Y | H13: 990 | J13: 26 | K13: N | M13: -0.06834469697
A14: POL | B14: 2013-2015 | C14: Platichthys flesus | D14: Baltic Sea | E14: ICES | F14: 22-32 | G14: Y | H14: 11250 | J14: 60 | K14: N | M14: 0
A15: POL | B15: 2013-2015 | C15: Pleuronectes platessa | D15: Baltic Sea | E15: ICES | F15: 22-32 | G15: Y | H15: <200 | I15: 15 | K15: N
A16: POL | B16: 2013-2015 | C16: Psetta maxima | D16: Baltic Sea | E16: ICES | F16: 22-32 | G16: Y | H16: <200 | J16: 20 | K16: N
A17: POL | B17: 2013-2015 | C17: Salmo salar | D17: Baltic Sea | E17: ICES | F17: 22-31 | G17: Y | H17: <200 | I17: 6 | K17: N
A18: POL | B18: 2013-2015 | C18: Salmo trutta | D18: Baltic Sea | E18: ICES | F18: 22-32 | G18: Y | H18: <200 | J18: 54 | K18: N
A19: POL | B19: 2013-2015 | C19: Sander lucioperca | D19: Baltic Sea | E19: ICES | F19: IIId | G19: Y | H19: 320 | J19: 29 | K19: N | M19: -0.461557625
A20: POL | B20: 2013-2015 | C20: Scophthalmus rhombus | D20: Baltic Sea | E20: ICES | F20: 22-32 | G20: N | H20: None | J20: None | K20: Y
A21: POL | B21: 2013-2015 | C21: Sprattus sprattus | D21: Baltic Sea | E21: ICES | F21: 22-32 | G21: Y | H21: 67600 | I21: 29 | K21: N | M21: 0.03508494083
A22: POL | B22: 2013-2015 | C22: Brosme brosme | D22: North Sea and Eastern Arctic | E22: ICES | F22: I, II | G22: N | H22: <200 | I22: None | J22: 2 | K22: Y
A23: POL | B23: 2013-2015 | C23: Clupea harengus | D23: North Sea and Eastern Arctic | E23: ICES | F23: I, II | G23: N | H23: None | I23: 1.7 | J23: None | K23: Y
A24: POL | B24: 2013-2015 | C24: Gadus morhua | D24: North Sea and Eastern Arctic | E24: ICES | F24: I, II | G24: Y | H24: 5100 | I24: 8.2 | J24: 14 | K24: N | M24: -0.3978979059
A25: POL | B25: 2013-2015 | C25: Melanogrammus aeglefinus | D25: North Sea and Eastern Arctic | E25: ICES | F25: I, II | G25: Y | H25: 280 | I25: None | J25: 15 | K25: N | M25: -0.1865925357
A26: POL | B26: 2013-2015 | C26: Micromesistius potassou | D26: North Sea and Eastern Arctic | E26: ICES | F26: I, II | G26: N | H26: None | I26: None | J26: None | K26: Y
A27: POL | B27: 2013-2015 | C27: Pollachius virens | D27: North Sea and Eastern Arctic | E27: ICES | F27: I, II | G27: Y | H27: 380 | I27: None | J27: 21 | K27: N | M27: 0.3267505263
A28: POL | B28: 2013-2015 | C28: Reinhardtius hippoglossoides | D28: North Sea and Eastern Arctic | E28: ICES | F28: I, II | G28: N | H28: <200 | I28: None | J28: 4 | K28: Y
A29: POL | B29: 2013-2015 | C29: Scomber scombrus | D29: North Sea and Eastern Arctic | E29: ICES | F29: II | G29: N | H29: None | I29: None | J29: None | K29: Y
A30: POL | B30: 2013-2015 | C30: Sebastes mentella | D30: North Sea and Eastern Arctic | E30: ICES | F30: I, II | G30: N | H30: <200 | I30: None | J30: 2 | K30: Y
A31: POL | B31: 2013-2015 | C31: Sebastes marinus | D31: North Sea and Eastern Arctic | E31: ICES | F31: I, II | G31: N | H31: <200 | I31: None | K31: Y | L31: Average landing 16 t (as a by-catch only). EU Landing data not available
A32: POL | B32: 2013-2015 | C32: Brachydeuterus auritus | D32: Other regions | E32: CECAF | F32: 34.3.1 | G32: N | H32: <200 | J32: N.A. | K32: Y | L32: No reliable data source on EU landings available at present (see comments above). Selection for sampling stemming from international obligations and based on the Multi-lateral agreement for biological data collection of pelagic fisheries in CECAF waters and on the Sampling Protocol - “Biological Data Collection of pelagic fisheries in CECAF waters in compliance with the DCF, version 28/04/2011”. ( http://dcf.mir.gdynia.pl/?page_id=367 )
A33: POL | B33: 2013-2015 | C33: Dentex spp. | D33: Other regions | E33: CECAF | F33: 34.3.1 | G33: N | H33: <200 | J33: N.A. | K33: Y
A34: POL | B34: 2013-2015 | C34: Engraulis encrasicolus | D34: Other regions | E34: CECAF | F34: 34.1.3 | G34: N | H34: <200 | J34: N.A. | K34: Y
A35: POL | B35: 2013-2015 | C35: Merluccius merluccius | D35: Other regions | E35: CECAF | F35: 34.1.3 | G35: N | H35: <200 | J35: N.A. | K35: Y
A36: POL | B36: 2013-2015 | C36: Merluccius merluccius | D36: Other regions | E36: CECAF | F36: 34.3.1 | G36: N | H36: <200 | J36: N.A. | K36: Y
A37: POL | B37: 2013-2015 | C37: Merluccius senegalensis | D37: Other regions | E37: CECAF | F37: 34.1.3 | G37: N | H37: None | J37: N.A. | K37: Y
A38: POL | B38: 2013-2015 | C38: Sardinella aurita | D38: Other regions | E38: CECAF | F38: 34.1.3 | G38: Y | H38: =8190/3 -> 2730 | J38: N.A. | K38: N | M38: -0.815978022
A39: POL | B39: 2013-2015 | C39: Sardinella aurita | D39: Other regions | E39: CECAF | F39: 34.3.1 | G39: Y | H39: 3500 | J39: N.A. | K39: N | M39: -0.97748
A40: POL | B40: 2013-2015 | C40: Sardina pilchardus | D40: Other regions | E40: CECAF | F40: 34.1.3 | G40: Y | H40: 690 | J40: N.A. | K40: N | M40: -0.356
A41: POL | B41: 2013-2015 | C41: Scomber spp. | D41: Other regions | E41: CECAF | F41: 34.1.3 | G41: Y | H41: =(9681+42)/3 -> 3241 | J41: N.A. | K41: N | M41: 0.600759025
A42: POL | B42: 2013-2015 | C42: Scomber spp. | D42: Other regions | E42: CECAF | F42: 34.3.1 | G42: Y | H42: 570 | J42: N.A. | K42: N | M42: 0.9758596491
A43: POL | B43: 2013-2015 | C43: Sparus spp. | D43: Other regions | E43: CECAF | F43: 34.1.3 | G43: N | H43: None | J43: N.A. | K43: Y
A44: POL | B44: 2013-2015 | C44: Trachurus trachurus | D44: Other regions | E44: CECAF | F44: 34.1.3 | G44: Y | H44: 11230 | J44: N.A. | K44: N | M44: -0.5254069457
A45: POL | B45: 2013-2015 | C45: Trachurus trachurus | D45: Other regions | E45: CECAF | F45: 34.3.1 | G45: Y | H45: =10140/3 -> 3380 | J45: N.A. | K45: N | M45: -0.7200532544
A46: POL | B46: 2013-2015 | C46: Trachurus murphyi | D46: Other regions | E46: SPRFMO | F46: SPRFMO Convention Area | G46: Y | H46: None | I46: 30 | J46: None | K46: N | L46: Selection for sampling stemming from international obligations and based on Sampling protocol "Manual for scientific observers on board EU pelagic trawlers in the Pacific" in accordance with the SPRFMO Data Standards (Most recent Data Standards available at: https://www.sprfmo.int/assets/Fisheries/Conservation-and-Management-Measures/CMM-4.02-Data-Standards-2016-4Mar2016.pdf or at: http://dcf.mir.gdynia.pl/?page_id=367 )

Sheet Table1B Planning of sampling
A1: Table 1B: Planning of sampling for biological variables
R2: WP years | Y2: 2017-2019
R3: AR year | Y3: 2017
A4: MS | B4: Species | C4: Region | D4: RFMO/RFO/IO | E4: Area / Stock | F4: Frequency | G4: Length | J4: Age | M4: Weight | P4: Sex ratio | S4: Sexual maturity | V4: Fecundity | Y4: Comments
G5: 2017 | H5: 2018 | I5: 2019 | J5: 2017 | K5: 2018 | L5: 2019 | M5: 2017 | N5: 2018 | O5: 2019 | P5: 2017 | Q5: 2018 | R5: 2019 | S5: 2017 | T5: 2018 | U5: 2019 | V5: 2017 | W5: 2018 | X5: 2019
A6: POL | B6: Anguilla anguilla | C6: Baltic Sea | D6: ICES | E6: 22-32 | F6: A | G6: X | H6: X | I6: X | J6: X | K6: X | L6: X | M6: X | N6: X | O6: X | P6: X | Q6: X | R6: X
A7: POL | B7: Clupea harengus | C7: Baltic Sea | D7: ICES | E7: 22-24 | F7: Q | G7: X | H7: X | I7: X | J7: X | K7: X | L7: X | M7: X | N7: X | O7: X | P7: X | Q7: X | R7: X | S7: X | T7: X | U7: X
A8: POL | B8: Clupea harengus | C8: Baltic Sea | D8: ICES | E8: 25-29 | F8: Q | G8: X | H8: X | I8: X | J8: X | K8: X | L8: X | M8: X | N8: X | O8: X | P8: X | Q8: X | R8: X | S8: X | T8: X | U8: X
A9: POL | B9: Gadus morhua | C9: Baltic Sea | D9: ICES | E9: 22-24 | F9: Q | G9: X | H9: X | I9: X | J9: X | K9: X | L9: X | M9: X | N9: X | O9: X | P9: X | Q9: X | R9: X | S9: X | T9: X | U9: X
A10: POL | B10: Gadus morhua | C10: Baltic Sea | D10: ICES | E10: 25-32 | F10: Q | G10: X | H10: X | I10: X | J10: X | K10: X | L10: X | M10: X | N10: X | O10: X | P10: X | Q10: X | R10: X | S10: X | T10: X | U10: X
A11: POL | B11: Perca fluviatilis | C11: Baltic Sea | D11: ICES | E11: IIId | F11: A | G11: X | H11: X | I11: X | J11: X | K11: X | L11: X | M11: X | N11: X | O11: X | P11: X | Q11: X | R11: X | S11: X | T11: X | U11: X
A12: POL | B12: Platichthys flesus | C12: Baltic Sea | D12: ICES | E12: 22-32 | F12: Q | G12: X | H12: X | I12: X | J12: X | K12: X | L12: X | M12: X | N12: X | O12: X | P12: X | Q12: X | R12: X | S12: X | T12: X | U12: X
A13: POL | B13: Pleuronectes platessa | C13: Baltic Sea | D13: ICES | E13: 22-32 | F13: Q | G13: X | H13: X | I13: X | J13: X | K13: X | L13: X | M13: X | N13: X | O13: X | P13: X | Q13: X | R13: X | S13: X | T13: X | U13: X
A14: POL | B14: Psetta maxima | C14: Baltic Sea | D14: ICES | E14: 22-32 | F14: Q | G14: X | H14: X | I14: X | J14: X | K14: X | L14: X | M14: X | N14: X | O14: X | P14: X | Q14: X | R14: X | S14: X | T14: X | U14: X
A15: POL | B15: Salmo salar | C15: Baltic Sea | D15: ICES | E15: 22-31 | F15: A | G15: X | H15: X | I15: X | J15: X | K15: X | L15: X | M15: X | N15: X | O15: X | P15: X | Q15: X | R15: X
A16: POL | B16: Salmo trutta | C16: Baltic Sea | D16: ICES | E16: 22-32 | F16: A | G16: X | H16: X | I16: X | J16: X | K16: X | L16: X | M16: X | N16: X | O16: X | P16: X | Q16: X | R16: X
A17: POL | B17: Sander lucioperca | C17: Baltic Sea | D17: ICES | E17: IIId | F17: A | G17: X | H17: X | I17: X | J17: X | K17: X | L17: X | M17: X | N17: X | O17: X | P17: X | Q17: X | R17: X | S17: X | T17: X | U17: X
A18: POL | B18: Sprattus sprattus | C18: Baltic Sea | D18: ICES | E18: 22-32 | F18: Q | G18: X | H18: X | I18: X | J18: X | K18: X | L18: X | M18: X | N18: X | O18: X | P18: X | Q18: X | R18: X | S18: X | T18: X | U18: X
A19: POL | B19: Gadus morhua | C19: North Sea and Eastern Arctic | D19: ICES | E19: I, II | F19: A | G19: X | H19: X | I19: X | J19: X | K19: X | L19: X | M19: X | N19: X | O19: X | P19: X | Q19: X | R19: X | S19: X | T19: X | U19: X
A20: POL | B20: Melanogrammus aeglefinus | C20: North Sea and Eastern Arctic | D20: ICES | E20: I, II | F20: A | G20: X | H20: X | I20: X | J20: X | K20: X | L20: X | M20: X | N20: X | O20: X | P20: X | Q20: X | R20: X | S20: X | T20: X | U20: X
A21: POL | B21: Pollachius virens | C21: North Sea and Eastern Arctic | D21: ICES | E21: I, II | F21: A | G21: X | H21: X | I21: X | J21: X | K21: X | L21: X | M21: X | N21: X | O21: X | P21: X | Q21: X | R21: X | S21: X | T21: X | U21: X
A22: POL | B22: Sardinella aurita | C22: Other regions | D22: CECAF | E22: 34.1.3 | F22: Q | G22: X | H22: X | I22: X | M22: X | N22: X | O22: X | P22: X | Q22: X | R22: X | S22: X | T22: X | U22: X
A23: POL | B23: Sardinella aurita | C23: Other regions | D23: CECAF | E23: 34.3.1 | F23: Q | G23: X | H23: X | I23: X | M23: X | N23: X | O23: X | P23: X | Q23: X | R23: X | S23: X | T23: X | U23: X
A24: POL | B24: Sardina pilchardus | C24: Other regions | D24: CECAF | E24: 34.1.3 | F24: Q | G24: X | H24: X | I24: X | M24: X | N24: X | O24: X | P24: X | Q24: X | R24: X | S24: X | T24: X | U24: X
A25: POL | B25: Scomber spp. | C25: Other regions | D25: CECAF | E25: 34.1.3 | F25: Q | G25: X | H25: X | I25: X | M25: X | N25: X | O25: X | P25: X | Q25: X | R25: X | S25: X | T25: X | U25: X
A26: POL | B26: Scomber spp. | C26: Other regions | D26: CECAF | E26: 34.3.1 | F26: Q | G26: X | H26: X | I26: X | M26: X | N26: X | O26: X | P26: X | Q26: X | R26: X | S26: X | T26: X | U26: X
A27: POL | B27: Trachurus trachurus | C27: Other regions | D27: CECAF | E27: 34.1.3 | F27: Q | G27: X | H27: X | I27: X | M27: X | N27: X | O27: X | P27: X | Q27: X | R27: X | S27: X | T27: X | U27: X
A28: POL | B28: Trachurus trachurus | C28: Other regions | D28: CECAF | E28: 34.3.1 | F28: Q | G28: X | H28: X | I28: X | M28: X | N28: X | O28: X | P28: X | Q28: X | R28: X | S28: X | T28: X | U28: X
A29: POL | B29: Trachurus murphyi | C29: Other regions | D29: SPRFMO | E29: SPRFMO Convention Area | F29: A | G29: X | H29: X | I29: X | J29: X | K29: X | L29: X | P29: X | Q29: X | R29: X | S29: X | T29: X | U29: X

Sheet Table1C Sampling intensity
A1: Table 1C: Sampling intensity for biological variables
P2: WP years | Q2: 2017-2019
P3: AR year | Q3: 2017
A4: MS | B4: MS partcipating in sampling | C4: Sampling year | D4: Species | E4: Region | F4: RFMO/RFO/IO | G4: Area / Stock | H4: Variables | I4: Data sources | J4: Planned minimum no of individuals to be measured at the national level | K4: Planned minimum no of individuals to be measured at the regional level | L4: Comments | M4: Achieved number of individuals measured at the national level | N4: % of achievement (100*M/J) | O4: Achieved number of samples | P4: Sampling protocol | Q4: AR Comments
A5: POL | B5: POL | C5: 2017 -2019 | D5: Anguilla anguilla | E5: Baltic Sea | F5: ICES | G5: 22-32 | H5: length | I5: Commercial | J5: all fish caught per haul | K5: NA | M5: 330 | N5: 100 | O5: 2 | P5: all fish caught per haul
A6: POL | B6: POL | C6: 2017 -2019 | D6: Anguilla anguilla | E6: Baltic Sea | F6: ICES | G6: 22-32 | H6: age, weight, sex | I6: Commercial | J6: 200 per eel management unit | K6: NA | M6: 330 | N6: 82.5 | O6: 2 | P6: 200 per eel management unit
A7: POL | B7: POL | C7: 2017 -2019 | D7: Anguilla anguilla | E7: Baltic Sea | F7: ICES | G7: 22-32 | H7: length | I7: Surveys | J7: all fish caught per haul | K7: NA | M7: 655 | N7: 100 | O7: NA
A8: POL | B8: POL | C8: 2017 -2019 | D8: Anguilla anguilla | E8: Baltic Sea | F8: ICES | G8: 22-32 | H8: age, weight, sex | I8: Surveys | J8: all fish caught per haul | K8: NA | M8: 502 | N8: 76.6 | O8: NA
A9: POL | B9: POL | C9: 2017 -2019 | D9: Clupea harengus | E9: Baltic Sea | F9: ICES | G9: 22-24 | H9: length | I9: Commercial at sea | J9: 200 fish per haul | K9: NA | M9: 3575 | N9: 119 | O9: 21 | P9: 200 fish per haul | Q9: Planned no of fish = 200 * no of samples from trips targeting herring
A10: POL | B10: POL | C10: 2017 -2019 | D10: Clupea harengus | E10: Baltic Sea | F10: ICES | G10: 22-24 | H10: age, weight, sex, maturity | I10: Commercial at sea | J10: 4 per 0.5 cm per haul | K10: NA | M10: 611 | N10: 103 | O10: 13 | P10: 4 per 0.5 cm per haul | Q10: Planned no of fish = 4 individuals or no at length if less than 4, summed up for all trips targeting herring, subdivisions and length classes
A11: POL | B11: POL | C11: 2017 -2019 | D11: Clupea harengus | E11: Baltic Sea | F11: ICES | G11: 22-24 | H11: length | I11: Commercial on shore | J11: 200 fish from the last haul | K11: NA | M11: 1222 | N11: 102 | O11: 8 | P11: 200 fish from the last haul | Q11: Planned no of fish = 200 * no of samples from trips targeting herring
A12: POL | B12: POL | C12: 2017 -2019 | D12: Clupea harengus | E12: Baltic Sea | F12: ICES | G12: 22-24 | H12: age, weight, sex, maturity | I12: Commercial on shore | J12: 4 per 0.5 cm from the last haul | K12: NA | M12: 405 | N12: 115 | O12: 6 | P12: 4 per 0.5 cm from the last haul | Q12: Planned no of fish = 4 individuals or no at length if less than 4, summed up for all trips targeting herring, subdivisions and length classes
A13: POL | B13: POL | C13: 2017 -2019 | D13: Clupea harengus | E13: Baltic Sea | F13: ICES | G13: 22-24 | H13: length | I13: Surveys | J13: 200 fish per haul | K13: NA | L13: According to IBAS & BITS Surveys Manuals ( http://dcf.mir.gdynia.pl/?page_id=367 ) | M13: 1191 | N13: 115 | O13: 11 | P13: 200 fish per haul | Q13: Planned no of fish = 200 individuals or estimated no of fish in the catch if less than 200, summed up for all samples
A14: POL | B14: POL | C14: 2017 -2019 | D14: Clupea harengus | E14: Baltic Sea | F14: ICES | G14: 22-24 | H14: age, weight, sex, maturity | I14: Surveys | J14: 5-10 per 0.5 cm per haul | K14: NA | M14: 384 | N14: 97 | O14: 10 | P14: 5-10 per 0.5 cm per haul | Q14: Planned no of fish = no of fish aged if between 5 and 10; 5 individuals or no of fish measured if less than 5; 10 individuals if no of fish aged greater than 10, summed up for all trips, subdivisions and length classes
A15: POL | B15: POL | C15: 2017 -2019 | D15: Clupea harengus | E15: Baltic Sea | F15: ICES | G15: 25-29 | H15: length | I15: Commercial at sea | J15: 200 fish per haul | K15: NA | M15: 9640 | N15: 151 | O15: 62 | P15: 200 fish per haul | Q15: Planned no of fish = 200 * no of samples from trips targeting herring
A16: POL | B16: POL | C16: 2017 -2019 | D16: Clupea harengus | E16: Baltic Sea | F16: ICES | G16: 25-29 | H16: age, weight, sex, maturity | I16: Commercial at sea | J16: 4 per 0.5 cm per haul per ICES Sub-Diivision | K16: NA | M16: 1306 | N16: 103 | O16: 40 | P16: 4 per 0.5 cm per haul per ICES Sub-Diivision | Q16: Planned no of fish = 4 individuals or no at length if less than 4, summed up for all trips targeting herring, subdivisions and length classes
A17: POL | B17: POL | C17: 2017 -2019 | D17: Clupea harengus | E17: Baltic Sea | F17: ICES | G17: 25-29 | H17: length | I17: Commercial on shore | J17: 200 fish from the last haul | K17: NA | M17: 3636 | N17: 121 | O17: 21 | P17: 200 fish from the last haul | Q17: Planned no of fish = 200 * no of samples from trips targeting herring
A18: POL | B18: POL | C18: 2017 -2019 | D18: Clupea harengus | E18: Baltic Sea | F18: ICES | G18: 25-29 | H18: age, weight, sex, maturity | I18: Commercial on shore | J18: 4 per 0.5 cm from the last haul | K18: NA | M18: 1036 | N18: 106 | O18: 19 | P18: 4 per 0.5 cm from the last haul | Q18: Planned no of fish = 4 individuals or no at length if less than 4, summed up for all trips targeting herring, subdivisions and length classes
A19: POL | B19: POL | C19: 2017 -2019 | D19: Clupea harengus | E19: Baltic Sea | F19: ICES | G19: 25-29 | H19: length | I19: Surveys | J19: 200 fish per haul | K19: NA | L19: According to IBAS & BITS Surveys Manuals (http://dcf.mir.gdynia.pl/?page_id=367 ) | M19: 28828 | N19: 95 | O19: 184 | P19: 200 fish per haul | Q19: Planned no of fish = 200 individuals or estimated no of fish in the catch if less than 200, summed up for all samples
A20: POL | B20: POL | C20: 2017 -2019 | D20: Clupea harengus | E20: Baltic Sea | F20: ICES | G20: 25-29 | H20: age, weight, sex, maturity | I20: Surveys | J20: 5-10 per 0.5 cm per haul | K20: NA | M20: 3281 | N20: 141 | O20: 146 | P20: 5-10 per 0.5 cm per haul | Q20: Planned no of fish = no of fish aged if between 5 and 10; 5 individuals or no of fish measured if less than 5; 10 individuals if no of fish aged greater than 10, summed up for all trips, subdivisions and length classes
A21: POL | B21: POL | C21: 2017 -2019 | D21: Gadus morhua | E21: Baltic Sea | F21: ICES | G21: 22-24 | H21: length | I21: Commercial at sea | J21: 5 boxes per haul | K21: NA | M21: 2054 | N21: 92 | O21: 18 | P21: 5 boxes per haul | Q21: %of achievement = sum of sample weights / no of samples from trips targeting cod * 125kg(5 boxes)
A22: POL | B22: POL | C22: 2017 -2019 | D22: Gadus morhua | E22: Baltic Sea | F22: ICES | G22: 22-24 | H22: age, weight, sex, maturity | I22: Commercial at sea | J22: 5 per 1cm | K22: NA | M22: 293 | N22: 68 | O22: 6 | P22: 5 per 1cm | Q22: Planned no of fish = 5 individuals or no at length if less than 5, summed up for all trips targeting cod, subdivisions and length classes
A23: POL | B23: POL | C23: 2017 -2019 | D23: Gadus morhua | E23: Baltic Sea | F23: ICES | G23: 22-24 | H23: length | I23: Commercial on shore | J23: 2 boxes from the last haul | K23: NA | M23: 326 | N23: 100 | O23: 3 | P23: 2 boxes from the last haul | Q23: %of achievement = sum of sample weights / no of samples from trips targeting cod * 50kg(2 boxes)
A24: POL | B24: POL | C24: 2017 -2019 | D24: Gadus morhua | E24: Baltic Sea | F24: ICES | G24: 22-24 | H24: age, weight, sex, maturity | I24: Commercial on shore | J24: 4 per 1 cm | K24: NA | M24: 159 | N24: 117 | O24: 3 | P24: 4 per 1 cm | Q24: Planned no of fish = 4 individuals or no at length if less than 4, summed up for all trips targeting cod, subdivisions and length classes
A25: POL | B25: POL | C25: 2017 -2019 | D25: Gadus morhua | E25: Baltic Sea | F25: ICES | G25: 22-24 | H25: length | I25: Surveys | J25: 5 boxes per haul | K25: NA | L25: According to IBAS & BITS Surveys Manuals (http://dcf.mir.gdynia.pl/?page_id=367 ) | M25: 2014 | N25: 104 | O25: 9 | P25: 5 boxes per haul | Q25: %of achievement = sum of sample weights / (125kg (5 boxes) or catch weight if less than 125kg summed up for all samples)
A26: POL | B26: POL | C26: 2017 -2019 | D26: Gadus morhua | E26: Baltic Sea | F26: ICES | G26: 22-24 | H26: age, weight, sex, maturity | I26: Surveys | J26: 5 per 1cm | K26: NA | M26: 313 | N26: 90 | O26: 8 | P26: 5 per 1cm | Q26: Planned no of fish = 5 individuals or no at length if less than 5, summed up for all trips, subdivisions and length classes
A27: POL | B27: POL | C27: 2017 -2019 | D27: Gadus morhua | E27: Baltic Sea | F27: ICES | G27: 25-32 | H27: length | I27: Commercial at sea | J27: 5 boxes per haul | K27: NA | M27: 8803 | N27: 75 | O27: 95 | P27: 5 boxes per haul | Q27: %of achievement = sum of sample weights / no of samples from trips targeting cod * 125kg(5 boxes)
A28: POL | B28: POL | C28: 2017 -2019 | D28: Gadus morhua | E28: Baltic Sea | F28: ICES | G28: 25-32 | H28: age, weight, sex, maturity | I28: Commercial at sea | J28: 5 per 1cm | K28: NA | M28: 1609 | N28: 66 | O28: 42 | P28: 5 per 1cm | Q28: Planned no of fish = 5 individuals or no at length if less than 5, summed up for all trips targeting cod, subdivisions and length classes
A29: POL | B29: POL | C29: 2017 -2019 | D29: Gadus morhua | E29: Baltic Sea | F29: ICES | G29: 25-32 | H29: length | I29: Commercial on shore | J29: 2 boxes from the last haul | K29: NA | M29: 590 | N29: 113 | O29: 8 | P29: 2 boxes from the last haul | Q29: %of achievement = sum of sample weights / no of samples from trips targeting cod * 50kg(2 boxes)
A30: POL | B30: POL | C30: 2017 -2019 | D30: Gadus morhua | E30: Baltic Sea | F30: ICES | G30: 25-32 | H30: age, weight, sex, maturity | I30: Commercial on shore | J30: 4 per 1 cm | K30: NA | M30: 341 | N30: 100 | O30: 7 | P30: 4 per 1 cm | Q30: Planned no of fish = 4 individuals or no at length if less than 4, summed up for all trips targeting cod, subdivisions and length classes
A31: POL | B31: POL | C31: 2017 -2019 | D31: Gadus morhua | E31: Baltic Sea | F31: ICES | G31: 25-32 | H31: length | I31: Surveys | J31: 5 boxes per haul | K31: NA | L31: According to IBAS & BITS Surveys Manuals (http://dcf.mir.gdynia.pl/?page_id=367 ) | M31: 24094 | N31: 115 | O31: 155 | P31: 5 boxes per haul | Q31: %of achievement = sum of sample weights / (125kg (5 boxes) or catch weight if less than 125kg summed up for all samples)
A32: POL | B32: POL | C32: 2017 -2019 | D32: Gadus morhua | E32: Baltic Sea | F32: ICES | G32: 25-32 | H32: age, weight, sex, maturity | I32: Surveys | J32: 5 per 1cm per ICES Sub-Division | K32: NA | M32: 1195 | N32: 94 | O32: 120 | P32: 5 per 1cm per ICES Sub-Division | Q32: Planned no of fish = 5 individuals or no at length if less than 5, summed up for all trips, subdivisions and length classes
A33: POL | B33: POL | C33: 2017 -2019 | D33: Perca fluviatilis | E33: Baltic Sea | F33: ICES | G33: IIId | H33: length | I33: Commercial | J33: 1 box per haul | K33: NA | M33: 1849 | N33: 97 | O33: 15 | P33: 1 box per haul | Q33: %of achievement = sum of sample weights / no of samples from trips targeting perch * 25kg(1 box)
A34: POL | B34: POL | C34: 2017 -2019 | D34: Perca fluviatilis | E34: Baltic Sea | F34: ICES | G34: IIId | H34: age, weight, sex, maturity | I34: Commercial | J34: 5 per 1 cm per fishing ground | K34: NA | M34: 361 | N34: 205 | O34: 13 | P34: 5 per 1 cm per fishing ground | Q34: Planned no of fish = 5 individuals or no at length if less than 5, summed up for all subdivisions and length classes from trips targeting perch
A35: POL | B35: POL | C35: 2017 -2019 | D35: Platichthys flesus | E35: Baltic Sea | F35: ICES | G35: 22-32 | H35: length | I35: Commercial at sea | J35: 1 box per haul | K35: NA | M35: 4400 | N35: 110 | O35: 65 | P35: 1 box per haul | Q35: %of achievement = sum of sample weights / no of samples from trips targeting flounder * 25kg(1 box)
A36: POL | B36: POL | C36: 2017 -2019 | D36: Platichthys flesus | E36: Baltic Sea | F36: ICES | G36: 22-32 | H36: age, weight, sex, maturity | I36: Commercial at sea | J36: 5 per 1 cm | K36: NA | M36: 352 | N36: 79 | O36: 9 | P36: 5 per 1 cm | Q36: Planned no of fish = 5 individuals or no at length if less than 5, summed up for all trips targeting flounder, subdivisions and length classes
A37: POL | B37: POL | C37: 2017 -2019 | D37: Platichthys flesus | E37: Baltic Sea | F37: ICES | G37: 22-32 | H37: length | I37: Commercial on shore | J37: 1 box from the last haul | K37: NA | M37: 1513 | N37: 99 | O37: 20 | P37: 1 box from the last haul | Q37: %of achievement = sum of sample weights / no of samples from trips targeting flounder * 25kg(1 box)
A38: POL | B38: POL | C38: 2017 -2019 | D38: Platichthys flesus | E38: Baltic Sea | F38: ICES | G38: 22-32 | H38: age, weight, sex, maturity | I38: Commercial on shore | J38: 5 per 1 cm | K38: NA | M38: 665 | N38: 98 | O38: 17 | P38: 5 per 1 cm | Q38: Planned no of fish = 5 individuals or no at length if less than 5, summed up for all trips targeting flounder, subdivisions and length classes
A39: POL | B39: POL | C39: 2017 -2019 | D39: Platichthys flesus | E39: Baltic Sea | F39: ICES | G39: 22-32 | H39: length | I39: Surveys | J39: 1 box per haul per ICES Sub-Division | K39: NA | L39: According to BITS Surveys Manual (http://dcf.mir.gdynia.pl/?page_id=367) | M39: 13717 | N39: 111 | O39: 137 | P39: 1 box per haul per ICES Sub-Division | Q39: %of achievement = sum of sample weights / (25kg (1 box) or catch weight if less than 25kg summed up for all samples)
A40: POL | B40: POL | C40: 2017 -2019 | D40: Platichthys flesus | E40: Baltic Sea | F40: ICES | G40: 22-32 | H40: age, weight, sex, maturity | I40: Surveys | J40: 10 per 1cm per sex per ICES Sub-Division | K40: NA | M40: 1859 | N40: 100 | O40: 117 | P40: 10 per 1cm per sex per ICES Sub-Division | Q40: Planned no of fish = 10 individuals or no at length if less than 10, summed up for all trips, subdivisions, sex and length classes
A41: POL | B41: POL | C41: 2017 -2019 | D41: Pleuronectes platessa | E41: Baltic Sea | F41: ICES | G41: 22-32 | H41: length | I41: Commercial at sea | J41: all fish caught per haul | K41: NA | L41: no directed fishery (bycatch in cod and flounder fisheries) | M41: 256 | N41: 11 | O41: 24 | P41: all fish caught per haul | Q41: %of achievement = sum of sample weights / sum of catch weights of plaice
A42: POL | B42: POL | C42: 2017 -2019 | D42: Pleuronectes platessa | E42: Baltic Sea | F42: ICES | G42: 22-32 | H42: age, weight, sex, maturity | I42: Commercial at sea | J42: all fish caught per haul | K42: NA | M42: 26 | N42: 1 | O42: 6 | P42: all fish caught per haul | Q42: %of achievement = no of fish aged / estimated no of fish in the catch
A43: POL | B43: POL | C43: 2017 -2019 | D43: Pleuronectes platessa | E43: Baltic Sea | F43: ICES | G43: 22-32 | H43: length | I43: Surveys | J43: all fish caught per haul | K43: NA | L43: According to BITS Surveys Manual (http://dcf.mir.gdynia.pl/?page_id=367) | M43: 2927 | N43: 98 | O43: 113 | P43: all fish caught per haul | Q43: %of achievement = sum of sample weights / sum of catch weights
A44: POL | B44: POL | C44: 2017 -2019 | D44: Pleuronectes platessa | E44: Baltic Sea | F44: ICES | G44: 22-32 | H44: age, weight, sex, maturity | I44: Surveys | J44: all fish caught per haul | K44: NA | M44: 1234 | N44: 42 | O44: 111 | P44: all fish caught per haul | Q44: %of achievement = no of fish aged / no of fish measured
A45: POL | B45: POL | C45: 2017 -2019 | D45: Psetta maxima | E45: Baltic Sea | F45: ICES | G45: 22-32 | H45: length | I45: Commercial at sea | J45: all fish caught per haul | K45: NA | L45: no directed fishery (bycatch in cod and flounder fisheries) | M45: 5 | N45: 100 | O45: 3 | P45: all fish caught per haul | Q45: %of achievement = sum of sample weights / sum of catch weights of turbot
A46: POL | B46: POL | C46: 2017 -2019 | D46: Psetta maxima | E46: Baltic Sea | F46: ICES | G46: 22-32 | H46: age, weight, sex, maturity | I46: Commercial at sea | J46: all fish caught per haul | K46: NA | M46: 3 | N46: 60 | O46: 1 | P46: all fish caught per haul | Q46: %of achievement = no of fish aged / estimated no of fish in the catch
A47: POL | B47: POL | C47: 2017 -2019 | D47: Psetta maxima | E47: Baltic Sea | F47: ICES | G47: 22-32 | H47: length | I47: Surveys | J47: all fish caught per haul | K47: NA | L47: According to BITS Surveys Manual (http://dcf.mir.gdynia.pl/?page_id=367) | M47: 83 | N47: 100 | O47: 40 | P47: all fish caught per haul | Q47: %of achievement = sum of sample weights / sum of catch weights
A48: POL | B48: POL | C48: 2017 -2019 | D48: Psetta maxima | E48: Baltic Sea | F48: ICES | G48: 22-32 | H48: age, weight, sex, maturity | I48: Surveys | J48: all fish caught per haul | K48: NA | M48: 82 | N48: 99 | O48: 39 | P48: all fish caught per haul | Q48: %of achievement = no of fish aged / no of fish measured
A49: POL | B49: POL | C49: 2017 -2019 | D49: Salmo salar | E49: Baltic Sea | F49: ICES | G49: 22-31 | H49: length | I49: Commercial | J49: all fish caught per haul | K49: NA | M49: 594 | N49: 98 | O49: 25 | P49: all fish caught per haul | Q49: %of achievement = sum of sample weights / sum of catch weights of salmon
A50: POL | B50: POL | C50: 2017 -2019 | D50: Salmo salar | E50: Baltic Sea | F50: ICES | G50: 22-31 | H50: age, weight, sex | I50: Commercial | J50: 5 per 1 cm per year | K50: NA | M50: 592 | N50: 261 | O50: 24 | P50: 5 per 1 cm per year | Q50: Planned no of fish = 5 individuals or no at length if less than 5, summed up for whole year and all length classes
A51: POL | B51: POL | C51: 2017 -2019 | D51: Salmo trutta | E51: Baltic Sea | F51: ICES | G51: 22-32 | H51: length | I51: Commercial | J51: all fish caught per haul | K51: NA | M51: 26 | N51: 100 | O51: 19 | P51: all fish caught per haul | Q51: %of achievement = sum of sample weights / sum of catch weights of sea trout
A52: POL | B52: POL | C52: 2017 -2019 | D52: Salmo trutta | E52: Baltic Sea | F52: ICES | G52: 22-32 | H52: age, weight, sex | I52: Commercial | J52: 5 per 1 cm per year | K52: NA | M52: 20 | N52: 77 | O52: 15 | P52: 5 per 1 cm per year | Q52: Planned no of fish = 5 individuals or no at length if less than 5, summed up for whole year and all length classes
A53: POL | B53: POL | C53: 2017 -2019 | D53: Sander lucioperca | E53: Baltic Sea | F53: ICES | G53: IIId | H53: length | I53: Commercial | J53: 5 box per haul | K53: NA | M53: 918 | N53: 33 | O53: 22 | P53: 5 box per haul | Q53: %of achievement = sum of sample weights / no of samples from trips targeting pike-perch * 125kg(5 boxes)
A54: POL | B54: POL | C54: 2017 -2019 | D54: Sander lucioperca | E54: Baltic Sea | F54: ICES | G54: IIId | H54: age, weight, sex, maturity | I54: Commercial | J54: 5 per 1 cm per fishing ground | K54: NA | M54: 443 | N54: 155 | O54: 19 | P54: 5 per 1 cm per fishing ground | Q54: Planned no of fish = 5 individuals or no at length if less than 5, summed up for all subdivisions and length classes from trips targeting pike-perch
A55: POL | B55: POL | C55: 2017 -2019 | D55: Sprattus sprattus | E55: Baltic Sea | F55: ICES | G55: 22-32 | H55: length | I55: Commercial at sea | J55: 200 fish per haul | K55: NA | M55: 13101 | N55: 160 | O55: 77 | P55: 200 fish per haul | Q55: Planned no of fish = 200 * no of samples from trips targeting sprat
A56: POL | B56: POL | C56: 2017 -2019 | D56: Sprattus sprattus | E56: Baltic Sea | F56: ICES | G56: 22-32 | H56: age, weight, sex, maturity | I56: Commercial at sea | J56: 5-10 per 0.5 cm per haul per ICES Sub-Diivision | K56: NA | M56: 2327 | N56: 88 | O56: 43 | P56: 5-10 per 0.5 cm per haul per ICES Sub-Diivision | Q56: Planned no of fish = no of fish aged if between 5 and 10; 5 individuals or no of fish measured if less than 5; 10 individuals if no of fish aged greater than 10, summed up for all trips targeting sprat, subdivisions and length classes
A57: POL | B57: POL | C57: 2017 -2019 | D57: Sprattus sprattus | E57: Baltic Sea | F57: ICES | G57: 22-32 | H57: length | I57: Commercial on shore | J57: 200 fish from the last haul | K57: NA | M57: 3535 | N57: 147 | O57: 19 | P57: 200 fish from the last haul | Q57: Planned no of fish = 200 * no of samples from trips targeting sprat
A58: POL | B58: POL | C58: 2017 -2019 | D58: Sprattus sprattus | E58: Baltic Sea | F58: ICES | G58: 22-32 | H58: age, weight, sex, maturity | I58: Commercial on shore | J58: 5-10 per 0.5 cm from the last haul | K58: NA | M58: 1098 | N58: 96 | O58: 16 | P58: 5-10 per 0.5 cm from the last haul | Q58: Planned no of fish = no of fish aged if between 5 and 10; 5 individuals or no of fish measured if less than 5; 10 individuals if no of fish aged greater than 10, summed up for all trips targeting sprat, subdivisions and length classes
A59: POL | B59: POL | C59: 2017 -2019 | D59: Sprattus sprattus | E59: Baltic Sea | F59: ICES | G59: 22-32 | H59: length | I59: Surveys | J59: 200 fish per haul | K59: NA | L59: According to BITS Surveys Manual (http://dcf.mir.gdynia.pl/?page_id=367) | M59: 27675 | N59: 94 | O59: 173 | P59: 200 fish per haul | Q59: Planned no of fish = 200 individuals or estimated no of fish in the catch if less than 200, summed up for all samples
A60: POL | B60: POL | C60: 2017 -2019 | D60: Sprattus sprattus | E60: Baltic Sea | F60: ICES | G60: 22-32 | H60: age, weight, sex, maturity | I60: Surveys | J60: 5-10 per 0.5 cm per haul | K60: NA | M60: 2605 | N60: 185 | O60: 99 | P60: 5-10 per 0.5 cm per haul | Q60: Planned no of fish = no of fish aged if between 5 and 10; 5 individuals or no of fish measured if less than 5; 10 individuals if no of fish aged greater than 10, summed up for all trips, subdivisions and length classes
A61: POL | B61: POL | C61: 2017 -2019 | D61: Gadus morhua | E61: North Sea and Eastern Arctic | F61: ICES | G61: I, II | H61: length | I61: Commercial at sea | J61: 300 fish per haul | K61: NA | M61: 9489 | N61: 69 | O61: 44 | P61: 300 fish per haul | Q61: Planned no of fish = 300 * no of samples from trips targeting cod
A62: POL | B62: POL | C62: 2017 -2019 | D62: Gadus morhua | E62: North Sea and Eastern Arctic | F62: ICES | G62: I, II | H62: age, weight, sex, maturity | I62: Commercial at sea | J62: 5 per 1 cm per trip | K62: NA | M62: 357 | N62: 84 | O62: 7 | P62: 5 per 1 cm per trip | Q62: Planned no of fish = 5 individuals or no at length if less than 5, summed up for all trips targeting cod, subdivisions and length classes
A63: POL | B63: POL | C63: 2017 -2019 | D63: Melanogrammus aeglefinus | E63: North Sea and Eastern Arctic | F63: ICES | G63: I, II | H63: length | I63: Commercial at sea | J63: 300 fish per haul | K63: NA | M63: 2378 | N63: 40 | O63: 20 | P63: 300 fish per haul | Q63: Planned no of fish = 300 * no of samples from trips targeting cod (with bycatch of haddock)
A64: POL | B64: POL | C64: 2017 -2019 | D64: Melanogrammus aeglefinus | E64: North Sea and Eastern Arctic | F64: ICES | G64: I, II | H64: age, weight, sex, maturity | I64: Commercial at sea | J64: 5 per 1 cm per trip | K64: NA | M64: 104 | N64: 55 | O64: 2 | P64: 5 per 1 cm per trip | Q64: Planned no of fish = 5 individuals or no at length if less than 5, summed up for all trips targeting cod, subdivisions and length classes
A65: POL | B65: POL | C65: 2017 -2019 | D65: Pollachius virens | E65: North Sea and Eastern Arctic | F65: ICES | G65: I, II | H65: length | I65: Commercial at sea | J65: 300 fish per haul | K65: NA | M65: 490 | N65: 11 | O65: 15 | P65: 300 fish per haul | Q65: Planned no of fish = 300 * no of samples from trips targeting cod (with bycatch of saithe)
A66: POL | B66: POL | C66: 2017 -2019 | D66: Pollachius virens | E66: North Sea and Eastern Arctic | F66: ICES | G66: I, II | H66: age, weight, sex, maturity | I66: Commercial at sea | J66: 5 per 1 cm per trip | K66: NA | M66: 0 | N66: 0 | O66: 0 | P66: 5 per 1 cm per trip | Q66: Planned no of fish = 5 individuals or no at length if less than 5, summed up for all trips targeting cod, subdivisions and length classes
A67: POL | B67: DEU - LTU -LVA - NLD - POL | C67: 2017 -2019 | D67: Sardinella aurita | E67: Other regions | F67: CECAF | G67: 34.1.3 | H67: length | I67: Commercial at sea | J67: sample of 25 kg per haul | K67: NA | L67: Sampling Protocol - "Biological Data Collection of pelagic fisheries in CECAF waters in compliance with the DCF" (http://dcf.mir.gdynia.pl/?page_id=367) | M67: 0 | O67: 0 | P67: sample of 25 kg per haul | Q67: Joint sampling programme coordinated by NLD - see Table 7C
A68: POL | B68: DEU - LTU -LVA - NLD - POL | C68: 2017 -2019 | D68: Sardinella aurita | E68: Other regions | F68: CECAF | G68: 34.1.3 | H68: weight, sex, maturity | I68: Commercial at sea | J68: 100 per quarter | K68: NA | M68: 0 | O68: 0 | P68: 100 per quarter
A69: POL | B69: DEU - LTU -LVA - NLD - POL | C69: 2017 -2019 | D69: Sardinella aurita | E69: Other regions | F69: CECAF | G69: 34.3.1 | H69: length | I69: Commercial at sea | J69: sample of 25 kg per haul | K69: NA | M69: 0 | O69: 0 | P69: sample of 25 kg per haul
A70: POL | B70: DEU - LTU -LVA - NLD - POL | C70: 2017 -2019 | D70: Sardinella aurita | E70: Other regions | F70: CECAF | G70: 34.3.1 | H70: weight, sex, maturity | I70: Commercial at sea | J70: 100 per quarter | K70: NA | M70: 0 | O70: 0 | P70: 100 per quarter
A71: POL | B71: DEU - LTU -LVA - NLD - POL | C71: 2017 -2019 | D71: Sardina pilchardus | E71: Other regions | F71: CECAF | G71: 34.1.3 | H71: length | I71: Commercial at sea | J71: sample of 25 kg per haul | K71: NA | M71: 0 | O71: 0 | P71: sample of 25 kg per haul
A72: POL | B72: DEU - LTU -LVA - NLD - POL | C72: 2017 -2019 | D72: Sardina pilchardus | E72: Other regions | F72: CECAF | G72: 34.1.3 | H72: weight, sex, maturity | I72: Commercial at sea | J72: 100 per quarter | K72: NA | M72: 0 | O72: 0 | P72: 100 per quarter
A73: POL | B73: DEU - LTU -LVA - NLD - POL | C73: 2017 -2019 | D73: Scomber spp. | E73: Other regions | F73: CECAF | G73: 34.1.3 | H73: length | I73: Commercial at sea | J73: sample of 25 kg per haul | K73: NA | M73: 0 | O73: 0 | P73: sample of 25 kg per haul
A74: POL | B74: DEU - LTU -LVA - NLD - POL | C74: 2017 -2019 | D74: Scomber spp. | E74: Other regions | F74: CECAF | G74: 34.1.3 | H74: weight, sex, maturity | I74: Commercial at sea | J74: 100 per quarter | K74: NA | M74: 0 | O74: 0 | P74: 100 per quarter
A75: POL | B75: DEU - LTU -LVA - NLD - POL | C75: 2017 -2019 | D75: Scomber spp. | E75: Other regions | F75: CECAF | G75: 34.3.1 | H75: length | I75: Commercial at sea | J75: sample of 25 kg per haul | K75: NA | M75: 0 | O75: 0 | P75: sample of 25 kg per haul
A76: POL | B76: DEU - LTU -LVA - NLD - POL | C76: 2017 -2019 | D76: Scomber spp. | E76: Other regions | F76: CECAF | G76: 34.3.1 | H76: weight, sex, maturity | I76: Commercial at sea | J76: 100 per quarter | K76: NA | M76: 0 | O76: 0 | P76: 100 per quarter
A77: POL | B77: DEU - LTU -LVA - NLD - POL | C77: 2017 -2019 | D77: Trachurus trachurus | E77: Other regions | F77: CECAF | G77: 34.1.3 | H77: length | I77: Commercial at sea | J77: sample of 25 kg per haul | K77: NA | M77: 0 | O77: 0 | P77: sample of 25 kg per haul
A78: POL | B78: DEU - LTU -LVA - NLD - POL | C78: 2017 -2019 | D78: Trachurus trachurus | E78: Other regions | F78: CECAF | G78: 34.1.3 | H78: weight, sex, maturity | I78: Commercial at sea | J78: 100 per quarter | K78: NA | M78: 0 | O78: 0 | P78: 100 per quarter
A79: POL | B79: DEU - LTU -LVA - NLD - POL | C79: 2017 -2019 | D79: Trachurus trachurus | E79: Other regions | F79: CECAF | G79: 34.3.1 | H79: length | I79: Commercial at sea | J79: sample of 25 kg per haul | K79: NA | M79: 0 | O79: 0 | P79: sample of 25 kg per haul
A80: POL | B80: DEU - LTU -LVA - NLD - POL | C80: 2017 -2019 | D80: Trachurus trachurus | E80: Other regions | F80: CECAF | G80: 34.3.1 | H80: weight, sex, maturity | I80: Commercial at sea | J80: 100 per quarter | K80: NA | M80: 0 | O80: 0 | P80: 100 per quarter
A81: POL | B81: DEU - LTU - NLD - POL | C81: 2017 -2019 | D81: Trachurus murphyi | E81: Other regions | F81: SPRFMO | G81: SPRFMO Convention Area | H81: length | I81: Commercial at sea | J81: 2-3 baskets per haul (ca. 100 fish per haul) | K81: NA | L81: "Manual for scientific observers on board EU pelagic trawlers in the Pacific" (in accordance to SPRFMO Data Standards) (http://dcf.mir.gdynia.pl/?page_id=367) | M81: 13843 | N81: 65.8 | O81: 100 | P81: 2-3 baskets per haul (ca. 100 fish per haul) | Q81: Planned no of fish = 100 * total no of hauls in observed trips (Two trips observed by single observer. Not possible to observe 100% hauls with single observer onboard)
A82: POL | B82: DEU - LTU - NLD - POL | C82: 2017 -2019 | D82: Trachurus murphyi | E82: Other regions | F82: SPRFMO | G82: SPRFMO Convention Area | H82: age, sex, maturity | I82: Commercial at sea | J82: 25 fish per day | K82: NA | M82: 2500 | N82: 138.9 | O82: 100 | P82: 25 fish per day | Q82: Planned no of fish = 25 * total no of fishing days in observed trips

Sheet Table1D Recreational Fisheries
A1: Table 1D: Recreational fisheries
X2: WP years | Y2: 2017-2019
X3: AR year | Y3: 2017
A4: MS | B4: Sampling year | C4: Area/EMU | D4: RFMO/RFO/IO | E4: Species | F4: Applicable (Species present in the MS?) | G4: Reasons for not sampling | H4: Threshold (Y/N) | I4: Annual estimate of catch? (Y/N) | J4: Annual percentage of released catch? (Y/N) | K4: Collection of catch composition data? (Y/N) | L4: Type of Survey | M4: Comments | N4: Unique Survey ID or Name of sampling scheme (Linked to Table 5A) | O4: Is the survey part of a pilot study or part of an established programme? | P4: Frequency | Q4: Is the sampling design documented? (Linked to Table 5A) | R4: Are non-response and refusal recorded? (Linked to Table 5A) | S4: Are the editing and imputation methods documented? (Linked to Table 5A) | T4: Estimation of the yearly weight and numbers of catch (Y/N) | U4: Estimation of the yearly percentage release (Y/N) | V4: Collection of catch composition data (Y/N) | W4: Evaluated by external experts/bodies (Y/N) | X4: Conform with accepted standards Y/N | Y4: AR Comments
A5: POL | B5: 2017-2019 | C5: Baltic Sea | D5: ICES | E5: Gadus morhua | F5: Y | G5: NA | H5: N | I5: Y | J5: Y | K5: Y | L5: National estimates of numbers of trips &number of anglers & onsite surveys of catch per unit effort & of catch composition | M5: Planned number of at sea trips: 24 | N5: At sea cod recreational fishery | O5: Routine | P5: Annual | Q5: Y | R5: Y | S5: N | T5: Y | U5: Y | V5: Y | W5: Y | X5: Y | Y5: The estimation of annual catch and number for the sampling Year (N) is available in the year after (N+1). Survey evaluated by WGRFS. Imputation is not performed at national level. Refusals recorded for questionnaires' survey. At-sea biological sampling not randomized but based on vessels' availability (drawing from vessel list).
A6: POL | B6: 2017-2019 | C6: Vistula/Oder EMU | D6: ICES | E6: Anguilla anguilla | F6: Y | G6: NA | H6: N | I6: Y | J6: N | K6: N | L6: National estimates of catch based on questionaires and catch register | N6: NA | O6: NA | P6: NA | Q6: NA | R6: NA | S6: NA | T6: NA | U6: NA | V6: NA | W6: NA | X6: NA | Y6: Data collected through other program by Inland Fisheries Institute, annually by questionnaires as part of national statistics and based on contract with government. Annual data publicly available (http://www.infish.com.pl/)
A7: POL | B7: 2017-2018 | C7: Baltic Sea | D7: ICES | E7: Salmo salar | F7: Y | G7: Pilot Sudy planned | H7: N | I7: Y | J7: Y | K7: Y | M7: see Pilot Study 1 in text file | N7: Pilot Study 1 | O7: Pilot | P7: Biennial | Q7: Y | R7: Y | S7: N | T7: N | U7: N | V7: N | W7: N | X7: N | Y7: See Text Box on Pilot Study 1 for comments
A8: POL | B8: 2017-2018 | C8: Baltic Sea | D8: ICES | E8: Salmo trutta | F8: Y | G8: Pilot Sudy planned | H8: N | I8: Y | J8: Y | K8: Y | N8: Pilot Study 1 | O8: Pilot | P8: Biennial | Q8: Y | R8: Y | S8: N | T8: N | U8: N | V8: N | W8: N | X8: N
A9: POL | B9: 2017-2018 | C9: Baltic Sea | D9: ICES | E9: Anguilla anguilla | F9: Y | G9: Pilot Sudy planned | H9: N | I9: Y | J9: Y | K9: Y | N9: Pilot Study 1 | O9: Pilot | P9: Biennial | Q9: Y | R9: Y | S9: N | T9: N | U9: N | V9: N | W9: N | X9: N
A10: POL | B10: 2017-2018 | C10: Baltic Sea inland waters | D10: ICES | E10: Salmo salar | F10: Y | G10: Pilot Sudy planned | H10: N | I10: Y | J10: Y | K10: N | M10: see Pilot Study 1 in text file | N10: Pilot Study 1 | O10: Pilot | P10: Biennial | Q10: Y | R10: Y | S10: N | T10: N | U10: N | V10: N | W10: N | X10: N
A11: POL | B11: 2017-2018 | C11: Baltic Sea inland waters | D11: ICES | E11: Salmo trutta | F11: Y | G11: Pilot Sudy planned | H11: N | I11: Y | J11: Y | K11: N | N11: Pilot Study 1 | O11: Pilot | P11: Biennial | Q11: Y | R11: Y | S11: N | T11: N | U11: N | V11: N | W11: N | X11: N

Sheet Table1E Anadromous catadromous
A1: Table 1E: Anadromous and catadromous species data collection in fresh water
T2: WP years | U2: 2017-2019
T3: AR year | U3: 2017
A4: MS | B4: Sampling period | C4: Area | D4: RFMO/RFO/IO | E4: Species | F4: Applicable (Y/N) | G4: Reasons for not sampling | H4: Water Body | I4: Life stage | J4: Fishery / Independent data collection | K4: Method | L4: Unit | M4: Planned nos | N4: Frequency | O4: Comments | P4: Achieved numbers | Q4: % of achievement (100*P/M) | R4: Reasons for non-conformity | S4: Survey ID | T4: Agreed at RCG level? | U4: AR Comments
A6: POL | B6: 2017-2019 | C6: ODER EMU | D6: ICES | E6: Anguilla anguilla | F6: Y | G6: NA | H6: Szczecin Lagoon | I6: yellow | J6: F | K6: sampling | L6: n.samples | M6: 100 | N6: Y | O6: biological variables | P6: NA | R6: NA | S6: NA | T6: N | U6: As per Guidance, commercial fisheries in marine waters are defined in tables 1A, 1B, 1C
A7: POL | B7: 2017-2019 | C7: VISTULA EMU | D7: ICES | E7: Anguilla anguilla | F7: Y | G7: NA | H7: Vistula Lagoon | I7: yellow | J7: F | K7: sampling | L7: n.samples | M7: 100 | N7: Y | O7: biological variables | P7: NA | R7: NA | S7: NA | T7: N | U7: As per Guidance, commercial fisheries in marine waters are defined in tables 1A, 1B, 1C
A8: POL | B8: 2017-2019 | C8: ODER EMU | D8: ICES | E8: Anguilla anguilla | F8: Y | G8: NA | H8: Szczecin Lagoon | I8: silver | J8: F | K8: sampling | L8: n.samples | M8: 100 | N8: Y | O8: biological variables | P8: NA | R8: NA | S8: NA | T8: N | U8: As per Guidance, commercial fisheries in marine waters are defined in tables 1A, 1B, 1C
A9: POL | B9: 2017-2019 | C9: VISTULA EMU | D9: ICES | E9: Anguilla anguilla | F9: Y | G9: NA | H9: Vistula Lagoon | I9: silver | J9: F | K9: sampling | L9: n.samples | M9: 100 | N9: Y | O9: biological variables | P9: NA | R9: NA | S9: NA | T9: N | U9: As per Guidance, commercial fisheries in marine waters are defined in tables 1A, 1B, 1C
A10: POL | B10: 2017-2019 | C10: ODER EMU | D10: ICES | E10: Anguilla anguilla | F10: Y | G10: NA | H10: Inland - lakes | I10: yellow | J10: F | K10: sampling | L10: n.samples | M10: 100 | N10: Y | O10: biological variables | P10: 81 | Q10: =P10*100/M10 -> 81 | R10: Eels were purchased from commercial fishery, targeting both stages (yellow and silver) on fyke nets. For analysis, individuals were chosen after visual observation (based on the coloration), simultaneously measuring all the parameters necessary to determine classification based on Durif et al. 2005. After calculating the Durif index, some individuals were classified to a different stage than those resulting from visual observation. However, this does not affect the results of the stock dynamics model, which does not require separation of stages. Total number of sampled eels is sufficient for modeling purposes. (DurifC. DufourS. ElieP., 2005. The silvering process of Anguilla anguilla: a new classification from the yellow resident to the silver migrating stage. J. Fish Biol. 66:1025-1043). | S10: POL-ELE-FRW-FYK-commercial fishing | T10: N
A11: POL | B11: 2017-2019 | C11: VISTULA EMU | D11: ICES | E11: Anguilla anguilla | F11: Y | G11: NA | H11: Inland - lakes | I11: yellow | J11: F | K11: sampling | L11: n.samples | M11: 100 | N11: Y | O11: biological variables | P11: 116 | Q11: 116 | S11: POL-ELE-FRW-FYK-commercial fishing | T11: N
A12: POL | B12: 2017-2019 | C12: ODER EMU | D12: ICES | E12: Anguilla anguilla | F12: Y | G12: NA | H12: Inland - lakes | I12: silver | J12: F | K12: sampling | L12: n.samples | M12: 150 | N12: Y | O12: biological variables | P12: 195 | Q12: 130 | S12: POL-ELE-FRW-FYK-commercial fishing | T12: N
A13: POL | B13: 2017-2019 | C13: VISTULA EMU | D13: ICES | E13: Anguilla anguilla | F13: Y | G13: NA | H13: Inland - lakes | I13: silver | J13: F | K13: sampling | L13: n.samples | M13: 150 | N13: Y | O13: biological variables | P13: 162 | Q13: 108 | S13: POL-ELE-FRW-FYK-commercial fishing | T13: N
A14: POL | B14: 2017-2019 | C14: ODER EMU | D14: ICES | E14: Anguilla anguilla | F14: Y | G14: NA | H14: Szczecin Lagoon | I14: yellow | J14: I | K14: trap | L14: n.sites | M14: 2 | N14: Y | O14: yellow eel abundance | P14: 1 | Q14: 50 | R14: one site in this area is sufficient for sampling purposes | S14: POL-ELE-FRW-FYK-fishery-independent | T14: N
A15: POL | B15: 2017-2019 | C15: VISTULA EMU | D15: ICES | E15: Anguilla anguilla | F15: Y | G15: NA | H15: Vistula Lagoon | I15: yellow | J15: I | K15: trap | L15: n.sites | M15: 2 | N15: Y | O15: yellow eel abundance | P15: 2 | Q15: 100 | S15: POL-ELE-FRW-FYK-fishery-independent | T15: N
A16: POL | B16: 2017-2019 | C16: ODER EMU | D16: ICES | E16: Anguilla anguilla | F16: Y | G16: NA | H16: Inland - lakes | I16: yellow | J16: I | K16: electrofishing | L16: n.sites | M16: 10 | N16: Y | O16: yellow eel abundance | P16: 18 | Q16: =P16*100/M16 -> 180 | R16: In the first year of implementation of this monitoring, more sites were selected than originally planned in WP in order to determine the most representative sites | S16: POL-ELE-FRW-MEL-fishery-independent | T16: N
A17: POL | B17: 2017-2019 | C17: VISTULA EMU | D17: ICES | E17: Anguilla anguilla | F17: Y | G17: NA | H17: Inland - lakes | I17: yellow | J17: I | K17: electrofishing | L17: n.sites | M17: 10 | N17: Y | O17: yellow eel abundance | P17: 18 | Q17: 180 | S17: POL-ELE-FRW-MEL-fishery-independent | T17: N
A18: POL | B18: 2017-2019 | C18: ODER EMU | D18: ICES | E18: Anguilla anguilla | F18: Y | G18: NA | H18: Pomeranian rivers | I18: yellow | J18: I | K18: trap | L18: n.sites | M18: 5 | N18: Y | O18: abundance of recruits | P18: 8 | Q18: 160 | S18: POL-ELE-FRW-FIX-fishery independant | T18: N
A19: POL | B19: 2017-2019 | C19: VISTULA EMU | D19: ICES | E19: Anguilla anguilla | F19: Y | G19: NA | H19: Pomeranian rivers | I19: yellow | J19: I | K19: trap | L19: n.sites | M19: 4 | N19: Y | O19: abundance of recruits | P19: 5 | Q19: 125 | S19: POL-ELE-FRW-FIX-fishery independant | T19: N
A20: POL | B20: 2017-2019 | C20: Baltic Sea | D20: ICES | E20: Salmo trutta | F20: Y | G20: NA | H20: Oder and Vistula RBD | I20: adult | J20: F | K20: sampling | L20: n.samples | M20: 100 | N20: Y | O20: biological variables | P20: 100 | Q20: 100 | S20: POL-TRS-FRW-FIX-commercial fishing | T20: N
A21: POL | B21: 2017-2019 | C21: Baltic Sea | D21: ICES | E21: Salmo trutta | F21: Y | G21: NA | H21: Pomeranian rivers | I21: parr | J21: I | K21: electrofishing | L21: n.sites | M21: 30 | N21: Y | O21: parr density | P21: 30 | Q21: 100 | S21: POL-TRS-FRW-MEL-fishery-independent | T21: N

Sheet Table1F Incidental by catch
A1: Table 1F: Incidental by-catch of birds, mammals, reptiles and fish
V2: WP years | W2: 2017-2019
V3: AR year | W3: 2017
P4: Has there be occurrence of bycatch?
A5: MS | B5: Sampling period/year(s) | C5: Region | D5: RFMO/RFO/IO | E5: Sub-area / Fishing ground | F5: Scheme | G5: Stratum ID code / Name of the survey | H5: Group of vulnerable species | I5: Expected occurence of recordings | J5: Comments | K5: Total number of PSU in the sampling year | L5: Achieved number of PSU in the sampling year | M5: Number of PSU sampled in which observers have been instructed to look for bycatch | N5: Does your sampling protocol allow for the calculation of observation effort “at haul level” (Y/N) | O5: Is there any mitigation device? (Y/N) | P5: Fish (Y/N/NA) | Q5: Mammals (Y/N/NA) | R5: Birds (Y/N/NA) | S5: Reptiles (Y/N/NA) | T5: Other (Y/N/NA) | U5: Are data stored in a national database? | V5: Are data stored in international database(s)? | W5: AR Comments
A7: POL | B7: 2017-2019 | C7: Baltic | D7: ICES | E7: 22-24 | F7: Demersal at sea and on shore | G7: POL DCT1 | H7: fish | I7: X | K7: 152 | L7: 5 | M7: 5 | N7: Y | O7: N | P7: Y | Q7: Y | R7: Y | S7: NA | T7: Y | U7: Y | V7: Y | W7: National database: NPZDRpl. International databases: ICES Bycatch DB
A8: POL | B8: 2017-2019 | C8: Baltic | D8: ICES | E8: 22-24 | F8: Demersal at sea and on shore | G8: POL GNSC1 | H8: fish, birds, mammals | I8: X | K8: 247 | L8: 1 | M8: 1 | N8: Y | O8: Y | P8: Y | Q8: Y | R8: Y | S8: NA | T8: Y | U8: Y | V8: Y | W8: Acoustic deterrent devices. National database: NPZDRpl. International databases: ICES Bycatch DB
A9: POL | B9: 2017-2019 | C9: Baltic | D9: ICES | E9: 25-32 | F9: Demersal at sea and on shore | G9: POL DCT2 | H9: fish | I9: X | K9: 1836 | L9: 13 | M9: 13 | N9: Y | O9: N | P9: Y | Q9: Y | R9: Y | S9: NA | T9: Y | U9: Y | V9: Y | W9: National database: NPZDRpl. International databases: ICES Bycatch DB
A10: POL | B10: 2017-2019 | C10: Baltic | D10: ICES | E10: 25-32 | F10: Demersal at sea and on shore | G10: POL GNSC2 | H10: fish, birds, mammals | I10: X | K10: 5589 | L10: 5 | M10: 5 | N10: Y | O10: Y | P10: Y | Q10: Y | R10: Y | S10: NA | T10: Y | U10: Y | V10: Y | W10: Acoustic deterrent devices. National database: NPZDRpl. International databases: ICES Bycatch DB
A11: POL | B11: 2017-2019 | C11: Baltic | D11: ICES | E11: 25-32 | F11: Demersal at sea and on shore | G11: POL DTF | H11: fish | I11: X | K11: 1224 | L11: 6 | M11: 6 | N11: Y | O11: N | P11: Y | Q11: Y | R11: Y | S11: NA | T11: Y | U11: Y | V11: Y | W11: National database: NPZDRpl. International databases: ICES Bycatch DB
A12: POL | B12: 2017-2019 | C12: Baltic | D12: ICES | E12: 25-32 | F12: Demersal at sea and on shore | G12: POL GNSF | H12: fish, birds, mammals | I12: X | K12: 9020 | L12: 9 | M12: 9 | N12: Y | O12: Y | P12: Y | Q12: Y | R12: Y | S12: NA | T12: Y | U12: Y | V12: Y | W12: Acoustic deterrent devices. National database: NPZDRpl. International databases: ICES Bycatch DB
A13: POL | B13: 2017-2019 | C13: Baltic Sea | D13: ICES | E13: 22-32 | F13: Pelagic at sea and on shore | G13: POL PST | H13: fish | I13: X | K13: 2675 | L13: 33 | M13: 33 | N13: Y | O13: N | P13: Y | Q13: Y | R13: Y | S13: NA | T13: Y | U13: Y | V13: Y | W13: National database: NPZDRpl. International databases: ICES Bycatch DB
A14: POL | B14: 2017-2019 | C14: Baltic Sea | D14: ICES | E14: 22-24 | F14: Pelagic at sea and on shore | G14: POL PHT1 | H14: fish | I14: X | K14: 91 | L14: 5 | M14: 5 | N14: Y | O14: N | P14: Y | Q14: Y | R14: Y | S14: NA | T14: Y | U14: Y | V14: Y
A15: POL | B15: 2017-2019 | C15: Baltic Sea | D15: ICES | E15: 22-24 | F15: Pelagic at sea and on shore | G15: POL BH1 | H15: fish, birds | I15: X | K15: 235 | L15: 6 | M15: 6 | N15: Y | O15: N | P15: Y | Q15: Y | R15: Y | S15: NA | T15: Y | U15: Y | V15: Y
A16: POL | B16: 2017-2019 | C16: Baltic Sea | D16: ICES | E16: 25-32 | F16: Pelagic at sea and on shore | G16: POL PHT2 | H16: fish | I16: X | K16: 2344 | L16: 22 | M16: 22 | N16: Y | O16: N | P16: Y | Q16: Y | R16: Y | S16: NA | T16: Y | U16: Y | V16: Y
A17: POL | B17: 2017-2019 | C17: Baltic Sea | D17: ICES | E17: 25-32 | F17: Pelagic at sea and on shore | G17: POL BH2 | H17: fish, birds | I17: X | K17: 2366 | L17: 3 | M17: 3 | N17: Y | O17: N | P17: Y | Q17: Y | R17: Y | S17: NA | T17: Y | U17: Y | V17: Y
A18: POL | B18: 2017-2019 | C18: Baltic Sea | D18: ICES | E18: 22-24 | F18: Freshwater at sea and on shore | G18: POL BFWS1 | H18: fish, birds, mammals | I18: X | K18: 3926 | L18: 9 | M18: 9 | N18: Y | O18: Y | P18: Y | Q18: Y | R18: Y | S18: NA | T18: Y | U18: Y | V18: Y | W18: Escape devise. National database: NPZDRpl. International databases: ICES Bycatch DB
A19: POL | B19: 2017-2019 | C19: Baltic Sea | D19: ICES | E19: 25-32 | F19: Freshwater at sea and on shore | G19: POL BFWS2 | H19: fish, birds, mammals | I19: X | K19: 3429 | L19: 14 | M19: 14 | N19: Y | O19: Y | P19: Y | Q19: Y | R19: Y | S19: NA | T19: Y | U19: Y | V19: Y
A20: POL | B20: 2017-2019 | C20: Baltic Sea | D20: ICES | E20: 22-32 | F20: Salmonids at sea and on shore | G20: POL GNSSAL | H20: birds, mammals | I20: X | K20: 2093 | L20: 10 | M20: 10 | N20: Y | O20: N | P20: Y | Q20: Y | R20: Y | S20: NA | T20: Y | U20: Y | V20: Y | W20: National database: NPZDRpl. International databases: ICES Bycatch DB
A21: POL | B21: 2017-2019 | C21: Baltic Sea | D21: ICES | E21: 22-32 | F21: Salmonids at sea and on shore | G21: POL LLDSAL | H21: birds, mammals | I21: X | K21: 543 | L21: 8 | M21: 8 | N21: Y | O21: N | P21: Y | Q21: Y | R21: Y | S21: NA | T21: Y | U21: Y | V21: Y
A22: POL | B22: 2017-2019 | C22: North Sea and Eastern Arctic | D22: ICES | E22: I, II | F22: at sea | G22: LDF1 | H22: fish, birds, mammals | I22: X | K22: 4 | L22: 1 | M22: 1 | N22: Y | O22: Y | P22: Y | Q22: Y | R22: Y | S22: NA | T22: Y | U22: Y | V22: Y | W22: Escape devise. National database: NPZDRpl. International databases: ICES Bycatch DB
A23: POL | B23: 2017-2019 | C23: other regions | D23: CECAF | E23: 34.1.3; 34.3.1 | F23: at sea | G23: LDF2 | H23: fish, mammals | I23: X | K23: 7 | L23: 0 | M23: 0 | N23: Y | O23: N | P23: Y | Q23: Y | R23: Y | S23: NA | T23: Y | U23: Y | V23: N | W23: No international database. Data are reported to CECAF Working Group. National database under re-development to incorporate data from Other Regions.
A24: POL | B24: 2017-2019 | C24: other regions | D24: SPRFMO | E24: SPRFMO Convention Area | F24: at sea | G24: LDF3 | H24: fish, birds, mammals | I24: X | K24: 10 | L24: 3 | M24: 3 | N24: Y | O24: Y | P24: Y | Q24: Y | R24: Y | S24: Y | T24: Y | U24: Y | V24: Y | W24: Bird Baffler -obligatory birds mitigation device in SPRFMO area. Data reported to SPRFMO Secretariat and Scientific Council. National database under re-development to incorporate data from Other Regions.
A25: POL | B25: 2017-2019 | C25: Baltic | D25: ICES | E25: 22-32 | F25: Demersal at sea and on shore | G25: POL SAN | H25: fish | I25: x | K25: 22 | L25: 1 | M25: 1 | N25: Y | O25: N | P25: Y | Q25: Y | R25: Y | S25: NA | T25: Y | U25: Y | V25: Y | W25: Sandeel fishery was not selected as a sampling frame in the WP
A26: POL | B26: 2017-2019 | C26: Baltic | D26: ICES | E26: 25-23 | F26: Demersal at sea and on shore | G26: POL COD LLS | H26: fish, birds | I26: x | K26: 601 | L26: 1 | M26: 1 | N26: Y | O26: N | P26: Y | Q26: Y | R26: Y | S26: NA | T26: Y | U26: Y | V26: Y | W26: Cod fishery using set longlines was not selected as a sampling frame in the WP

Sheet Table1G List of research survey
A1: Table 1G: List of research surveys at sea
Z2: WP years | AA2: 2017-2019
Z3: AR year | AA3: 2017
A4: MS | B4: Name of survey | C4: Acronym | D4: Mandatory (Y/N) | E4: Threshold (Y/N) | F4: Agreed at RCG level | G4: MS participation | H4: Area(s) covered | I4: Period (Month) | J4: Frequency | K4: Days at sea planned | L4: Type of sampling activities | M4: Planned target | N4: Map | O4: Relevant international planning group - RFMO/RFO/IO | P4: International database | Q4: Comments | R4: Type of MS participation | S4: In case of financial participation, is payment done? (Y/N) | T4: Days at sea achieved | U4: Achieved target | V4: Other data assimilations (Y/N) | W4: Was the survey carried out within the official time period? (Y/N) | X4: Was the survey carried out within the official survey area? (Y/N) | Y4: Indication if AR comments by MS are required concerning effort achieved | Z4: Indication if AR comments by MS are required concerning temporal and spatial coverage | AA4: AR Comments
A5: POL | B5: Baltic International Trawl Survey | C5: BITS-1Q | D5: Y | E5: N | F5: Y | G5: DEU - E; DNK - E; LTU - E; LVA - E; SWE - E | H5: IIIb-d | I5: February | J5: Annual | K5: 28 | L5: Fish Hauls | M5: 81 | N5: Fig 1.1 | O5: ICES WGBIFS | P5: DATRAS, TowData, ROSCOP | Q5: Number of planned days at sea and planned targets (no of hauls, Nm) may change between years according to recommendations from WGBIFS | R5: P | T5: 28 | U5: 81 | V5: N | W5: Y | X5: Y
A6: POL | B6: Baltic International Trawl Survey | C6: BITS-4Q | D6: Y | E6: N | F6: Y | G6: DEU - E; DNK - E; EST - E; LTU - E; LVA - E; SWE - E | H6: IIIb-d | I6: November | J6: Annual | K6: 23 | L6: Fish Hauls | M6: 60 | N6: Fig 1.2 | O6: ICES WGBIFS | P6: DATRAS, TowData, ROSCOP | R6: P | T6: 23 | U6: 56 | V6: N | W6: Y | X6: Y | AA6: Four out of 60 planned fish hauls could not be performed due to unfavourable weather conditions
A7: POL | B7: Baltic International Acoustic Survey | C7: BIAS | D7: Y | E7: N | F7: Y | G7: DEU - E; DNK - C; EST - E; FIN - E; LTU - E; LVA - E; SWE - E | H7: IIIb-d | I7: September | J7: Annual | K7: 18 | L7: Echo Nm | M7: 830 | N7: Fig 1.3 | O7: ICES WGBIFS | P7: BIAS-DB | R7: P | T7: 18 | U7: 863 | V7: N | W7: Y | X7: Y
L8: Fish Hauls | M8: 35 | U8: 39
A9: POL | B9: Sprat Acoustic Survey | C9: SPRAS | D9: Y | E9: N | F9: Y | G9: DEU - E; EST - E; LTU - E; LVA - E | H9: IIId | I9: May | J9: Annual | K9: 12 | L9: Echo Nm | M9: 830 | N9: Fig 1.3 | O9: ICES WGBIFS | P9: BASS-DB | R9: P | T9: 12 | U9: 876 | V9: N | W9: Y | X9: Y
L10: Fish Hauls | M10: 35 | U10: 32

Sheet Table1H Research survey data
A1: Table 1H: Research survey data collection and dissemination
L2: WP years | M2: 2017-2019
L3: AR year | M3: 2017
A4: MS | B4: Name of survey | C4: Acronym | D4: Type of data collected | E4: Core/ Additional variable | F4: Used as basis for advice (Y/N) | G4: Comments | H4: Was the sampling carried out? (Y/N/P) | I4: Relevant International database | J4: Was the data uploaded to the relevant database? (Y/N) | K4: Other data assimilations? (Y/N) | L4: Indication if AR comments are required by MS | M4: AR comments
A5: POL | B5: Baltic International Trawl Survey | C5: BITS-1Q | D5: Biological data for Cod 25-32 and Flounder 22-32 | E5: C | F5: Y | H5: Y | I5: DATRAS, TowData, ROSCOP | J5: Y | K5: N
D6: Cod stomachs content | E6: A | F6: N | H6: Y | I6: No existing database | J6: N | K6: N
D7: CTD by haul | E7: A | F7: N | H7: Y | I7: ICES Oceanographic DB; ICES - IROC | J7: Y | K7: N
D8: Litter by haul | E8: A | F8: N | H8: Y | I8: DATRAS | J8: Y | K8: N
D9: Marine mammal observations | E9: A | F9: N | H9: Y | I9: No existing database | J9: N | K9: N
A10: POL | B10: Baltic International Trawl Survey | C10: BITS-4Q | D10: Biological data for Cod 25-32 and Flounder 22-32 | E10: C | F10: Y | H10: Y | I10: DATRAS, TowData, ROSCOP | J10: Y | K10: N
D11: Cod stomachs content | E11: A | F11: N | H11: Y | I11: No existing database | J11: N | K11: N
D12: CTD by haul | E12: A | F12: N | H12: Y | I12: ICES Oceanographic DB; ICES - IROC | J12: Y | K12: N
D13: Litter by haul | E13: A | F13: N | H13: Y | I13: DATRAS | J13: Y | K13: N
D14: Marine mammal observations | E14: A | F14: N | H14: Y | I14: No existing database | J14: N | K14: N
A15: POL | B15: Baltic International Acoustic Survey | C15: BIAS | D15: Biological data for Herring 25-29 and Sprat 22-32 | E15: C | F15: Y | H15: Y | I15: BIAS-DB | J15: Y | K15: N
D16: CTD by haul | E16: A | F16: N | H16: Y | I16: ICES Oceanographic DB; ICES - IROC | J16: Y | K16: N
D17: Marine mammal observations | E17: A | F17: N | H17: Y | I17: No existing database | J17: N | K17: N
A18: POL | B18: Sprat Acoustic Survey | C18: SPRAS | D18: Biological data for Sprat 22-32 | E18: C | F18: Y | H18: Y | I18: BASS-DB | J18: Y | K18: N
D19: CTD by haul | E19: A | F19: N | H19: Y | I19: ICES Oceanographic DB; ICES - IROC | J19: Y | K19: N
D20: Marine mammal observations | E20: A | F20: N | H20: Y | I20: No existing database | J20: N | K20: N

Sheet Table2A Fishing activity variab
A1: Table 2A: Fishing activity variables data collection strategy
S2: WP years | T2: 2017-2019
S3: AR year | T3: 2017
A4: MS | B4: Supra region | C4: Region | D4: Variable Group | E4: Variable | F4: Fishing technique | G4: Length class | H4: Metiers (level 6) | I4: Data collected under control regulation appropriate for scientific use (Y/N/I) | J4: Type of data collected under control regulation used to calculate the estimates | K4: Expected coverage of data collected under control regulation (% of fishing trips) | L4: Additional data collection (Y/N) | M4: Data collection scheme | N4: Planned coverage of data collected under complementary data collection (% of fishing trips) | O4: Comments | P4: Data collected under control regulation accessible for scientific use (Y/N/I) | Q4: Data source for complementary data collection | R4: Achieved coverage of data collected under complementary data collection | S4: Response Rate (%) | T4: AR comments
A5: POL | B5: Baltic Sea; North Sea; Eastern Arctic; NAFO; Extended North-Western waters (Ices areas V, VI and VII) and Southern Western waters | C5: Baltic Sea (ICES areas III b-d) | D5: Effort | E5: Days at sea, Hours fished, Fishing days, kW*Fishing days, GT*Fishing days, Number of trips, Number of fishing operations | F5: Demersal trawlers and/or seiners | G5: 10-<12 | H5: All metiers | I5: Y | J5: Aggregated data from logbooks | K5: 100 | L5: N | M5: None | N5: NA | P5: Y | Q5: NA | R5: NA | S5: NA
A6: POL | B6: Baltic Sea; North Sea; Eastern Arctic; NAFO; Extended North-Western waters (Ices areas V, VI and VII) and Southern Western waters | C6: Baltic Sea (ICES areas III b-d) | D6: Effort | E6: Days at sea, Hours fished, Fishing days, kW*Fishing days, GT*Fishing days, Number of trips, Number of fishing operations | F6: Demersal trawlers and/or seiners | G6: 12-<18 | H6: All metiers | I6: Y | J6: Aggregated data from logbooks, VMS data | K6: 100 | L6: N | M6: None | N6: NA | P6: Y | Q6: NA | R6: NA | S6: NA
A7: POL | B7: Baltic Sea; North Sea; Eastern Arctic; NAFO; Extended North-Western waters (Ices areas V, VI and VII) and Southern Western waters | C7: Baltic Sea (ICES areas III b-d) | D7: Effort | E7: Days at sea, Hours fished, Fishing days, kW*Fishing days, GT*Fishing days, Number of trips, Number of fishing operations | F7: Demersal trawlers and/or seiners | G7: 18-<24 | H7: All metiers | I7: Y | J7: Aggregated data from logbooks, VMS data | K7: 100 | L7: N | M7: None | N7: NA | P7: Y | Q7: NA | R7: NA | S7: NA
A8: POL | B8: Baltic Sea; North Sea; Eastern Arctic; NAFO; Extended North-Western waters (Ices areas V, VI and VII) and Southern Western waters | C8: Baltic Sea (ICES areas III b-d) | D8: Effort | E8: Days at sea, Hours fished, Fishing days, kW*Fishing days, GT*Fishing days, Number of trips, Number of fishing operations | F8: Demersal trawlers and/or seiners | G8: 24-<40 | H8: All metiers | I8: Y | J8: Aggregated data from logbooks, VMS data | K8: 100 | L8: N | M8: None | N8: NA | P8: Y | Q8: NA | R8: NA | S8: NA
A9: POL | B9: Baltic Sea; North Sea; Eastern Arctic; NAFO; Extended North-Western waters (Ices areas V, VI and VII) and Southern Western waters | C9: Baltic Sea (ICES areas III b-d) | D9: Capacity | E9: Number of vessels, GT, kW, Vessel Age | F9: Demersal trawlers and/or seiners | G9: 10-<12 | H9: All metiers | I9: Y | J9: Aggregated data from logbooks, Fleet register | K9: 100 | L9: N | M9: None | N9: NA | P9: Y | Q9: NA | R9: NA | S9: NA
A10: POL | B10: Baltic Sea; North Sea; Eastern Arctic; NAFO; Extended North-Western waters (Ices areas V, VI and VII) and Southern Western waters | C10: Baltic Sea (ICES areas III b-d) | D10: Capacity | E10: Number of vessels, GT, kW, Vessel Age | F10: Demersal trawlers and/or seiners | G10: 12-<18 | H10: All metiers | I10: Y | J10: Aggregated data from logbooks, Fleet register | K10: 100 | L10: N | M10: None | N10: NA | P10: Y | Q10: NA | R10: NA | S10: NA
A11: POL | B11: Baltic Sea; North Sea; Eastern Arctic; NAFO; Extended North-Western waters (Ices areas V, VI and VII) and Southern Western waters | C11: Baltic Sea (ICES areas III b-d) | D11: Capacity | E11: Number of vessels, GT, kW, Vessel Age | F11: Demersal trawlers and/or seiners | G11: 18-<24 | H11: All metiers | I11: Y | J11: Aggregated data from logbooks, Fleet register | K11: 100 | L11: N | M11: None | N11: NA | P11: Y | Q11: NA | R11: NA | S11: NA
A12: POL | B12: Baltic Sea; North Sea; Eastern Arctic; NAFO; Extended North-Western waters (Ices areas V, VI and VII) and Southern Western waters | C12: Baltic Sea (ICES areas III b-d) | D12: Capacity | E12: Number of vessels, GT, kW, Vessel Age | F12: Demersal trawlers and/or seiners | G12: 24-<40 | H12: All metiers | I12: Y | J12: Aggregated data from logbooks, Fleet register | K12: 100 | L12: N | M12: None | N12: NA | P12: Y | Q12: NA | R12: NA | S12: NA
A13: POL | B13: Baltic Sea; North Sea; Eastern Arctic; NAFO; Extended North-Western waters (Ices areas V, VI and VII) and Southern Western waters | C13: Baltic Sea (ICES areas III b-d) | D13: Landings | E13: Value of landings total and per commercial species, Live Weight of landings total and per species, Prices by commercial species | F13: Demersal trawlers and/or seiners | G13: 10-<12 | H13: All metiers | I13: Y | J13: Aggregated data from logbooks and sales notes | K13: 100 | L13: N | M13: None | N13: NA | P13: Y | Q13: NA | R13: NA | S13: NA
A14: POL | B14: Baltic Sea; North Sea; Eastern Arctic; NAFO; Extended North-Western waters (Ices areas V, VI and VII) and Southern Western waters | C14: Baltic Sea (ICES areas III b-d) | D14: Landings | E14: Value of landings total and per commercial species, Live Weight of landings total and per species, Prices by commercial species | F14: Demersal trawlers and/or seiners | G14: 12-<18 | H14: All metiers | I14: Y | J14: Aggregated data from logbooks and sales notes, VMS data | K14: 100 | L14: N | M14: None | N14: NA | P14: Y | Q14: NA | R14: NA | S14: NA
A15: POL | B15: Baltic Sea; North Sea; Eastern Arctic; NAFO; Extended North-Western waters (Ices areas V, VI and VII) and Southern Western waters | C15: Baltic Sea (ICES areas III b-d) | D15: Landings | E15: Value of landings total and per commercial species, Live Weight of landings total and per species, Prices by commercial species | F15: Demersal trawlers and/or seiners | G15: 18-<24 | H15: All metiers | I15: Y | J15: Aggregated data from logbooks and sales notes, VMS data | K15: 100 | L15: N | M15: None | N15: NA | P15: Y | Q15: NA | R15: NA | S15: NA
A16: POL | B16: Baltic Sea; North Sea; Eastern Arctic; NAFO; Extended North-Western waters (Ices areas V, VI and VII) and Southern Western waters | C16: Baltic Sea (ICES areas III b-d) | D16: Landings | E16: Value of landings total and per commercial species, Live Weight of landings total and per species, Prices by commercial species | F16: Demersal trawlers and/or seiners | G16: 24-<40 | H16: All metiers | I16: Y | J16: Aggregated data from logbooks and sales notes, VMS data | K16: 100 | L16: N | M16: None | N16: NA | P16: Y | Q16: NA | R16: NA | S16: NA
A17: POL | B17: Baltic Sea; North Sea; Eastern Arctic; NAFO; Extended North-Western waters (Ices areas V, VI and VII) and Southern Western waters | C17: Baltic Sea (ICES areas III b-d) | D17: Effort | E17: Days at sea, Hours fished, Fishing days, kW*Fishing days, GT*Fishing days, Number of trips, Number of fishing operations | F17: Pelagic trawlers | G17: 12-<18 | H17: All metiers | I17: Y | J17: Aggregated data from logbooks, VMS data | K17: 100 | L17: N | M17: None | N17: NA | P17: Y | Q17: NA | R17: NA | S17: NA
A18: POL | B18: Baltic Sea; North Sea; Eastern Arctic; NAFO; Extended North-Western waters (Ices areas V, VI and VII) and Southern Western waters | C18: Baltic Sea (ICES areas III b-d) | D18: Effort | E18: Days at sea, Hours fished, Fishing days, kW*Fishing days, GT*Fishing days, Number of trips, Number of fishing operations | F18: Pelagic trawlers | G18: 18-<24 | H18: All metiers | I18: Y | J18: Aggregated data from logbooks, VMS data | K18: 100 | L18: N | M18: None | N18: NA | P18: Y | Q18: NA | R18: NA | S18: NA
A19: POL | B19: Baltic Sea; North Sea; Eastern Arctic; NAFO; Extended North-Western waters (Ices areas V, VI and VII) and Southern Western waters | C19: Baltic Sea (ICES areas III b-d) | D19: Effort | E19: Days at sea, Hours fished, Fishing days, kW*Fishing days, GT*Fishing days, Number of trips, Number of fishing operations | F19: Pelagic trawlers | G19: 24-<40 | H19: All metiers | I19: Y | J19: Aggregated data from logbooks, VMS data | K19: 100 | L19: N | M19: None | N19: NA | P19: Y | Q19: NA | R19: NA | S19: NA
A20: POL | B20: Baltic Sea; North Sea; Eastern Arctic; NAFO; Extended North-Western waters (Ices areas V, VI and VII) and Southern Western waters | C20: Baltic Sea (ICES areas III b-d) | D20: Capacity | E20: Number of vessels, GT, kW, Vessel Age | F20: Pelagic trawlers | G20: 12-<18 | H20: All metiers | I20: Y | J20: Aggregated data from logbooks, Fleet register | K20: 100 | L20: N | M20: None | N20: NA | P20: Y | Q20: NA | R20: NA | S20: NA
A21: POL | B21: Baltic Sea; North Sea; Eastern Arctic; NAFO; Extended North-Western waters (Ices areas V, VI and VII) and Southern Western waters | C21: Baltic Sea (ICES areas III b-d) | D21: Capacity | E21: Number of vessels, GT, kW, Vessel Age | F21: Pelagic trawlers | G21: 18-<24 | H21: All metiers | I21: Y | J21: Aggregated data from logbooks, Fleet register | K21: 100 | L21: N | M21: None | N21: NA | P21: Y | Q21: NA | R21: NA | S21: NA
A22: POL | B22: Baltic Sea; North Sea; Eastern Arctic; NAFO; Extended North-Western waters (Ices areas V, VI and VII) and Southern Western waters | C22: Baltic Sea (ICES areas III b-d) | D22: Capacity | E22: Number of vessels, GT, kW, Vessel Age | F22: Pelagic trawlers | G22: 24-<40 | H22: All metiers | I22: Y | J22: Aggregated data from logbooks, Fleet register | K22: 100 | L22: N | M22: None | N22: NA | P22: Y | Q22: NA | R22: NA | S22: NA
A23: POL | B23: Baltic Sea; North Sea; Eastern Arctic; NAFO; Extended North-Western waters (Ices areas V, VI and VII) and Southern Western waters | C23: Baltic Sea (ICES areas III b-d) | D23: Landings | E23: Value of landings total and per commercial species, Live Weight of landings total and per species, Prices by commercial species | F23: Pelagic trawlers | G23: 12-<18 | H23: All metiers | I23: Y | J23: Aggregated data from logbooks and sales notes, VMS data | K23: 100 | L23: N | M23: None | N23: NA | P23: Y | Q23: NA | R23: NA | S23: NA
A24: POL | B24: Baltic Sea; North Sea; Eastern Arctic; NAFO; Extended North-Western waters (Ices areas V, VI and VII) and Southern Western waters | C24: Baltic Sea (ICES areas III b-d) | D24: Landings | E24: Value of landings total and per commercial species, Live Weight of landings total and per species, Prices by commercial species | F24: Pelagic trawlers | G24: 18-<24 | H24: All metiers | I24: Y | J24: Aggregated data from logbooks and sales notes, VMS data | K24: 100 | L24: N | M24: None | N24: NA | P24: Y | Q24: NA | R24: NA | S24: NA
A25: POL | B25: Baltic Sea; North Sea; Eastern Arctic; NAFO; Extended North-Western waters (Ices areas V, VI and VII) and Southern Western waters | C25: Baltic Sea (ICES areas III b-d) | D25: Landings | E25: Value of landings total and per commercial species, Live Weight of landings total and per species, Prices by commercial species | F25: Pelagic trawlers | G25: 24-<40 | H25: All metiers | I25: Y | J25: Aggregated data from logbooks and sales notes, VMS data | K25: 100 | L25: N | M25: None | N25: NA | P25: Y | Q25: NA | R25: NA | S25: NA
A26: POL | B26: Baltic Sea; North Sea; Eastern Arctic; NAFO; Extended North-Western waters (Ices areas V, VI and VII) and Southern Western waters | C26: Baltic Sea (ICES areas III b-d) | D26: Effort | E26: Days at sea, Hours fished, Fishing days, kW*Fishing days, GT*Fishing days, Number of trips, Number of nets | F26: Drift and/or fixed netters | G26: 0-<10 | H26: All metiers | I26: Y | J26: Data from monthly catch reports | K26: 100 | L26: N | M26: None | N26: NA | O26: Mesh size information is missing which causes difficulties in metier identification. | P26: Y | Q26: NA | R26: NA | S26: NA
A27: POL | B27: Baltic Sea; North Sea; Eastern Arctic; NAFO; Extended North-Western waters (Ices areas V, VI and VII) and Southern Western waters | C27: Baltic Sea (ICES areas III b-d) | D27: Effort | E27: Days at sea, Hours fished, Fishing days, kW*Fishing days, GT*Fishing days, Number of trips, Number of fishing operations, Number of nets | F27: Drift and/or fixed netters | G27: 10-<12 | H27: All metiers | I27: Y | J27: Aggregated data from logbooks | K27: 100 | L27: N | M27: None | N27: NA | P27: Y | Q27: NA | R27: NA | S27: NA
A28: POL | B28: Baltic Sea; North Sea; Eastern Arctic; NAFO; Extended North-Western waters (Ices areas V, VI and VII) and Southern Western waters | C28: Baltic Sea (ICES areas III b-d) | D28: Effort | E28: Days at sea, Hours fished, Fishing days, kW*Fishing days, GT*Fishing days, Number of trips, Number of fishing operations, Number of nets | F28: Drift and/or fixed netters | G28: 12-<18 | H28: All metiers | I28: Y | J28: Aggregated data from logbooks, VMS data | K28: 100 | L28: N | M28: None | N28: NA | P28: Y | Q28: NA | R28: NA | S28: NA
A29: POL | B29: Baltic Sea; North Sea; Eastern Arctic; NAFO; Extended North-Western waters (Ices areas V, VI and VII) and Southern Western waters | C29: Baltic Sea (ICES areas III b-d) | D29: Capacity | E29: Number of vessels, GT, kW, Vessel Age | F29: Drift and/or fixed netters | G29: 0-<10 | H29: All metiers | I29: Y | J29: Data from monthly catch reports, Fleet register | K29: 100 | L29: N | M29: None | N29: NA | O29: Mesh size information is missing which causes difficulties in metier identification. | P29: Y | Q29: NA | R29: NA | S29: NA
A30: POL | B30: Baltic Sea; North Sea; Eastern Arctic; NAFO; Extended North-Western waters (Ices areas V, VI and VII) and Southern Western waters | C30: Baltic Sea (ICES areas III b-d) | D30: Capacity | E30: Number of vessels, GT, kW, Vessel Age | F30: Drift and/or fixed netters | G30: 10-<12 | H30: All metiers | I30: Y | J30: Aggregated data from logbooks, Fleet register | K30: 100 | L30: N | M30: None | N30: NA | P30: Y | Q30: NA | R30: NA | S30: NA
A31: POL | B31: Baltic Sea; North Sea; Eastern Arctic; NAFO; Extended North-Western waters (Ices areas V, VI and VII) and Southern Western waters | C31: Baltic Sea (ICES areas III b-d) | D31: Capacity | E31: Number of vessels, GT, kW, Vessel Age | F31: Drift and/or fixed netters | G31: 12-<18 | H31: All metiers | I31: Y | J31: Aggregated data from logbooks, Fleet register | K31: 100 | L31: N | M31: None | N31: NA | P31: Y | Q31: NA | R31: NA | S31: NA
A32: POL | B32: Baltic Sea; North Sea; Eastern Arctic; NAFO; Extended North-Western waters (Ices areas V, VI and VII) and Southern Western waters | C32: Baltic Sea (ICES areas III b-d) | D32: Landings | E32: Value of landings total and per commercial species, Live Weight of landings total and per species, Prices by commercial species | F32: Drift and/or fixed netters | G32: 0-<10 | H32: All metiers | I32: Y | J32: Data from monthly catch reports ad sales notes | K32: 100 | L32: N | M32: None | N32: NA | O32: Mesh size information is missing which causes difficulties in metier identification. | P32: Y | Q32: NA | R32: NA | S32: NA | T32: Limited access to sales notes which are stored in a paper form.
A33: POL | B33: Baltic Sea; North Sea; Eastern Arctic; NAFO; Extended North-Western waters (Ices areas V, VI and VII) and Southern Western waters | C33: Baltic Sea (ICES areas III b-d) | D33: Landings | E33: Value of landings total and per commercial species, Live Weight of landings total and per species, Prices by commercial species | F33: Drift and/or fixed netters | G33: 10-<12 | H33: All metiers | I33: Y | J33: Aggregated data from logbooks and sales notes | K33: 100 | L33: N | M33: None | N33: NA | P33: Y | Q33: NA | R33: NA | S33: NA
A34: POL | B34: Baltic Sea; North Sea; Eastern Arctic; NAFO; Extended North-Western waters (Ices areas V, VI and VII) and Southern Western waters | C34: Baltic Sea (ICES areas III b-d) | D34: Landings | E34: Value of landings total and per commercial species, Live Weight of landings total and per species, Prices by commercial species | F34: Drift and/or fixed netters | G34: 12-<18 | H34: All metiers | I34: Y | J34: Aggregated data from logbooks and sales notes, VMS data | K34: 100 | L34: N | M34: None | N34: NA | P34: Y | Q34: NA | R34: NA | S34: NA
A35: POL | B35: Baltic Sea; North Sea; Eastern Arctic; NAFO; Extended North-Western waters (Ices areas V, VI and VII) and Southern Western waters | C35: Baltic Sea (ICES areas III b-d) | D35: Effort | E35: Days at sea, Hours fished, Fishing days, kW*Fishing days, GT*Fishing days, Number of trips, Number of pots/traps | F35: Vessels using Pots and/or traps | G35: 0-<10 | H35: All metiers | I35: Y | J35: Data from monthly catch reports | K35: 100 | L35: N | M35: None | N35: NA | O35: Mesh size information is missing which causes difficulties in metier identification. | P35: Y | Q35: NA | R35: NA | S35: NA
A36: POL | B36: Baltic Sea; North Sea; Eastern Arctic; NAFO; Extended North-Western waters (Ices areas V, VI and VII) and Southern Western waters | C36: Baltic Sea (ICES areas III b-d) | D36: Effort | E36: Days at sea, Hours fished, Fishing days, kW*Fishing days, GT*Fishing days, Number of trips, Number of fishing operations, Number of pots/traps | F36: Vessels using Pots and/or traps | G36: 10-<12 | H36: All metiers | I36: Y | J36: Aggregated data from logbooks | K36: 100 | L36: N | M36: None | N36: NA | P36: Y | Q36: NA | R36: NA | S36: NA
A37: POL | B37: Baltic Sea; North Sea; Eastern Arctic; NAFO; Extended North-Western waters (Ices areas V, VI and VII) and Southern Western waters | C37: Baltic Sea (ICES areas III b-d) | D37: Capacity | E37: Number of vessels, GT, kW, Vessel Age | F37: Vessels using Pots and/or traps | G37: 0-<10 | H37: All metiers | I37: Y | J37: Data from monthly catch reports, Fleet register | K37: 100 | L37: N | M37: None | N37: NA | O37: Mesh size information is missing which causes difficulties in metier identification. | P37: Y | Q37: NA | R37: NA | S37: NA
A38: POL | B38: Baltic Sea; North Sea; Eastern Arctic; NAFO; Extended North-Western waters (Ices areas V, VI and VII) and Southern Western waters | C38: Baltic Sea (ICES areas III b-d) | D38: Capacity | E38: Number of vessels, GT, kW, Vessel Age | F38: Vessels using Pots and/or traps | G38: 10-<12 | H38: All metiers | I38: Y | J38: Aggregated data from logbooks, Fleet register | K38: 100 | L38: N | M38: None | N38: NA | P38: Y | Q38: NA | R38: NA | S38: NA
A39: POL | B39: Baltic Sea; North Sea; Eastern Arctic; NAFO; Extended North-Western waters (Ices areas V, VI and VII) and Southern Western waters | C39: Baltic Sea (ICES areas III b-d) | D39: Landings | E39: Value of landings total and per commercial species, Live Weight of landings total and per species, Prices by commercial species | F39: Vessels using Pots and/or traps | G39: 0-<10 | H39: All metiers | I39: Y | J39: Data from monthly catch reports ad sales notes | K39: 100 | L39: N | M39: None | N39: NA | O39: Mesh size information is missing which causes difficulties in metier identification. | P39: Y | Q39: NA | R39: NA | S39: NA | T39: Limited access to sales notes which are stored in a paper form.
A40: POL | B40: Baltic Sea; North Sea; Eastern Arctic; NAFO; Extended North-Western waters (Ices areas V, VI and VII) and Southern Western waters | C40: Baltic Sea (ICES areas III b-d) | D40: Landings | E40: Value of landings total and per commercial species, Live Weight of landings total and per species, Prices by commercial species | F40: Vessels using Pots and/or traps | G40: 10-<12 | H40: All metiers | I40: Y | J40: Aggregated data from logbooks and sales notes | K40: 100 | L40: N | M40: None | N40: NA | P40: Y | Q40: NA | R40: NA | S40: NA
A41: POL | B41: Baltic Sea; North Sea; Eastern Arctic; NAFO; Extended North-Western waters (Ices areas V, VI and VII) and Southern Western waters | C41: Baltic Sea (ICES areas III b-d) | D41: Effort | E41: Days at sea, Hours fished, Fishing days, kW*Fishing days, GT*Fishing days, Number of trips, Number of hooks | F41: Vessels using hooks | G41: 0-<10 | H41: All metiers | I41: Y | J41: Data from monthly catch reports | K41: 100 | L41: N | M41: None | N41: NA | O41: Mesh size information is missing which causes difficulties in metier identification. | P41: Y | Q41: NA | R41: NA | S41: NA
A42: POL | B42: Baltic Sea; North Sea; Eastern Arctic; NAFO; Extended North-Western waters (Ices areas V, VI and VII) and Southern Western waters | C42: Baltic Sea (ICES areas III b-d) | D42: Effort | E42: Days at sea, Hours fished, Fishing days, kW*Fishing days, GT*Fishing days, Number of trips, Number of fishing operations, Number of hooks | F42: Vessels using hooks | G42: 10-<12 | H42: All metiers | I42: Y | J42: Aggregated data from logbooks | K42: 100 | L42: N | M42: None | N42: NA | P42: Y | Q42: NA | R42: NA | S42: NA
A43: POL | B43: Baltic Sea; North Sea; Eastern Arctic; NAFO; Extended North-Western waters (Ices areas V, VI and VII) and Southern Western waters | C43: Baltic Sea (ICES areas III b-d) | D43: Effort | E43: Days at sea, Hours fished, Fishing days, kW*Fishing days, GT*Fishing days, Number of trips, Number of fishing operations, Number of hooks | F43: Vessels using hooks | G43: 12-<18 | H43: All metiers | I43: Y | J43: Aggregated data from logbooks, VMS data | K43: 100 | L43: N | M43: None | N43: NA | P43: Y | Q43: NA | R43: NA | S43: NA
A44: POL | B44: Baltic Sea; North Sea; Eastern Arctic; NAFO; Extended North-Western waters (Ices areas V, VI and VII) and Southern Western waters | C44: Baltic Sea (ICES areas III b-d) | D44: Effort | E44: Days at sea, Hours fished, Fishing days, kW*Fishing days, GT*Fishing days, Number of trips, Number of fishing operations, Number of hooks | F44: Vessels using hooks | G44: 18-<24 | H44: All metiers | I44: Y | J44: Aggregated data from logbooks, VMS data | K44: 100 | L44: N | M44: None | N44: NA | P44: Y | Q44: NA | R44: NA | S44: NA
A45: POL | B45: Baltic Sea; North Sea; Eastern Arctic; NAFO; Extended North-Western waters (Ices areas V, VI and VII) and Southern Western waters | C45: Baltic Sea (ICES areas III b-d) | D45: Capacity | E45: Number of vessels, GT, kW, Vessel Age | F45: Vessels using hooks | G45: 0-<10 | H45: All metiers | I45: Y | J45: Data from monthly catch reports, Fleet register | K45: 100 | L45: N | M45: None | N45: NA | O45: Mesh size information is missing which causes difficulties in metier identification. | P45: Y | Q45: NA | R45: NA | S45: NA
A46: POL | B46: Baltic Sea; North Sea; Eastern Arctic; NAFO; Extended North-Western waters (Ices areas V, VI and VII) and Southern Western waters | C46: Baltic Sea (ICES areas III b-d) | D46: Capacity | E46: Number of vessels, GT, kW, Vessel Age | F46: Vessels using hooks | G46: 10-<12 | H46: All metiers | I46: Y | J46: Aggregated data from logbooks, Fleet register | K46: 100 | L46: N | M46: None | N46: NA | P46: Y | Q46: NA | R46: NA | S46: NA
A47: POL | B47: Baltic Sea; North Sea; Eastern Arctic; NAFO; Extended North-Western waters (Ices areas V, VI and VII) and Southern Western waters | C47: Baltic Sea (ICES areas III b-d) | D47: Capacity | E47: Number of vessels, GT, kW, Vessel Age | F47: Vessels using hooks | G47: 12-<18 | H47: All metiers | I47: Y | J47: Aggregated data from logbooks, Fleet register | K47: 100 | L47: N | M47: None | N47: NA | P47: Y | Q47: NA | R47: NA | S47: NA
A48: POL | B48: Baltic Sea; North Sea; Eastern Arctic; NAFO; Extended North-Western waters (Ices areas V, VI and VII) and Southern Western waters | C48: Baltic Sea (ICES areas III b-d) | D48: Capacity | E48: Number of vessels, GT, kW, Vessel Age | F48: Vessels using hooks | G48: 18-<24 | H48: All metiers | I48: Y | J48: Aggregated data from logbooks, Fleet register | K48: 100 | L48: N | M48: None | N48: NA | P48: Y | Q48: NA | R48: NA | S48: NA
A49: POL | B49: Baltic Sea; North Sea; Eastern Arctic; NAFO; Extended North-Western waters (Ices areas V, VI and VII) and Southern Western waters | C49: Baltic Sea (ICES areas III b-d) | D49: Landings | E49: Value of landings total and per commercial species, Live Weight of landings total and per species, Prices by commercial species | F49: Vessels using hooks | G49: 0-<10 | H49: All metiers | I49: Y | J49: Data from monthly catch reports ad sales notes | K49: 100 | L49: N | M49: None | N49: NA | O49: Mesh size information is missing which causes difficulties in metier identification. | P49: Y | Q49: NA | R49: NA | S49: NA | T49: Limited access to sales notes which are stored in a paper form.
A50: POL | B50: Baltic Sea; North Sea; Eastern Arctic; NAFO; Extended North-Western waters (Ices areas V, VI and VII) and Southern Western waters | C50: Baltic Sea (ICES areas III b-d) | D50: Landings | E50: Value of landings total and per commercial species, Live Weight of landings total and per species, Prices by commercial species | F50: Vessels using hooks | G50: 10-<12 | H50: All metiers | I50: Y | J50: Aggregated data from logbooks and sales notes | K50: 100 | L50: N | M50: None | N50: NA | P50: Y | Q50: NA | R50: NA | S50: NA
A51: POL | B51: Baltic Sea; North Sea; Eastern Arctic; NAFO; Extended North-Western waters (Ices areas V, VI and VII) and Southern Western waters | C51: Baltic Sea (ICES areas III b-d) | D51: Landings | E51: Value of landings total and per commercial species, Live Weight of landings total and per species, Prices by commercial species | F51: Vessels using hooks | G51: 12-<18 | H51: All metiers | I51: Y | J51: Aggregated data from logbooks and sales notes, VMS data | K51: 100 | L51: N | M51: None | N51: NA | P51: Y | Q51: NA | R51: NA | S51: NA
A52: POL | B52: Baltic Sea; North Sea; Eastern Arctic; NAFO; Extended North-Western waters (Ices areas V, VI and VII) and Southern Western waters | C52: Baltic Sea (ICES areas III b-d) | D52: Landings | E52: Value of landings total and per commercial species, Live Weight of landings total and per species, Prices by commercial species | F52: Vessels using hooks | G52: 18-<24 | H52: All metiers | I52: Y | J52: Aggregated data from logbooks and sales notes, VMS data | K52: 100 | L52: N | M52: None | N52: NA | P52: Y | Q52: NA | R52: NA | S52: NA
A53: POL | B53: Baltic Sea; North Sea; Eastern Arctic; NAFO; Extended North-Western waters (Ices areas V, VI and VII) and Southern Western waters | C53: Eastern Arctic (ICES areas I and II) | D53: Effort | E53: Days at sea, Hours fished, Fishing days, kW*Fishing days, GT*Fishing days, Number of trips, Number of fishing operations | F53: Demersal trawlers and/or seiners | G53: 40 m or larger | H53: All metiers | I53: Y | J53: Aggregated data from logbooks, VMS data | K53: 100 | L53: N | M53: None | N53: NA | P53: Y | Q53: NA | R53: NA | S53: NA
A54: POL | B54: Baltic Sea; North Sea; Eastern Arctic; NAFO; Extended North-Western waters (Ices areas V, VI and VII) and Southern Western waters | C54: Eastern Arctic (ICES areas I and II) | D54: Capacity | E54: Number of vessels, GT, kW, Vessel Age | F54: Demersal trawlers and/or seiners | G54: 40 m or larger | H54: All metiers | I54: Y | J54: Aggregated data from logbooks, Fleet register | K54: 100 | L54: N | M54: None | N54: NA | P54: Y | Q54: NA | R54: NA | S54: NA
A55: POL | B55: Baltic Sea; North Sea; Eastern Arctic; NAFO; Extended North-Western waters (Ices areas V, VI and VII) and Southern Western waters | C55: Eastern Arctic (ICES areas I and II) | D55: Landings | E55: Live Weight of landings total and per species | F55: Demersal trawlers and/or seiners | G55: 40 m or larger | H55: All metiers | I55: Y | J55: Aggregated data from logbooks and sales notes, VMS data | K55: 100 | L55: N | M55: None | N55: NA | P55: Y | Q55: NA | R55: NA | S55: NA
A56: POL | B56: Other regions | C56: CECAF | D56: Effort | E56: Days at sea, Hours fished, Fishing days, kW*Fishing days, GT*Fishing days, Number of trips, Number of fishing operations | F56: Pelagic trawlers | G56: 40 m or larger | H56: All metiers | I56: Y | J56: Aggregated data from logbooks, VMS data | K56: 100 | L56: N | M56: None | N56: NA | P56: Y | Q56: NA | R56: NA | S56: NA
A57: POL | B57: Other regions | C57: CECAF | D57: Capacity | E57: Number of vessels, GT, kW, Vessel Age | F57: Pelagic trawlers | G57: 40 m or larger | H57: All metiers | I57: Y | J57: Aggregated data from logbooks, Fleet register | K57: 100 | L57: N | M57: None | N57: NA | P57: Y | Q57: NA | R57: NA | S57: NA
A58: POL | B58: Other regions | C58: CECAF | D58: Landings | E58: Live Weight of landings total and per species | F58: Pelagic trawlers | G58: 40 m or larger | H58: All metiers | I58: Y | J58: Aggregated data from logbooks and sales notes, VMS data | K58: 100 | L58: N | M58: None | N58: NA | P58: Y | Q58: NA | R58: NA | S58: NA
A59: POL | B59: Other regions | C59: SPRFMO | D59: Effort | E59: Days at sea, Hours fished, Fishing days, kW*Fishing days, GT*Fishing days, Number of trips, Number of fishing operations | F59: Pelagic trawlers | G59: 40 m or larger | H59: All metiers | I59: Y | J59: Aggregated data from logbooks, VMS data | K59: 100 | L59: N | M59: None | N59: NA | P59: Y | Q59: NA | R59: NA | S59: NA
A60: POL | B60: Other regions | C60: SPRFMO | D60: Capacity | E60: Number of vessels, GT, kW, Vessel Age | F60: Pelagic trawlers | G60: 40 m or larger | H60: All metiers | I60: Y | J60: Aggregated data from logbooks, Fleet register | K60: 100 | L60: N | M60: None | N60: NA | P60: Y | Q60: NA | R60: NA | S60: NA
A61: POL | B61: Other regions | C61: SPRFMO | D61: Landings | E61: Live Weight of landings total and per species | F61: Pelagic trawlers | G61: 40 m or larger | H61: All metiers | I61: Y | J61: Aggregated data from logbooks and sales notes, VMS data | K61: 100 | L61: N | M61: None | N61: NA | P61: Y | Q61: NA | R61: NA | S61: NA

Sheet Table3A Pop segment fisher
A1: Table 3A: Population segments for collection of economic and social data for fisheries
Q2: WP years | R2: 2017-2019
Q3: AR year | R3: 2017
A4: MS | B4: Supra region | C4: Fishing technique | D4: Length class | E4: Cluster Name | F4: Type of variables (E/S) | G4: Variable | H4: Data Source | I4: Type of data collection scheme | J4: Frequency | K4: Planned sample rate % | L4: Comments | M4: Frame population | N4: Achieved sample number | O4: Achieved Sample Rate % | P4: Response Rate % | Q4: Achieved Sample no/Planned sample no. | R4: AR Comments
A5: POL | B5: Baltic Sea, North Sea and Eastern Arctic, and North Atlantic | C5: Passive gears | D5: 00-<10 m | E5: Passive Gears 0-10 m | F5: E | G5: Gross value of landings | H5: questionnaires/first sale document | I5: A | J5: Every Year | K5: 1 | M5: 513 | N5: 513 | O5: =N5/M5 -> 1 | P5: =N5/M5 -> 1 | Q5: =N5/(M5*K5/100) -> 100
A6: POL | B6: Baltic Sea, North Sea and Eastern Arctic, and North Atlantic | C6: Passive gears | D6: 00-<10 m | E6: Passive Gears 0-10 m | F6: E | G6: Income from leasing out quota or other fishing rights | H6: not relevant | M6: N/A | N6: N/A | O6: N/A | P6: N/A | Q6: N/A
A7: POL | B7: Baltic Sea, North Sea and Eastern Arctic, and North Atlantic | C7: Passive gears | D7: 00-<10 m | E7: Passive Gears 0-10 m | F7: E | G7: Other income | H7: questionnaires | I7: A | J7: Every Year | K7: 1 | M7: 513 | N7: 242 | O7: =N7/M7 -> 0.4717348928 | P7: =N7/M7 -> 0.4717348928 | Q7: 47.17348928
A8: POL | B8: Baltic Sea, North Sea and Eastern Arctic, and North Atlantic | C8: Passive gears | D8: 00-<10 m | E8: Passive Gears 0-10 m | F8: E | G8: Wages and salaries of crew | H8: questionnaires | I8: A | J8: Every Year | K8: 1 | M8: 513 | N8: 242 | O8: 0.4717348928 | P8: =N8/M8 -> 0.4717348928 | Q8: 47.17348928
A9: POL | B9: Baltic Sea, North Sea and Eastern Arctic, and North Atlantic | C9: Passive gears | D9: 00-<10 m | E9: Passive Gears 0-10 m | F9: E | G9: Imputed value of unpaid labour | H9: estimation | I9: D | J9: Every Year | K9: 1 | M9: 513 | N9: 242 | O9: 0.4717348928 | P9: 0.4717348928 | Q9: 47.17348928
A10: POL | B10: Baltic Sea, North Sea and Eastern Arctic, and North Atlantic | C10: Passive gears | D10: 00-<10 m | E10: Passive Gears 0-10 m | F10: E | G10: Energy costs | H10: questionnaires | I10: A | J10: Every Year | K10: 1 | M10: 513 | N10: 242 | O10: 0.4717348928 | P10: 0.4717348928 | Q10: 47.17348928
A11: POL | B11: Baltic Sea, North Sea and Eastern Arctic, and North Atlantic | C11: Passive gears | D11: 00-<10 m | E11: Passive Gears 0-10 m | F11: E | G11: Repair and maintenance costs | H11: questionnaires | I11: A | J11: Every Year | K11: 1 | M11: 513 | N11: 242 | O11: 0.4717348928 | P11: 0.4717348928 | Q11: 47.17348928
A12: POL | B12: Baltic Sea, North Sea and Eastern Arctic, and North Atlantic | C12: Passive gears | D12: 00-<10 m | E12: Passive Gears 0-10 m | F12: E | G12: Variable costs | H12: questionnaires | I12: A | J12: Every Year | K12: 1 | M12: 513 | N12: 242 | O12: 0.4717348928 | P12: 0.4717348928 | Q12: 47.17348928
A13: POL | B13: Baltic Sea, North Sea and Eastern Arctic, and North Atlantic | C13: Passive gears | D13: 00-<10 m | E13: Passive Gears 0-10 m | F13: E | G13: Non-variable costs | H13: questionnaires | I13: A | J13: Every Year | K13: 1 | M13: 513 | N13: 242 | O13: 0.4717348928 | P13: 0.4717348928 | Q13: 47.17348928
A14: POL | B14: Baltic Sea, North Sea and Eastern Arctic, and North Atlantic | C14: Passive gears | D14: 00-<10 m | E14: Passive Gears 0-10 m | F14: E | G14: Lease/rental payments for quota or other fishing rights | H14: questionnaires | I14: A | J14: Every Year | K14: 1 | M14: 513 | N14: 242 | O14: 0.4717348928 | P14: 0.4717348928 | Q14: 47.17348928
A15: POL | B15: Baltic Sea, North Sea and Eastern Arctic, and North Atlantic | C15: Passive gears | D15: 00-<10 m | E15: Passive Gears 0-10 m | F15: E | G15: Operating Subsidies | H15: questionnaires | I15: A | J15: Every Year | K15: 1 | M15: 513 | N15: 242 | O15: 0.4717348928 | P15: 0.4717348928 | Q15: 47.17348928
A16: POL | B16: Baltic Sea, North Sea and Eastern Arctic, and North Atlantic | C16: Passive gears | D16: 00-<10 m | E16: Passive Gears 0-10 m | F16: E | G16: Subsidies on investments | H16: questionnaires | I16: A | J16: Every Year | K16: 1 | M16: 513 | N16: 242 | O16: 0.4717348928 | P16: 0.4717348928 | Q16: 47.17348928
A17: POL | B17: Baltic Sea, North Sea and Eastern Arctic, and North Atlantic | C17: Passive gears | D17: 00-<10 m | E17: Passive Gears 0-10 m | F17: E | G17: Lease/rental payments for quota or other fishing rights | H17: not relevant | M17: N/A | N17: N/A | O17: N/A | P17: N/A | Q17: N/A
A18: POL | B18: Baltic Sea, North Sea and Eastern Arctic, and North Atlantic | C18: Passive gears | D18: 00-<10 m | E18: Passive Gears 0-10 m | F18: E | G18: Consumption of fixed capital | H18: questionnaires | I18: A | J18: Every Year | K18: 1 | M18: 513 | N18: 242 | O18: 0.4717348928 | P18: 0.4717348928 | Q18: 47.17348928
A19: POL | B19: Baltic Sea, North Sea and Eastern Arctic, and North Atlantic | C19: Passive gears | D19: 00-<10 m | E19: Passive Gears 0-10 m | F19: E | G19: Value of physical capital | H19: questionnaires | I19: A | J19: Every Year | K19: 1 | M19: 513 | N19: 242 | O19: 0.4717348928 | P19: 0.4717348928 | Q19: 47.17348928
A20: POL | B20: Baltic Sea, North Sea and Eastern Arctic, and North Atlantic | C20: Passive gears | D20: 00-<10 m | E20: Passive Gears 0-10 m | F20: E | G20: Value of quota and other fishing rights | H20: not relevant | M20: N/A | N20: N/A | O20: N/A | P20: N/A | Q20: N/A
A21: POL | B21: Baltic Sea, North Sea and Eastern Arctic, and North Atlantic | C21: Passive gears | D21: 00-<10 m | E21: Passive Gears 0-10 m | F21: E | G21: Investments of tangible assets, net | H21: questionnaires | I21: A | J21: Every Year | K21: 1 | M21: 513 | N21: 242 | O21: 0.4717348928 | P21: 0.4717348928 | Q21: 47.17348928
A22: POL | B22: Baltic Sea, North Sea and Eastern Arctic, and North Atlantic | C22: Passive gears | D22: 00-<10 m | E22: Passive Gears 0-10 m | F22: E | G22: Long/short debts | H22: questionnaires | I22: A | J22: Every Year | K22: 1 | M22: 513 | N22: 242 | O22: 0.4717348928 | P22: 0.4717348928 | Q22: 47.17348928
A23: POL | B23: Baltic Sea, North Sea and Eastern Arctic, and North Atlantic | C23: Passive gears | D23: 00-<10 m | E23: Passive Gears 0-10 m | F23: E | G23: Total assets | H23: questionnaires | I23: A | J23: Every Year | K23: 1 | M23: 513 | N23: 242 | O23: 0.4717348928 | P23: 0.4717348928 | Q23: 47.17348928
A24: POL | B24: Baltic Sea, North Sea and Eastern Arctic, and North Atlantic | C24: Passive gears | D24: 00-<10 m | E24: Passive Gears 0-10 m | F24: E | G24: Engaged crew | H24: questionnaires | I24: A | J24: Every Year | K24: 1 | M24: 513 | N24: 242 | O24: 0.4717348928 | P24: 0.4717348928 | Q24: 47.17348928
A25: POL | B25: Baltic Sea, North Sea and Eastern Arctic, and North Atlantic | C25: Passive gears | D25: 00-<10 m | E25: Passive Gears 0-10 m | F25: E | G25: Unpaid labour | H25: questionnaires | I25: A | J25: Every Year | K25: 1 | M25: 513 | N25: 242 | O25: 0.4717348928 | P25: 0.4717348928 | Q25: 47.17348928
A26: POL | B26: Baltic Sea, North Sea and Eastern Arctic, and North Atlantic | C26: Passive gears | D26: 00-<10 m | E26: Passive Gears 0-10 m | F26: E | G26: Total hours worked per year | H26: questionnaires | I26: A | J26: Every Year | K26: 1 | M26: 513 | N26: 242 | O26: 0.4717348928 | P26: 0.4717348928 | Q26: 47.17348928
A27: POL | B27: Baltic Sea, North Sea and Eastern Arctic, and North Atlantic | C27: Passive gears | D27: 00-<10 m | E27: Passive Gears 0-10 m | F27: E | G27: Number of vessels | H27: questionnaires, Register | I27: A | J27: Every Year | K27: 1 | M27: 513 | N27: 513 | O27: 1 | P27: 1 | Q27: 100
A28: POL | B28: Baltic Sea, North Sea and Eastern Arctic, and North Atlantic | C28: Passive gears | D28: 00-<10 m | E28: Passive Gears 0-10 m | F28: E | G28: Mean LOA of vessels | H28: questionnaires, Register | I28: A | J28: Every Year | K28: 1 | M28: 513 | N28: 513 | O28: 1 | P28: 1 | Q28: 100
A29: POL | B29: Baltic Sea, North Sea and Eastern Arctic, and North Atlantic | C29: Passive gears | D29: 00-<10 m | E29: Passive Gears 0-10 m | F29: E | G29: Total vessels tonnage | H29: questionnaires, Register | I29: A | J29: Every Year | K29: 1 | M29: 513 | N29: 513 | O29: 1 | P29: 1 | Q29: 100
A30: POL | B30: Baltic Sea, North Sea and Eastern Arctic, and North Atlantic | C30: Passive gears | D30: 00-<10 m | E30: Passive Gears 0-10 m | F30: E | G30: Total vessels power | H30: questionnaires, Register | I30: A | J30: Every Year | K30: 1 | M30: 513 | N30: 513 | O30: 1 | P30: 1 | Q30: 100
A31: POL | B31: Baltic Sea, North Sea and Eastern Arctic, and North Atlantic | C31: Passive gears | D31: 00-<10 m | E31: Passive Gears 0-10 m | F31: E | G31: Mean age of vessels | H31: questionnaires, Register | I31: A | J31: Every Year | K31: 1 | M31: 513 | N31: 513 | O31: 1 | P31: 1 | Q31: 100
A32: POL | B32: Baltic Sea, North Sea and Eastern Arctic, and North Atlantic | C32: Passive gears | D32: 00-<10 m | E32: Passive Gears 0-10 m | F32: E | G32: Days at sea | H32: questionnaires, logbooks | I32: A | J32: Every Year | K32: 1 | M32: 513 | N32: 513 | O32: 1 | P32: 1 | Q32: 100
A33: POL | B33: Baltic Sea, North Sea and Eastern Arctic, and North Atlantic | C33: Passive gears | D33: 00-<10 m | E33: Passive Gears 0-10 m | F33: E | G33: Energy consuption | H33: questionnaires | I33: A | J33: Every Year | K33: 1 | M33: 513 | N33: 242 | O33: 0.4717348928 | P33: 0.4717348928 | Q33: 47.17348928
A34: POL | B34: Baltic Sea, North Sea and Eastern Arctic, and North Atlantic | C34: Passive gears | D34: 00-<10 m | E34: Passive Gears 0-10 m | F34: E | G34: Number of fishing enterprises/units | H34: Register | I34: A | J34: Every Year | K34: 1 | M34: 513 | N34: 513 | O34: 1 | P34: 1 | Q34: 100
A35: POL | B35: Baltic Sea, North Sea and Eastern Arctic, and North Atlantic | C35: Passive gears | D35: 00-<10 m | E35: Passive Gears 0-10 m | F35: E | G35: Value of landings per species | H35: First sale document | I35: A | J35: Every Year | K35: 1 | M35: 513 | N35: 513 | O35: 1 | P35: 1 | Q35: 100
A36: POL | B36: Baltic Sea, North Sea and Eastern Arctic, and North Atlantic | C36: Passive gears | D36: 00-<10 m | E36: Passive Gears 0-10 m | F36: E | G36: Average price per spices | H36: First sale document | I36: A | J36: Every Year | K36: 1 | M36: 513 | N36: 513 | O36: 1 | P36: 1 | Q36: 100
A37: POL | B37: Baltic Sea, North Sea and Eastern Arctic, and North Atlantic | C37: Passive gears | D37: 00-<10 m | E37: Passive Gears 0-10 m | F37: S | G37: Employment by gender | H37: questionnaires | I37: A | J37: Every Year | K37: 1 | M37: 513 | N37: 242 | O37: 0.4717348928 | P37: 0.4717348928 | Q37: 47.17348928
A38: POL | B38: Baltic Sea, North Sea and Eastern Arctic, and North Atlantic | C38: Passive gears | D38: 00-<10 m | E38: Passive Gears 0-10 m | F38: S | G38: FTE by gender | H38: questionnaires | I38: A | J38: Every Year | K38: 1 | M38: 513 | N38: 242 | O38: 0.4717348928 | P38: 0.4717348928 | Q38: 47.17348928
A39: POL | B39: Baltic Sea, North Sea and Eastern Arctic, and North Atlantic | C39: Passive gears | D39: 00-<10 m | E39: Passive Gears 0-10 m | F39: S | G39: Unpaid labour by gender | H39: questionnaires | I39: A | J39: Every Year | K39: 1 | M39: 513 | N39: 242 | O39: 0.4717348928 | P39: 0.4717348928 | Q39: 47.17348928
A40: POL | B40: Baltic Sea, North Sea and Eastern Arctic, and North Atlantic | C40: Passive gears | D40: 00-<10 m | E40: Passive Gears 0-10 m | F40: S | G40: Employment by age | H40: questionnaires | I40: A | J40: Every Year | K40: 1 | M40: 513 | N40: 242 | O40: 0.4717348928 | P40: 0.4717348928 | Q40: 47.17348928
A41: POL | B41: Baltic Sea, North Sea and Eastern Arctic, and North Atlantic | C41: Passive gears | D41: 00-<10 m | E41: Passive Gears 0-10 m | F41: S | G41: Employment by education level | H41: questionnaires | I41: A | J41: Every Year | K41: 1 | M41: 513 | N41: 242 | O41: 0.4717348928 | P41: 0.4717348928 | Q41: 47.17348928
A42: POL | B42: Baltic Sea, North Sea and Eastern Arctic, and North Atlantic | C42: Passive gears | D42: 00-<10 m | E42: Passive Gears 0-10 m | F42: S | G42: Employment by nationality | H42: not collected this year | M42: N/A | N42: N/A | O42: N/A | P42: N/A | Q42: N/A
A43: POL | B43: Baltic Sea, North Sea and Eastern Arctic, and North Atlantic | C43: Passive gears | D43: 00-<10 m | E43: Passive Gears 0-10 m | F43: S | G43: Employment by employment status | H43: questionnaires | I43: A | J43: Every Year | K43: 1 | M43: 513 | N43: 242 | O43: 0.4717348928 | P43: 0.4717348928 | Q43: 47.17348928
A44: POL | B44: Baltic Sea, North Sea and Eastern Arctic, and North Atlantic | C44: Passive gears | D44: 00-<10 m | E44: Passive Gears 0-10 m | F44: S | G44: FTE National | H44: questionnaires | I44: A | J44: Every Year | K44: 1 | M44: 513 | N44: 242 | O44: 0.4717348928 | P44: 0.4717348928 | Q44: 47.17348928
A45: POL | B45: Baltic Sea, North Sea and Eastern Arctic, and North Atlantic | C45: Passive gears | D45: 10-<12 m | E45: Passive Gears 10-12 m | F45: E | G45: Gross value of landings | H45: questionnaires/first sale document | I45: A | J45: Every Year | K45: 1 | M45: 106 | N45: 35 | O45: 0.3301886792 | P45: =N45/M45 -> 0.3301886792 | Q45: 33.01886792
A46: POL | B46: Baltic Sea, North Sea and Eastern Arctic, and North Atlantic | C46: Passive gears | D46: 10-<12 m | E46: Passive Gears 10-12 m | F46: E | G46: Income from leasing out quota or other fishing rights | H46: not relevant | M46: N/A | N46: N/A | O46: N/A | P46: N/A | Q46: N/A
A47: POL | B47: Baltic Sea, North Sea and Eastern Arctic, and North Atlantic | C47: Passive gears | D47: 10-<12 m | E47: Passive Gears 10-12 m | F47: E | G47: Other income | H47: questionnaires | I47: A | J47: Every Year | K47: 1 | M47: 106 | N47: 35 | O47: =N47/M47 -> 0.3301886792 | P47: =N47/M47 -> 0.3301886792 | Q47: 33.01886792
A48: POL | B48: Baltic Sea, North Sea and Eastern Arctic, and North Atlantic | C48: Passive gears | D48: 10-<12 m | E48: Passive Gears 10-12 m | F48: E | G48: Wages and salaries of crew | H48: questionnaires | I48: A | J48: Every Year | K48: 1 | M48: 106 | N48: 35 | O48: =N48/M48 -> 0.3301886792 | P48: =N48/M48 -> 0.3301886792 | Q48: 33.01886792
A49: POL | B49: Baltic Sea, North Sea and Eastern Arctic, and North Atlantic | C49: Passive gears | D49: 10-<12 m | E49: Passive Gears 10-12 m | F49: E | G49: Imputed value of unpaid labour | H49: estimation | I49: D | J49: Every Year | K49: 1 | M49: 106 | N49: 35 | O49: 0.3301886792 | P49: 0.3301886792 | Q49: 33.01886792
A50: POL | B50: Baltic Sea, North Sea and Eastern Arctic, and North Atlantic | C50: Passive gears | D50: 10-<12 m | E50: Passive Gears 10-12 m | F50: E | G50: Energy costs | H50: questionnaires | I50: A | J50: Every Year | K50: 1 | M50: 106 | N50: 35 | O50: 0.3301886792 | P50: 0.3301886792 | Q50: 33.01886792
A51: POL | B51: Baltic Sea, North Sea and Eastern Arctic, and North Atlantic | C51: Passive gears | D51: 10-<12 m | E51: Passive Gears 10-12 m | F51: E | G51: Repair and maintenance costs | H51: questionnaires | I51: A | J51: Every Year | K51: 1 | M51: 106 | N51: 35 | O51: 0.3301886792 | P51: 0.3301886792 | Q51: 33.01886792
A52: POL | B52: Baltic Sea, North Sea and Eastern Arctic, and North Atlantic | C52: Passive gears | D52: 10-<12 m | E52: Passive Gears 10-12 m | F52: E | G52: Variable costs | H52: questionnaires | I52: A | J52: Every Year | K52: 1 | M52: 106 | N52: 35 | O52: 0.3301886792 | P52: 0.3301886792 | Q52: 33.01886792
A53: POL | B53: Baltic Sea, North Sea and Eastern Arctic, and North Atlantic | C53: Passive gears | D53: 10-<12 m | E53: Passive Gears 10-12 m | F53: E | G53: Non-variable costs | H53: questionnaires | I53: A | J53: Every Year | K53: 1 | M53: 106 | N53: 35 | O53: 0.3301886792 | P53: 0.3301886792 | Q53: 33.01886792
A54: POL | B54: Baltic Sea, North Sea and Eastern Arctic, and North Atlantic | C54: Passive gears | D54: 10-<12 m | E54: Passive Gears 10-12 m | F54: E | G54: Lease/rental payments for quota or other fishing rights | H54: questionnaires | I54: A | J54: Every Year | K54: 1 | M54: 106 | N54: 35 | O54: 0.3301886792 | P54: 0.3301886792 | Q54: 33.01886792
A55: POL | B55: Baltic Sea, North Sea and Eastern Arctic, and North Atlantic | C55: Passive gears | D55: 10-<12 m | E55: Passive Gears 10-12 m | F55: E | G55: Operating Subsidies | H55: questionnaires | I55: A | J55: Every Year | K55: 1 | M55: 106 | N55: 35 | O55: 0.3301886792 | P55: 0.3301886792 | Q55: 33.01886792
A56: POL | B56: Baltic Sea, North Sea and Eastern Arctic, and North Atlantic | C56: Passive gears | D56: 10-<12 m | E56: Passive Gears 10-12 m | F56: E | G56: Subsidies on investments | H56: questionnaires | I56: A | J56: Every Year | K56: 1 | M56: 106 | N56: 35 | O56: 0.3301886792 | P56: 0.3301886792 | Q56: 33.01886792
A57: POL | B57: Baltic Sea, North Sea and Eastern Arctic, and North Atlantic | C57: Passive gears | D57: 10-<12 m | E57: Passive Gears 10-12 m | F57: E | G57: Lease/rental payments for quota or other fishing rights | H57: not relevant | M57: N/A | N57: N/A | O57: N/A | P57: N/A | Q57: N/A
A58: POL | B58: Baltic Sea, North Sea and Eastern Arctic, and North Atlantic | C58: Passive gears | D58: 10-<12 m | E58: Passive Gears 10-12 m | F58: E | G58: Consumption of fixed capital | H58: questionnaires | I58: A | J58: Every Year | K58: 1 | M58: 106 | N58: 35 | O58: =N58/M58 -> 0.3301886792 | P58: =N58/M58 -> 0.3301886792 | Q58: 33.01886792
A59: POL | B59: Baltic Sea, North Sea and Eastern Arctic, and North Atlantic | C59: Passive gears | D59: 10-<12 m | E59: Passive Gears 10-12 m | F59: E | G59: Value of physical capital | H59: questionnaires | I59: A | J59: Every Year | K59: 1 | M59: 106 | N59: 35 | O59: =N59/M59 -> 0.3301886792 | P59: =N59/M59 -> 0.3301886792 | Q59: 33.01886792
A60: POL | B60: Baltic Sea, North Sea and Eastern Arctic, and North Atlantic | C60: Passive gears | D60: 10-<12 m | E60: Passive Gears 10-12 m | F60: E | G60: Value of quota and other fishing rights | H60: not relevant | M60: N/A | N60: N/A | O60: N/A | P60: N/A | Q60: N/A
A61: POL | B61: Baltic Sea, North Sea and Eastern Arctic, and North Atlantic | C61: Passive gears | D61: 10-<12 m | E61: Passive Gears 10-12 m | F61: E | G61: Investments of tangible assets, net | H61: questionnaires | I61: A | J61: Every Year | K61: 1 | M61: 106 | N61: 35 | O61: =N61/M61 -> 0.3301886792 | P61: =N61/M61 -> 0.3301886792 | Q61: =N61/(M61*K61/100) -> 33.01886792
A62: POL | B62: Baltic Sea, North Sea and Eastern Arctic, and North Atlantic | C62: Passive gears | D62: 10-<12 m | E62: Passive Gears 10-12 m | F62: E | G62: Long/short debts | H62: questionnaires | I62: A | J62: Every Year | K62: 1 | M62: 106 | N62: 35 | O62: 0.3301886792 | P62: 0.3301886792 | Q62: 33.01886792
A63: POL | B63: Baltic Sea, North Sea and Eastern Arctic, and North Atlantic | C63: Passive gears | D63: 10-<12 m | E63: Passive Gears 10-12 m | F63: E | G63: Total assets | H63: questionnaires | I63: A | J63: Every Year | K63: 1 | M63: 106 | N63: 35 | O63: 0.3301886792 | P63: 0.3301886792 | Q63: 33.01886792
A64: POL | B64: Baltic Sea, North Sea and Eastern Arctic, and North Atlantic | C64: Passive gears | D64: 10-<12 m | E64: Passive Gears 10-12 m | F64: E | G64: Engaged crew | H64: questionnaires | I64: A | J64: Every Year | K64: 1 | M64: 106 | N64: 35 | O64: 0.3301886792 | P64: 0.3301886792 | Q64: 33.01886792
A65: POL | B65: Baltic Sea, North Sea and Eastern Arctic, and North Atlantic | C65: Passive gears | D65: 10-<12 m | E65: Passive Gears 10-12 m | F65: E | G65: Unpaid labour | H65: questionnaires | I65: A | J65: Every Year | K65: 1 | M65: 106 | N65: 35 | O65: 0.3301886792 | P65: 0.3301886792 | Q65: 33.01886792
A66: POL | B66: Baltic Sea, North Sea and Eastern Arctic, and North Atlantic | C66: Passive gears | D66: 10-<12 m | E66: Passive Gears 10-12 m | F66: E | G66: Total hours worked per year | H66: questionnaires | I66: A | J66: Every Year | K66: 1 | M66: 106 | N66: 35 | O66: 0.3301886792 | P66: 0.3301886792 | Q66: 33.01886792
A67: POL | B67: Baltic Sea, North Sea and Eastern Arctic, and North Atlantic | C67: Passive gears | D67: 10-<12 m | E67: Passive Gears 10-12 m | F67: E | G67: Number of vessels | H67: questionnaires, Register | I67: A | J67: Every Year | K67: 1 | M67: 106 | N67: 106 | O67: 1 | P67: 1 | Q67: 100
A68: POL | B68: Baltic Sea, North Sea and Eastern Arctic, and North Atlantic | C68: Passive gears | D68: 10-<12 m | E68: Passive Gears 10-12 m | F68: E | G68: Mean LOA of vessels | H68: questionnaires, Register | I68: A | J68: Every Year | K68: 1 | M68: 106 | N68: 106 | O68: 1 | P68: 1 | Q68: 100
A69: POL | B69: Baltic Sea, North Sea and Eastern Arctic, and North Atlantic | C69: Passive gears | D69: 10-<12 m | E69: Passive Gears 10-12 m | F69: E | G69: Total vessels tonnage | H69: questionnaires, Register | I69: A | J69: Every Year | K69: 1 | M69: 106 | N69: 106 | O69: 1 | P69: 1 | Q69: 100
A70: POL | B70: Baltic Sea, North Sea and Eastern Arctic, and North Atlantic | C70: Passive gears | D70: 10-<12 m | E70: Passive Gears 10-12 m | F70: E | G70: Total vessels power | H70: questionnaires, Register | I70: A | J70: Every Year | K70: 1 | M70: 106 | N70: 106 | O70: 1 | P70: 1 | Q70: 100
A71: POL | B71: Baltic Sea, North Sea and Eastern Arctic, and North Atlantic | C71: Passive gears | D71: 10-<12 m | E71: Passive Gears 10-12 m | F71: E | G71: Mean age of vessels | H71: questionnaires, Register | I71: A | J71: Every Year | K71: 1 | M71: 106 | N71: 106 | O71: 1 | P71: 1 | Q71: 100
A72: POL | B72: Baltic Sea, North Sea and Eastern Arctic, and North Atlantic | C72: Passive gears | D72: 10-<12 m | E72: Passive Gears 10-12 m | F72: E | G72: Days at sea | H72: questionnaires, logbooks | I72: A | J72: Every Year | K72: 1 | M72: 106 | N72: 106 | O72: 1 | P72: 1 | Q72: 100
A73: POL | B73: Baltic Sea, North Sea and Eastern Arctic, and North Atlantic | C73: Passive gears | D73: 10-<12 m | E73: Passive Gears 10-12 m | F73: E | G73: Energy consuption | H73: questionnaires | I73: A | J73: Every Year | K73: 1 | M73: 106 | N73: 35 | O73: 0.3301886792 | P73: 0.3301886792 | Q73: 33.01886792
A74: POL | B74: Baltic Sea, North Sea and Eastern Arctic, and North Atlantic | C74: Passive gears | D74: 10-<12 m | E74: Passive Gears 10-12 m | F74: E | G74: Number of fishing enterprises/units | H74: Register | I74: A | J74: Every Year | K74: 1 | M74: 106 | N74: 106 | O74: 1 | P74: 1 | Q74: 100
A75: POL | B75: Baltic Sea, North Sea and Eastern Arctic, and North Atlantic | C75: Passive gears | D75: 10-<12 m | E75: Passive Gears 10-12 m | F75: E | G75: Value of landings per species | H75: First sale document | I75: A | J75: Every Year | K75: 1 | M75: 106 | N75: 106 | O75: 1 | P75: 1 | Q75: 100
A76: POL | B76: Baltic Sea, North Sea and Eastern Arctic, and North Atlantic | C76: Passive gears | D76: 10-<12 m | E76: Passive Gears 10-12 m | F76: E | G76: Average price per spices | H76: First sale document | I76: A | J76: Every Year | K76: 1 | M76: 106 | N76: 106 | O76: 1 | P76: 1 | Q76: 100
A77: POL | B77: Baltic Sea, North Sea and Eastern Arctic, and North Atlantic | C77: Passive gears | D77: 10-<12 m | E77: Passive Gears 10-12 m | F77: S | G77: Employment by gender | H77: questionnaires | I77: A | J77: Every Year | K77: 1 | M77: 106 | N77: 35 | O77: 0.3301886792 | P77: 0.3301886792 | Q77: 33.01886792
A78: POL | B78: Baltic Sea, North Sea and Eastern Arctic, and North Atlantic | C78: Passive gears | D78: 10-<12 m | E78: Passive Gears 10-12 m | F78: S | G78: FTE by gender | H78: questionnaires | I78: A | J78: Every Year | K78: 1 | M78: 106 | N78: 35 | O78: 0.3301886792 | P78: 0.3301886792 | Q78: 33.01886792
A79: POL | B79: Baltic Sea, North Sea and Eastern Arctic, and North Atlantic | C79: Passive gears | D79: 10-<12 m | E79: Passive Gears 10-12 m | F79: S | G79: Unpaid labour by gender | H79: questionnaires | I79: A | J79: Every Year | K79: 1 | M79: 106 | N79: 35 | O79: 0.3301886792 | P79: 0.3301886792 | Q79: 33.01886792
A80: POL | B80: Baltic Sea, North Sea and Eastern Arctic, and North Atlantic | C80: Passive gears | D80: 10-<12 m | E80: Passive Gears 10-12 m | F80: S | G80: Employment by age | H80: questionnaires | I80: A | J80: Every Year | K80: 1 | M80: 106 | N80: 35 | O80: 0.3301886792 | P80: 0.3301886792 | Q80: 33.01886792
A81: POL | B81: Baltic Sea, North Sea and Eastern Arctic, and North Atlantic | C81: Passive gears | D81: 10-<12 m | E81: Passive Gears 10-12 m | F81: S | G81: Employment by education level | H81: questionnaires | I81: A | J81: Every Year | K81: 1 | M81: 106 | N81: 35 | O81: 0.3301886792 | P81: 0.3301886792 | Q81: 33.01886792
A82: POL | B82: Baltic Sea, North Sea and Eastern Arctic, and North Atlantic | C82: Passive gears | D82: 10-<12 m | E82: Passive Gears 10-12 m | F82: S | G82: Employment by nationality | H82: not collected this year | M82: N/A | N82: N/A | O82: N/A | P82: N/A | Q82: N/A
A83: POL | B83: Baltic Sea, North Sea and Eastern Arctic, and North Atlantic | C83: Passive gears | D83: 10-<12 m | E83: Passive Gears 10-12 m | F83: S | G83: Employment by employment status | H83: questionnaires | I83: A | J83: Every Year | K83: 1 | M83: 106 | N83: 35 | O83: =N83/M83 -> 0.3301886792 | P83: =N83/M83 -> 0.3301886792 | Q83: 33.01886792
A84: POL | B84: Baltic Sea, North Sea and Eastern Arctic, and North Atlantic | C84: Passive gears | D84: 10-<12 m | E84: Passive Gears 10-12 m | F84: S | G84: FTE National | H84: questionnaires | I84: A | J84: Every Year | K84: 1 | M84: 106 | N84: 35 | O84: =N84/M84 -> 0.3301886792 | P84: =N84/M84 -> 0.3301886792 | Q84: 33.01886792
A85: POL | B85: Baltic Sea, North Sea and Eastern Arctic, and North Atlantic | C85: Drift netters and seiners | D85: 12-<18 m | E85: Drift netters and seinres 12-18 m | F85: E | G85: Gross value of landings | H85: questionnaires/first sale document | I85: A | J85: Every Year | K85: 1 | M85: 27 | N85: 27 | O85: =N85/M85 -> 1 | P85: =N85/M85 -> 1 | Q85: 100
A86: POL | B86: Baltic Sea, North Sea and Eastern Arctic, and North Atlantic | C86: Drift netters and seiners | D86: 12-<18 m | E86: Drift netters and seinres 12-18 m | F86: E | G86: Income from leasing out quota or other fishing rights | H86: not relevant | M86: N/A | N86: N/A | O86: N/A | P86: N/A | Q86: N/A
A87: POL | B87: Baltic Sea, North Sea and Eastern Arctic, and North Atlantic | C87: Drift netters and seiners | D87: 12-<18 m | E87: Drift netters and seinres 12-18 m | F87: E | G87: Other income | H87: questionnaires | I87: A | J87: Every Year | K87: 1 | M87: 27 | N87: 9 | O87: =N87/M87 -> 0.3333333333 | P87: =N87/M87 -> 0.3333333333 | Q87: 33.33333333
A88: POL | B88: Baltic Sea, North Sea and Eastern Arctic, and North Atlantic | C88: Drift netters and seiners | D88: 12-<18 m | E88: Drift netters and seinres 12-18 m | F88: E | G88: Wages and salaries of crew | H88: questionnaires | I88: A | J88: Every Year | K88: 1 | M88: 27 | N88: 9 | O88: =N88/M88 -> 0.3333333333 | P88: =N88/M88 -> 0.3333333333 | Q88: 33.33333333
A89: POL | B89: Baltic Sea, North Sea and Eastern Arctic, and North Atlantic | C89: Drift netters and seiners | D89: 12-<18 m | E89: Drift netters and seinres 12-18 m | F89: E | G89: Imputed value of unpaid labour | H89: estimation | I89: D | J89: Every Year | K89: 1 | M89: 27 | N89: 9 | O89: 0.3333333333 | P89: 0.3333333333 | Q89: 33.33333333
A90: POL | B90: Baltic Sea, North Sea and Eastern Arctic, and North Atlantic | C90: Drift netters and seiners | D90: 12-<18 m | E90: Drift netters and seinres 12-18 m | F90: E | G90: Energy costs | H90: questionnaires | I90: A | J90: Every Year | K90: 1 | M90: 27 | N90: 9 | O90: 0.3333333333 | P90: 0.3333333333 | Q90: 33.33333333
A91: POL | B91: Baltic Sea, North Sea and Eastern Arctic, and North Atlantic | C91: Drift netters and seiners | D91: 12-<18 m | E91: Drift netters and seinres 12-18 m | F91: E | G91: Repair and maintenance costs | H91: questionnaires | I91: A | J91: Every Year | K91: 1 | M91: 27 | N91: 9 | O91: 0.3333333333 | P91: 0.3333333333 | Q91: 33.33333333
A92: POL | B92: Baltic Sea, North Sea and Eastern Arctic, and North Atlantic | C92: Drift netters and seiners | D92: 12-<18 m | E92: Drift netters and seinres 12-18 m | F92: E | G92: Variable costs | H92: questionnaires | I92: A | J92: Every Year | K92: 1 | M92: 27 | N92: 9 | O92: 0.3333333333 | P92: 0.3333333333 | Q92: 33.33333333
A93: POL | B93: Baltic Sea, North Sea and Eastern Arctic, and North Atlantic | C93: Drift netters and seiners | D93: 12-<18 m | E93: Drift netters and seinres 12-18 m | F93: E | G93: Non-variable costs | H93: questionnaires | I93: A | J93: Every Year | K93: 1 | M93: 27 | N93: 9 | O93: 0.3333333333 | P93: 0.3333333333 | Q93: 33.33333333
A94: POL | B94: Baltic Sea, North Sea and Eastern Arctic, and North Atlantic | C94: Drift netters and seiners | D94: 12-<18 m | E94: Drift netters and seinres 12-18 m | F94: E | G94: Lease/rental payments for quota or other fishing rights | H94: questionnaires | I94: A | J94: Every Year | K94: 1 | M94: 27 | N94: 9 | O94: 0.3333333333 | P94: 0.3333333333 | Q94: 33.33333333
A95: POL | B95: Baltic Sea, North Sea and Eastern Arctic, and North Atlantic | C95: Drift netters and seiners | D95: 12-<18 m | E95: Drift netters and seinres 12-18 m | F95: E | G95: Operating Subsidies | H95: questionnaires | I95: A | J95: Every Year | K95: 1 | M95: 27 | N95: 9 | O95: 0.3333333333 | P95: 0.3333333333 | Q95: 33.33333333
A96: POL | B96: Baltic Sea, North Sea and Eastern Arctic, and North Atlantic | C96: Drift netters and seiners | D96: 12-<18 m | E96: Drift netters and seinres 12-18 m | F96: E | G96: Subsidies on investments | H96: questionnaires | I96: A | J96: Every Year | K96: 1 | M96: 27 | N96: 9 | O96: 0.3333333333 | P96: 0.3333333333 | Q96: 33.33333333
A97: POL | B97: Baltic Sea, North Sea and Eastern Arctic, and North Atlantic | C97: Drift netters and seiners | D97: 12-<18 m | E97: Drift netters and seinres 12-18 m | F97: E | G97: Lease/rental payments for quota or other fishing rights | H97: not relevant | M97: N/A | N97: N/A | O97: N/A | P97: N/A | Q97: N/A
A98: POL | B98: Baltic Sea, North Sea and Eastern Arctic, and North Atlantic | C98: Drift netters and seiners | D98: 12-<18 m | E98: Drift netters and seinres 12-18 m | F98: E | G98: Consumption of fixed capital | H98: questionnaires | I98: A | J98: Every Year | K98: 1 | M98: 27 | N98: 9 | O98: =N98/M98 -> 0.3333333333 | P98: =N98/M98 -> 0.3333333333 | Q98: 33.33333333
A99: POL | B99: Baltic Sea, North Sea and Eastern Arctic, and North Atlantic | C99: Drift netters and seiners | D99: 12-<18 m | E99: Drift netters and seinres 12-18 m | F99: E | G99: Value of physical capital | H99: questionnaires | I99: A | J99: Every Year | K99: 1 | M99: 27 | N99: 9 | O99: =N99/M99 -> 0.3333333333 | P99: =N99/M99 -> 0.3333333333 | Q99: 33.33333333
A100: POL | B100: Baltic Sea, North Sea and Eastern Arctic, and North Atlantic | C100: Drift netters and seiners | D100: 12-<18 m | E100: Drift netters and seinres 12-18 m | F100: E | G100: Value of quota and other fishing rights | H100: not relevant | M100: N/A | N100: N/A | O100: N/A | P100: N/A | Q100: N/A
A101: POL | B101: Baltic Sea, North Sea and Eastern Arctic, and North Atlantic | C101: Drift netters and seiners | D101: 12-<18 m | E101: Drift netters and seinres 12-18 m | F101: E | G101: Investments of tangible assets, net | H101: questionnaires | I101: A | J101: Every Year | K101: 1 | M101: 27 | N101: 9 | O101: =N101/M101 -> 0.3333333333 | P101: =N101/M101 -> 0.3333333333 | Q101: 33.33333333
A102: POL | B102: Baltic Sea, North Sea and Eastern Arctic, and North Atlantic | C102: Drift netters and seiners | D102: 12-<18 m | E102: Drift netters and seinres 12-18 m | F102: E | G102: Long/short debts | H102: questionnaires | I102: A | J102: Every Year | K102: 1 | M102: 27 | N102: 9 | O102: 0.3333333333 | P102: 0.3333333333 | Q102: 33.33333333
A103: POL | B103: Baltic Sea, North Sea and Eastern Arctic, and North Atlantic | C103: Drift netters and seiners | D103: 12-<18 m | E103: Drift netters and seinres 12-18 m | F103: E | G103: Total assets | H103: questionnaires | I103: A | J103: Every Year | K103: 1 | M103: 27 | N103: 9 | O103: 0.3333333333 | P103: 0.3333333333 | Q103: 33.33333333
A104: POL | B104: Baltic Sea, North Sea and Eastern Arctic, and North Atlantic | C104: Drift netters and seiners | D104: 12-<18 m | E104: Drift netters and seinres 12-18 m | F104: E | G104: Engaged crew | H104: questionnaires | I104: A | J104: Every Year | K104: 1 | M104: 27 | N104: 9 | O104: 0.3333333333 | P104: 0.3333333333 | Q104: 33.33333333
A105: POL | B105: Baltic Sea, North Sea and Eastern Arctic, and North Atlantic | C105: Drift netters and seiners | D105: 12-<18 m | E105: Drift netters and seinres 12-18 m | F105: E | G105: Unpaid labour | H105: questionnaires | I105: A | J105: Every Year | K105: 1 | M105: 27 | N105: 9 | O105: 0.3333333333 | P105: 0.3333333333 | Q105: 33.33333333
A106: POL | B106: Baltic Sea, North Sea and Eastern Arctic, and North Atlantic | C106: Drift netters and seiners | D106: 12-<18 m | E106: Drift netters and seinres 12-18 m | F106: E | G106: Total hours worked per year | H106: questionnaires | I106: A | J106: Every Year | K106: 1 | M106: 27 | N106: 9 | O106: 0.3333333333 | P106: 0.3333333333 | Q106: 33.33333333
A107: POL | B107: Baltic Sea, North Sea and Eastern Arctic, and North Atlantic | C107: Drift netters and seiners | D107: 12-<18 m | E107: Drift netters and seinres 12-18 m | F107: E | G107: Number of vessels | H107: questionnaires, Register | I107: A | J107: Every Year | K107: 1 | M107: 27 | N107: 27 | O107: 1 | P107: 1 | Q107: 100
A108: POL | B108: Baltic Sea, North Sea and Eastern Arctic, and North Atlantic | C108: Drift netters and seiners | D108: 12-<18 m | E108: Drift netters and seinres 12-18 m | F108: E | G108: Mean LOA of vessels | H108: questionnaires, Register | I108: A | J108: Every Year | K108: 1 | M108: 27 | N108: 27 | O108: 1 | P108: 1 | Q108: 100
A109: POL | B109: Baltic Sea, North Sea and Eastern Arctic, and North Atlantic | C109: Drift netters and seiners | D109: 12-<18 m | E109: Drift netters and seinres 12-18 m | F109: E | G109: Total vessels tonnage | H109: questionnaires, Register | I109: A | J109: Every Year | K109: 1 | M109: 27 | N109: 27 | O109: 1 | P109: 1 | Q109: 100
A110: POL | B110: Baltic Sea, North Sea and Eastern Arctic, and North Atlantic | C110: Drift netters and seiners | D110: 12-<18 m | E110: Drift netters and seinres 12-18 m | F110: E | G110: Total vessels power | H110: questionnaires, Register | I110: A | J110: Every Year | K110: 1 | M110: 27 | N110: 27 | O110: 1 | P110: 1 | Q110: 100
A111: POL | B111: Baltic Sea, North Sea and Eastern Arctic, and North Atlantic | C111: Drift netters and seiners | D111: 12-<18 m | E111: Drift netters and seinres 12-18 m | F111: E | G111: Mean age of vessels | H111: questionnaires, Register | I111: A | J111: Every Year | K111: 1 | M111: 27 | N111: 27 | O111: 1 | P111: 1 | Q111: 100
A112: POL | B112: Baltic Sea, North Sea and Eastern Arctic, and North Atlantic | C112: Drift netters and seiners | D112: 12-<18 m | E112: Drift netters and seinres 12-18 m | F112: E | G112: Days at sea | H112: questionnaires, logbooks | I112: A | J112: Every Year | K112: 1 | M112: 27 | N112: 27 | O112: 1 | P112: 1 | Q112: 100
A113: POL | B113: Baltic Sea, North Sea and Eastern Arctic, and North Atlantic | C113: Drift netters and seiners | D113: 12-<18 m | E113: Drift netters and seinres 12-18 m | F113: E | G113: Energy consuption | H113: questionnaires | I113: A | J113: Every Year | K113: 1 | M113: 27 | N113: 9 | O113: 0.3333333333 | P113: 0.3333333333 | Q113: 33.33333333
A114: POL | B114: Baltic Sea, North Sea and Eastern Arctic, and North Atlantic | C114: Drift netters and seiners | D114: 12-<18 m | E114: Drift netters and seinres 12-18 m | F114: E | G114: Number of fishing enterprises/units | H114: Register | I114: A | J114: Every Year | K114: 1 | M114: 27 | N114: 27 | O114: 1 | P114: 1 | Q114: 100
A115: POL | B115: Baltic Sea, North Sea and Eastern Arctic, and North Atlantic | C115: Drift netters and seiners | D115: 12-<18 m | E115: Drift netters and seinres 12-18 m | F115: E | G115: Value of landings per species | H115: First sale document | I115: A | J115: Every Year | K115: 1 | M115: 27 | N115: 27 | O115: 1 | P115: 1 | Q115: 100
A116: POL | B116: Baltic Sea, North Sea and Eastern Arctic, and North Atlantic | C116: Drift netters and seiners | D116: 12-<18 m | E116: Drift netters and seinres 12-18 m | F116: E | G116: Average price per spices | H116: First sale document | I116: A | J116: Every Year | K116: 1 | M116: 27 | N116: 27 | O116: 1 | P116: 1 | Q116: 100
A117: POL | B117: Baltic Sea, North Sea and Eastern Arctic, and North Atlantic | C117: Drift netters and seiners | D117: 12-<18 m | E117: Drift netters and seinres 12-18 m | F117: S | G117: Employment by gender | H117: questionnaires | I117: A | J117: Every Year | K117: 1 | M117: 27 | N117: 9 | O117: 0.3333333333 | P117: 0.3333333333 | Q117: 33.33333333
A118: POL | B118: Baltic Sea, North Sea and Eastern Arctic, and North Atlantic | C118: Drift netters and seiners | D118: 12-<18 m | E118: Drift netters and seinres 12-18 m | F118: S | G118: FTE by gender | H118: questionnaires | I118: A | J118: Every Year | K118: 1 | M118: 27 | N118: 9 | O118: 0.3333333333 | P118: 0.3333333333 | Q118: 33.33333333
A119: POL | B119: Baltic Sea, North Sea and Eastern Arctic, and North Atlantic | C119: Drift netters and seiners | D119: 12-<18 m | E119: Drift netters and seinres 12-18 m | F119: S | G119: Unpaid labour by gender | H119: questionnaires | I119: A | J119: Every Year | K119: 1 | M119: 27 | N119: 9 | O119: 0.3333333333 | P119: 0.3333333333 | Q119: 33.33333333
A120: POL | B120: Baltic Sea, North Sea and Eastern Arctic, and North Atlantic | C120: Drift netters and seiners | D120: 12-<18 m | E120: Drift netters and seinres 12-18 m | F120: S | G120: Employment by age | H120: questionnaires | I120: A | J120: Every Year | K120: 1 | M120: 27 | N120: 9 | O120: 0.3333333333 | P120: 0.3333333333 | Q120: 33.33333333
A121: POL | B121: Baltic Sea, North Sea and Eastern Arctic, and North Atlantic | C121: Drift netters and seiners | D121: 12-<18 m | E121: Drift netters and seinres 12-18 m | F121: S | G121: Employment by education level | H121: questionnaires | I121: A | J121: Every Year | K121: 1 | M121: 27 | N121: 9 | O121: 0.3333333333 | P121: 0.3333333333 | Q121: 33.33333333
A122: POL | B122: Baltic Sea, North Sea and Eastern Arctic, and North Atlantic | C122: Drift netters and seiners | D122: 12-<18 m | E122: Drift netters and seinres 12-18 m | F122: S | G122: Employment by nationality | H122: not collected this year | M122: N/A | N122: N/A | O122: N/A | P122: N/A | Q122: N/A
A123: POL | B123: Baltic Sea, North Sea and Eastern Arctic, and North Atlantic | C123: Drift netters and seiners | D123: 12-<18 m | E123: Drift netters and seinres 12-18 m | F123: S | G123: Employment by employment status | H123: questionnaires | I123: A | J123: Every Year | K123: 1 | M123: 27 | N123: 9 | O123: =N123/M123 -> 0.3333333333 | P123: =N123/M123 -> 0.3333333333 | Q123: 33.33333333
A124: POL | B124: Baltic Sea, North Sea and Eastern Arctic, and North Atlantic | C124: Drift netters and seiners | D124: 12-<18 m | E124: Drift netters and seinres 12-18 m | F124: S | G124: FTE National | H124: questionnaires | I124: A | J124: Every Year | K124: 1 | M124: 27 | N124: 9 | O124: =N124/M124 -> 0.3333333333 | P124: =N124/M124 -> 0.3333333333 | Q124: 33.33333333
A125: POL | B125: Baltic Sea, North Sea and Eastern Arctic, and North Atlantic | C125: Demersal trawlers | D125: 12-<18 m | E125: Demersal trawlers 12-18 m | F125: E | G125: Gross value of landings | H125: questionnaires/first sale document | I125: A | J125: Every Year | K125: 1 | M125: 67 | N125: 67 | O125: =N125/M125 -> 1 | P125: =N125/M125 -> 1 | Q125: =N125/(M125*K125/100) -> 100
A126: POL | B126: Baltic Sea, North Sea and Eastern Arctic, and North Atlantic | C126: Demersal trawlers | D126: 12-<18 m | E126: Demersal trawlers 12-18 m | F126: E | G126: Income from leasing out quota or other fishing rights | H126: not relevant | M126: N/A | N126: N/A | O126: N/A | P126: N/A | Q126: N/A
A127: POL | B127: Baltic Sea, North Sea and Eastern Arctic, and North Atlantic | C127: Demersal trawlers | D127: 12-<18 m | E127: Demersal trawlers 12-18 m | F127: E | G127: Other income | H127: questionnaires | I127: A | J127: Every Year | K127: 1 | M127: 67 | N127: 33 | O127: =N127/M127 -> 0.4925373134 | P127: =N127/M127 -> 0.4925373134 | Q127: 49.25373134
A128: POL | B128: Baltic Sea, North Sea and Eastern Arctic, and North Atlantic | C128: Demersal trawlers | D128: 12-<18 m | E128: Demersal trawlers 12-18 m | F128: E | G128: Wages and salaries of crew | H128: questionnaires | I128: A | J128: Every Year | K128: 1 | M128: 67 | N128: 33 | O128: =N128/M128 -> 0.4925373134 | P128: =N128/M128 -> 0.4925373134 | Q128: 49.25373134
A129: POL | B129: Baltic Sea, North Sea and Eastern Arctic, and North Atlantic | C129: Demersal trawlers | D129: 12-<18 m | E129: Demersal trawlers 12-18 m | F129: E | G129: Imputed value of unpaid labour | H129: estimation | I129: D | J129: Every Year | K129: 1 | M129: 67 | N129: 33 | O129: 0.4925373134 | P129: 0.4925373134 | Q129: 49.25373134
A130: POL | B130: Baltic Sea, North Sea and Eastern Arctic, and North Atlantic | C130: Demersal trawlers | D130: 12-<18 m | E130: Demersal trawlers 12-18 m | F130: E | G130: Energy costs | H130: questionnaires | I130: A | J130: Every Year | K130: 1 | M130: 67 | N130: 33 | O130: 0.4925373134 | P130: 0.4925373134 | Q130: 49.25373134
A131: POL | B131: Baltic Sea, North Sea and Eastern Arctic, and North Atlantic | C131: Demersal trawlers | D131: 12-<18 m | E131: Demersal trawlers 12-18 m | F131: E | G131: Repair and maintenance costs | H131: questionnaires | I131: A | J131: Every Year | K131: 1 | M131: 67 | N131: 33 | O131: 0.4925373134 | P131: 0.4925373134 | Q131: 49.25373134
A132: POL | B132: Baltic Sea, North Sea and Eastern Arctic, and North Atlantic | C132: Demersal trawlers | D132: 12-<18 m | E132: Demersal trawlers 12-18 m | F132: E | G132: Variable costs | H132: questionnaires | I132: A | J132: Every Year | K132: 1 | M132: 67 | N132: 33 | O132: 0.4925373134 | P132: 0.4925373134 | Q132: 49.25373134
A133: POL | B133: Baltic Sea, North Sea and Eastern Arctic, and North Atlantic | C133: Demersal trawlers | D133: 12-<18 m | E133: Demersal trawlers 12-18 m | F133: E | G133: Non-variable costs | H133: questionnaires | I133: A | J133: Every Year | K133: 1 | M133: 67 | N133: 33 | O133: 0.4925373134 | P133: 0.4925373134 | Q133: 49.25373134
A134: POL | B134: Baltic Sea, North Sea and Eastern Arctic, and North Atlantic | C134: Demersal trawlers | D134: 12-<18 m | E134: Demersal trawlers 12-18 m | F134: E | G134: Lease/rental payments for quota or other fishing rights | H134: questionnaires | I134: A | J134: Every Year | K134: 1 | M134: 67 | N134: 33 | O134: 0.4925373134 | P134: 0.4925373134 | Q134: 49.25373134
A135: POL | B135: Baltic Sea, North Sea and Eastern Arctic, and North Atlantic | C135: Demersal trawlers | D135: 12-<18 m | E135: Demersal trawlers 12-18 m | F135: E | G135: Operating Subsidies | H135: questionnaires | I135: A | J135: Every Year | K135: 1 | M135: 67 | N135: 33 | O135: 0.4925373134 | P135: 0.4925373134 | Q135: 49.25373134
A136: POL | B136: Baltic Sea, North Sea and Eastern Arctic, and North Atlantic | C136: Demersal trawlers | D136: 12-<18 m | E136: Demersal trawlers 12-18 m | F136: E | G136: Subsidies on investments | H136: questionnaires | I136: A | J136: Every Year | K136: 1 | M136: 67 | N136: 33 | O136: 0.4925373134 | P136: 0.4925373134 | Q136: 49.25373134
A137: POL | B137: Baltic Sea, North Sea and Eastern Arctic, and North Atlantic | C137: Demersal trawlers | D137: 12-<18 m | E137: Demersal trawlers 12-18 m | F137: E | G137: Lease/rental payments for quota or other fishing rights | H137: not relevant | M137: N/A | N137: N/A | O137: N/A | P137: N/A | Q137: N/A
A138: POL | B138: Baltic Sea, North Sea and Eastern Arctic, and North Atlantic | C138: Demersal trawlers | D138: 12-<18 m | E138: Demersal trawlers 12-18 m | F138: E | G138: Consumption of fixed capital | H138: questionnaires | I138: A | J138: Every Year | K138: 1 | M138: 67 | N138: 33 | O138: =N138/M138 -> 0.4925373134 | P138: =N138/M138 -> 0.4925373134 | Q138: 49.25373134
A139: POL | B139: Baltic Sea, North Sea and Eastern Arctic, and North Atlantic | C139: Demersal trawlers | D139: 12-<18 m | E139: Demersal trawlers 12-18 m | F139: E | G139: Value of physical capital | H139: questionnaires | I139: A | J139: Every Year | K139: 1 | M139: 67 | N139: 33 | O139: =N139/M139 -> 0.4925373134 | P139: =N139/M139 -> 0.4925373134 | Q139: 49.25373134
A140: POL | B140: Baltic Sea, North Sea and Eastern Arctic, and North Atlantic | C140: Demersal trawlers | D140: 12-<18 m | E140: Demersal trawlers 12-18 m | F140: E | G140: Value of quota and other fishing rights | H140: not relevant | M140: N/A | N140: N/A | O140: N/A | P140: N/A | Q140: N/A
A141: POL | B141: Baltic Sea, North Sea and Eastern Arctic, and North Atlantic | C141: Demersal trawlers | D141: 12-<18 m | E141: Demersal trawlers 12-18 m | F141: E | G141: Investments of tangible assets, net | H141: questionnaires | I141: A | J141: Every Year | K141: 1 | M141: 67 | N141: 33 | O141: =N141/M141 -> 0.4925373134 | P141: =N141/M141 -> 0.4925373134 | Q141: 49.25373134
A142: POL | B142: Baltic Sea, North Sea and Eastern Arctic, and North Atlantic | C142: Demersal trawlers | D142: 12-<18 m | E142: Demersal trawlers 12-18 m | F142: E | G142: Long/short debts | H142: questionnaires | I142: A | J142: Every Year | K142: 1 | M142: 67 | N142: 33 | O142: 0.4925373134 | P142: 0.4925373134 | Q142: 49.25373134
A143: POL | B143: Baltic Sea, North Sea and Eastern Arctic, and North Atlantic | C143: Demersal trawlers | D143: 12-<18 m | E143: Demersal trawlers 12-18 m | F143: E | G143: Total assets | H143: questionnaires | I143: A | J143: Every Year | K143: 1 | M143: 67 | N143: 33 | O143: 0.4925373134 | P143: 0.4925373134 | Q143: 49.25373134
A144: POL | B144: Baltic Sea, North Sea and Eastern Arctic, and North Atlantic | C144: Demersal trawlers | D144: 12-<18 m | E144: Demersal trawlers 12-18 m | F144: E | G144: Engaged crew | H144: questionnaires | I144: A | J144: Every Year | K144: 1 | M144: 67 | N144: 33 | O144: 0.4925373134 | P144: 0.4925373134 | Q144: 49.25373134
A145: POL | B145: Baltic Sea, North Sea and Eastern Arctic, and North Atlantic | C145: Demersal trawlers | D145: 12-<18 m | E145: Demersal trawlers 12-18 m | F145: E | G145: Unpaid labour | H145: questionnaires | I145: A | J145: Every Year | K145: 1 | M145: 67 | N145: 33 | O145: 0.4925373134 | P145: 0.4925373134 | Q145: 49.25373134
A146: POL | B146: Baltic Sea, North Sea and Eastern Arctic, and North Atlantic | C146: Demersal trawlers | D146: 12-<18 m | E146: Demersal trawlers 12-18 m | F146: E | G146: Total hours worked per year | H146: questionnaires | I146: A | J146: Every Year | K146: 1 | M146: 67 | N146: 33 | O146: 0.4925373134 | P146: 0.4925373134 | Q146: 49.25373134
A147: POL | B147: Baltic Sea, North Sea and Eastern Arctic, and North Atlantic | C147: Demersal trawlers | D147: 12-<18 m | E147: Demersal trawlers 12-18 m | F147: E | G147: Number of vessels | H147: questionnaires, Register | I147: A | J147: Every Year | K147: 1 | M147: 67 | N147: 67 | O147: 1 | P147: 1 | Q147: 100
A148: POL | B148: Baltic Sea, North Sea and Eastern Arctic, and North Atlantic | C148: Demersal trawlers | D148: 12-<18 m | E148: Demersal trawlers 12-18 m | F148: E | G148: Mean LOA of vessels | H148: questionnaires, Register | I148: A | J148: Every Year | K148: 1 | M148: 67 | N148: 67 | O148: 1 | P148: 1 | Q148: 100
A149: POL | B149: Baltic Sea, North Sea and Eastern Arctic, and North Atlantic | C149: Demersal trawlers | D149: 12-<18 m | E149: Demersal trawlers 12-18 m | F149: E | G149: Total vessels tonnage | H149: questionnaires, Register | I149: A | J149: Every Year | K149: 1 | M149: 67 | N149: 67 | O149: 1 | P149: 1 | Q149: 100
A150: POL | B150: Baltic Sea, North Sea and Eastern Arctic, and North Atlantic | C150: Demersal trawlers | D150: 12-<18 m | E150: Demersal trawlers 12-18 m | F150: E | G150: Total vessels power | H150: questionnaires, Register | I150: A | J150: Every Year | K150: 1 | M150: 67 | N150: 67 | O150: 1 | P150: 1 | Q150: 100
A151: POL | B151: Baltic Sea, North Sea and Eastern Arctic, and North Atlantic | C151: Demersal trawlers | D151: 12-<18 m | E151: Demersal trawlers 12-18 m | F151: E | G151: Mean age of vessels | H151: questionnaires, Register | I151: A | J151: Every Year | K151: 1 | M151: 67 | N151: 67 | O151: 1 | P151: 1 | Q151: 100
A152: POL | B152: Baltic Sea, North Sea and Eastern Arctic, and North Atlantic | C152: Demersal trawlers | D152: 12-<18 m | E152: Demersal trawlers 12-18 m | F152: E | G152: Days at sea | H152: questionnaires, logbooks | I152: A | J152: Every Year | K152: 1 | M152: 67 | N152: 67 | O152: 1 | P152: 1 | Q152: 100
A153: POL | B153: Baltic Sea, North Sea and Eastern Arctic, and North Atlantic | C153: Demersal trawlers | D153: 12-<18 m | E153: Demersal trawlers 12-18 m | F153: E | G153: Energy consuption | H153: questionnaires | I153: A | J153: Every Year | K153: 1 | M153: 67 | N153: 33 | O153: 0.4925373134 | P153: 0.4925373134 | Q153: 49.25373134
A154: POL | B154: Baltic Sea, North Sea and Eastern Arctic, and North Atlantic | C154: Demersal trawlers | D154: 12-<18 m | E154: Demersal trawlers 12-18 m | F154: E | G154: Number of fishing enterprises/units | H154: Register | I154: A | J154: Every Year | K154: 1 | M154: 67 | N154: 67 | O154: 1 | P154: 1 | Q154: 100
A155: POL | B155: Baltic Sea, North Sea and Eastern Arctic, and North Atlantic | C155: Demersal trawlers | D155: 12-<18 m | E155: Demersal trawlers 12-18 m | F155: E | G155: Value of landings per species | H155: First sale document | I155: A | J155: Every Year | K155: 1 | M155: 67 | N155: 67 | O155: 1 | P155: 1 | Q155: 100
A156: POL | B156: Baltic Sea, North Sea and Eastern Arctic, and North Atlantic | C156: Demersal trawlers | D156: 12-<18 m | E156: Demersal trawlers 12-18 m | F156: E | G156: Average price per spices | H156: First sale document | I156: A | J156: Every Year | K156: 1 | M156: 67 | N156: 67 | O156: 1 | P156: 1 | Q156: 100
A157: POL | B157: Baltic Sea, North Sea and Eastern Arctic, and North Atlantic | C157: Demersal trawlers | D157: 12-<18 m | E157: Demersal trawlers 12-18 m | F157: S | G157: Employment by gender | H157: questionnaires | I157: A | J157: Every Year | K157: 1 | M157: 67 | N157: 33 | O157: 0.4925373134 | P157: 0.4925373134 | Q157: 49.25373134
A158: POL | B158: Baltic Sea, North Sea and Eastern Arctic, and North Atlantic | C158: Demersal trawlers | D158: 12-<18 m | E158: Demersal trawlers 12-18 m | F158: S | G158: FTE by gender | H158: questionnaires | I158: A | J158: Every Year | K158: 1 | M158: 67 | N158: 33 | O158: 0.4925373134 | P158: 0.4925373134 | Q158: 49.25373134
A159: POL | B159: Baltic Sea, North Sea and Eastern Arctic, and North Atlantic | C159: Demersal trawlers | D159: 12-<18 m | E159: Demersal trawlers 12-18 m | F159: S | G159: Unpaid labour by gender | H159: questionnaires | I159: A | J159: Every Year | K159: 1 | M159: 67 | N159: 33 | O159: 0.4925373134 | P159: 0.4925373134 | Q159: 49.25373134
A160: POL | B160: Baltic Sea, North Sea and Eastern Arctic, and North Atlantic | C160: Demersal trawlers | D160: 12-<18 m | E160: Demersal trawlers 12-18 m | F160: S | G160: Employment by age | H160: questionnaires | I160: A | J160: Every Year | K160: 1 | M160: 67 | N160: 33 | O160: 0.4925373134 | P160: 0.4925373134 | Q160: 49.25373134
A161: POL | B161: Baltic Sea, North Sea and Eastern Arctic, and North Atlantic | C161: Demersal trawlers | D161: 12-<18 m | E161: Demersal trawlers 12-18 m | F161: S | G161: Employment by education level | H161: questionnaires | I161: A | J161: Every Year | K161: 1 | M161: 67 | N161: 33 | O161: 0.4925373134 | P161: 0.4925373134 | Q161: 49.25373134
A162: POL | B162: Baltic Sea, North Sea and Eastern Arctic, and North Atlantic | C162: Demersal trawlers | D162: 12-<18 m | E162: Demersal trawlers 12-18 m | F162: S | G162: Employment by nationality | H162: not collected this year | M162: N/A | N162: N/A | O162: N/A | P162: N/A | Q162: N/A
A163: POL | B163: Baltic Sea, North Sea and Eastern Arctic, and North Atlantic | C163: Demersal trawlers | D163: 12-<18 m | E163: Demersal trawlers 12-18 m | F163: S | G163: Employment by employment status | H163: questionnaires | I163: A | J163: Every Year | K163: 1 | M163: 67 | N163: 33 | O163: =N163/M163 -> 0.4925373134 | P163: =N163/M163 -> 0.4925373134 | Q163: 49.25373134
A164: POL | B164: Baltic Sea, North Sea and Eastern Arctic, and North Atlantic | C164: Demersal trawlers | D164: 12-<18 m | E164: Demersal trawlers 12-18 m | F164: S | G164: FTE National | H164: questionnaires | I164: A | J164: Every Year | K164: 1 | M164: 67 | N164: 33 | O164: =N164/M164 -> 0.4925373134 | P164: =N164/M164 -> 0.4925373134 | Q164: 49.25373134
A165: POL | B165: Baltic Sea, North Sea and Eastern Arctic, and North Atlantic | C165: Demersal trawlers | D165: 18-<24 m | E165: Demersal trawlers 18-24 m | F165: E | G165: Gross value of landings | H165: questionnaires/first sale document | I165: A | J165: Every Year | K165: 1 | M165: 28 | N165: 28 | O165: =N165/M165 -> 1 | P165: =N165/M165 -> 1 | Q165: 100
A166: POL | B166: Baltic Sea, North Sea and Eastern Arctic, and North Atlantic | C166: Demersal trawlers | D166: 18-<24 m | E166: Demersal trawlers 18-24 m | F166: E | G166: Income from leasing out quota or other fishing rights | H166: not relevant | M166: N/A | N166: N/A | O166: N/A | P166: N/A | Q166: N/A
A167: POL | B167: Baltic Sea, North Sea and Eastern Arctic, and North Atlantic | C167: Demersal trawlers | D167: 18-<24 m | E167: Demersal trawlers 18-24 m | F167: E | G167: Other income | H167: questionnaires | I167: A | J167: Every Year | K167: 1 | M167: 28 | N167: 15 | O167: =N167/M167 -> 0.5357142857 | P167: =N167/M167 -> 0.5357142857 | Q167: 53.57142857
A168: POL | B168: Baltic Sea, North Sea and Eastern Arctic, and North Atlantic | C168: Demersal trawlers | D168: 18-<24 m | E168: Demersal trawlers 18-24 m | F168: E | G168: Wages and salaries of crew | H168: questionnaires | I168: A | J168: Every Year | K168: 1 | M168: 28 | N168: 15 | O168: =N168/M168 -> 0.5357142857 | P168: =N168/M168 -> 0.5357142857 | Q168: 53.57142857
A169: POL | B169: Baltic Sea, North Sea and Eastern Arctic, and North Atlantic | C169: Demersal trawlers | D169: 18-<24 m | E169: Demersal trawlers 18-24 m | F169: E | G169: Imputed value of unpaid labour | H169: estimation | I169: D | J169: Every Year | K169: 1 | M169: 28 | N169: 15 | O169: 0.5357142857 | P169: 0.5357142857 | Q169: 53.57142857
A170: POL | B170: Baltic Sea, North Sea and Eastern Arctic, and North Atlantic | C170: Demersal trawlers | D170: 18-<24 m | E170: Demersal trawlers 18-24 m | F170: E | G170: Energy costs | H170: questionnaires | I170: A | J170: Every Year | K170: 1 | M170: 28 | N170: 15 | O170: 0.5357142857 | P170: 0.5357142857 | Q170: 53.57142857
A171: POL | B171: Baltic Sea, North Sea and Eastern Arctic, and North Atlantic | C171: Demersal trawlers | D171: 18-<24 m | E171: Demersal trawlers 18-24 m | F171: E | G171: Repair and maintenance costs | H171: questionnaires | I171: A | J171: Every Year | K171: 1 | M171: 28 | N171: 15 | O171: 0.5357142857 | P171: 0.5357142857 | Q171: 53.57142857
A172: POL | B172: Baltic Sea, North Sea and Eastern Arctic, and North Atlantic | C172: Demersal trawlers | D172: 18-<24 m | E172: Demersal trawlers 18-24 m | F172: E | G172: Variable costs | H172: questionnaires | I172: A | J172: Every Year | K172: 1 | M172: 28 | N172: 15 | O172: 0.5357142857 | P172: 0.5357142857 | Q172: 53.57142857
A173: POL | B173: Baltic Sea, North Sea and Eastern Arctic, and North Atlantic | C173: Demersal trawlers | D173: 18-<24 m | E173: Demersal trawlers 18-24 m | F173: E | G173: Non-variable costs | H173: questionnaires | I173: A | J173: Every Year | K173: 1 | M173: 28 | N173: 15 | O173: 0.5357142857 | P173: 0.5357142857 | Q173: 53.57142857
A174: POL | B174: Baltic Sea, North Sea and Eastern Arctic, and North Atlantic | C174: Demersal trawlers | D174: 18-<24 m | E174: Demersal trawlers 18-24 m | F174: E | G174: Lease/rental payments for quota or other fishing rights | H174: questionnaires | I174: A | J174: Every Year | K174: 1 | M174: 28 | N174: 15 | O174: 0.5357142857 | P174: 0.5357142857 | Q174: 53.57142857
A175: POL | B175: Baltic Sea, North Sea and Eastern Arctic, and North Atlantic | C175: Demersal trawlers | D175: 18-<24 m | E175: Demersal trawlers 18-24 m | F175: E | G175: Operating Subsidies | H175: questionnaires | I175: A | J175: Every Year | K175: 1 | M175: 28 | N175: 15 | O175: 0.5357142857 | P175: 0.5357142857 | Q175: 53.57142857
A176: POL | B176: Baltic Sea, North Sea and Eastern Arctic, and North Atlantic | C176: Demersal trawlers | D176: 18-<24 m | E176: Demersal trawlers 18-24 m | F176: E | G176: Subsidies on investments | H176: questionnaires | I176: A | J176: Every Year | K176: 1 | M176: 28 | N176: 15 | O176: 0.5357142857 | P176: 0.5357142857 | Q176: 53.57142857
A177: POL | B177: Baltic Sea, North Sea and Eastern Arctic, and North Atlantic | C177: Demersal trawlers | D177: 18-<24 m | E177: Demersal trawlers 18-24 m | F177: E | G177: Lease/rental payments for quota or other fishing rights | H177: not relevant | M177: N/A | N177: N/A | O177: N/A | P177: N/A | Q177: N/A
A178: POL | B178: Baltic Sea, North Sea and Eastern Arctic, and North Atlantic | C178: Demersal trawlers | D178: 18-<24 m | E178: Demersal trawlers 18-24 m | F178: E | G178: Consumption of fixed capital | H178: questionnaires | I178: A | J178: Every Year | K178: 1 | M178: 28 | N178: 15 | O178: =N178/M178 -> 0.5357142857 | P178: =N178/M178 -> 0.5357142857 | Q178: 53.57142857
A179: POL | B179: Baltic Sea, North Sea and Eastern Arctic, and North Atlantic | C179: Demersal trawlers | D179: 18-<24 m | E179: Demersal trawlers 18-24 m | F179: E | G179: Value of physical capital | H179: questionnaires | I179: A | J179: Every Year | K179: 1 | M179: 28 | N179: 15 | O179: =N179/M179 -> 0.5357142857 | P179: =N179/M179 -> 0.5357142857 | Q179: 53.57142857
A180: POL | B180: Baltic Sea, North Sea and Eastern Arctic, and North Atlantic | C180: Demersal trawlers | D180: 18-<24 m | E180: Demersal trawlers 18-24 m | F180: E | G180: Value of quota and other fishing rights | H180: not relevant | M180: N/A | N180: N/A | O180: N/A | P180: N/A | Q180: N/A
A181: POL | B181: Baltic Sea, North Sea and Eastern Arctic, and North Atlantic | C181: Demersal trawlers | D181: 18-<24 m | E181: Demersal trawlers 18-24 m | F181: E | G181: Investments of tangible assets, net | H181: questionnaires | I181: A | J181: Every Year | K181: 1 | M181: 28 | N181: 15 | O181: =N181/M181 -> 0.5357142857 | P181: =N181/M181 -> 0.5357142857 | Q181: 53.57142857
A182: POL | B182: Baltic Sea, North Sea and Eastern Arctic, and North Atlantic | C182: Demersal trawlers | D182: 18-<24 m | E182: Demersal trawlers 18-24 m | F182: E | G182: Long/short debts | H182: questionnaires | I182: A | J182: Every Year | K182: 1 | M182: 28 | N182: 15 | O182: 0.5357142857 | P182: 0.5357142857 | Q182: 53.57142857
A183: POL | B183: Baltic Sea, North Sea and Eastern Arctic, and North Atlantic | C183: Demersal trawlers | D183: 18-<24 m | E183: Demersal trawlers 18-24 m | F183: E | G183: Total assets | H183: questionnaires | I183: A | J183: Every Year | K183: 1 | M183: 28 | N183: 15 | O183: 0.5357142857 | P183: 0.5357142857 | Q183: 53.57142857
A184: POL | B184: Baltic Sea, North Sea and Eastern Arctic, and North Atlantic | C184: Demersal trawlers | D184: 18-<24 m | E184: Demersal trawlers 18-24 m | F184: E | G184: Engaged crew | H184: questionnaires | I184: A | J184: Every Year | K184: 1 | M184: 28 | N184: 15 | O184: 0.5357142857 | P184: 0.5357142857 | Q184: 53.57142857
A185: POL | B185: Baltic Sea, North Sea and Eastern Arctic, and North Atlantic | C185: Demersal trawlers | D185: 18-<24 m | E185: Demersal trawlers 18-24 m | F185: E | G185: Unpaid labour | H185: questionnaires | I185: A | J185: Every Year | K185: 1 | M185: 28 | N185: 15 | O185: 0.5357142857 | P185: 0.5357142857 | Q185: 53.57142857
A186: POL | B186: Baltic Sea, North Sea and Eastern Arctic, and North Atlantic | C186: Demersal trawlers | D186: 18-<24 m | E186: Demersal trawlers 18-24 m | F186: E | G186: Total hours worked per year | H186: questionnaires | I186: A | J186: Every Year | K186: 1 | M186: 28 | N186: 15 | O186: 0.5357142857 | P186: 0.5357142857 | Q186: 53.57142857
A187: POL | B187: Baltic Sea, North Sea and Eastern Arctic, and North Atlantic | C187: Demersal trawlers | D187: 18-<24 m | E187: Demersal trawlers 18-24 m | F187: E | G187: Number of vessels | H187: questionnaires, Register | I187: A | J187: Every Year | K187: 1 | M187: 28 | N187: 28 | O187: 1 | P187: 1 | Q187: 100
A188: POL | B188: Baltic Sea, North Sea and Eastern Arctic, and North Atlantic | C188: Demersal trawlers | D188: 18-<24 m | E188: Demersal trawlers 18-24 m | F188: E | G188: Mean LOA of vessels | H188: questionnaires, Register | I188: A | J188: Every Year | K188: 1 | M188: 28 | N188: 28 | O188: 1 | P188: 1 | Q188: 100
A189: POL | B189: Baltic Sea, North Sea and Eastern Arctic, and North Atlantic | C189: Demersal trawlers | D189: 18-<24 m | E189: Demersal trawlers 18-24 m | F189: E | G189: Total vessels tonnage | H189: questionnaires, Register | I189: A | J189: Every Year | K189: 1 | M189: 28 | N189: 28 | O189: 1 | P189: 1 | Q189: =N189/(M189*K189/100) -> 100
A190: POL | B190: Baltic Sea, North Sea and Eastern Arctic, and North Atlantic | C190: Demersal trawlers | D190: 18-<24 m | E190: Demersal trawlers 18-24 m | F190: E | G190: Total vessels power | H190: questionnaires, Register | I190: A | J190: Every Year | K190: 1 | M190: 28 | N190: 28 | O190: 1 | P190: 1 | Q190: 100
A191: POL | B191: Baltic Sea, North Sea and Eastern Arctic, and North Atlantic | C191: Demersal trawlers | D191: 18-<24 m | E191: Demersal trawlers 18-24 m | F191: E | G191: Mean age of vessels | H191: questionnaires, Register | I191: A | J191: Every Year | K191: 1 | M191: 28 | N191: 28 | O191: 1 | P191: 1 | Q191: 100
A192: POL | B192: Baltic Sea, North Sea and Eastern Arctic, and North Atlantic | C192: Demersal trawlers | D192: 18-<24 m | E192: Demersal trawlers 18-24 m | F192: E | G192: Days at sea | H192: questionnaires, logbooks | I192: A | J192: Every Year | K192: 1 | M192: 28 | N192: 28 | O192: 1 | P192: 1 | Q192: 100
A193: POL | B193: Baltic Sea, North Sea and Eastern Arctic, and North Atlantic | C193: Demersal trawlers | D193: 18-<24 m | E193: Demersal trawlers 18-24 m | F193: E | G193: Energy consuption | H193: questionnaires | I193: A | J193: Every Year | K193: 1 | M193: 28 | N193: 15 | O193: 0.5357142857 | P193: 0.5357142857 | Q193: 53.57142857
A194: POL | B194: Baltic Sea, North Sea and Eastern Arctic, and North Atlantic | C194: Demersal trawlers | D194: 18-<24 m | E194: Demersal trawlers 18-24 m | F194: E | G194: Number of fishing enterprises/units | H194: Register | I194: A | J194: Every Year | K194: 1 | M194: 28 | N194: 28 | O194: 1 | P194: 1 | Q194: 100
A195: POL | B195: Baltic Sea, North Sea and Eastern Arctic, and North Atlantic | C195: Demersal trawlers | D195: 18-<24 m | E195: Demersal trawlers 18-24 m | F195: E | G195: Value of landings per species | H195: First sale document | I195: A | J195: Every Year | K195: 1 | M195: 28 | N195: 28 | O195: 1 | P195: 1 | Q195: 100
A196: POL | B196: Baltic Sea, North Sea and Eastern Arctic, and North Atlantic | C196: Demersal trawlers | D196: 18-<24 m | E196: Demersal trawlers 18-24 m | F196: E | G196: Average price per spices | H196: First sale document | I196: A | J196: Every Year | K196: 1 | M196: 28 | N196: 28 | O196: 1 | P196: 1 | Q196: 100
A197: POL | B197: Baltic Sea, North Sea and Eastern Arctic, and North Atlantic | C197: Demersal trawlers | D197: 18-<24 m | E197: Demersal trawlers 18-24 m | F197: S | G197: Employment by gender | H197: questionnaires | I197: A | J197: Every Year | K197: 1 | M197: 28 | N197: 15 | O197: 0.5357142857 | P197: 0.5357142857 | Q197: 53.57142857
A198: POL | B198: Baltic Sea, North Sea and Eastern Arctic, and North Atlantic | C198: Demersal trawlers | D198: 18-<24 m | E198: Demersal trawlers 18-24 m | F198: S | G198: FTE by gender | H198: questionnaires | I198: A | J198: Every Year | K198: 1 | M198: 28 | N198: 15 | O198: 0.5357142857 | P198: 0.5357142857 | Q198: 53.57142857
A199: POL | B199: Baltic Sea, North Sea and Eastern Arctic, and North Atlantic | C199: Demersal trawlers | D199: 18-<24 m | E199: Demersal trawlers 18-24 m | F199: S | G199: Unpaid labour by gender | H199: questionnaires | I199: A | J199: Every Year | K199: 1 | M199: 28 | N199: 15 | O199: 0.5357142857 | P199: 0.5357142857 | Q199: 53.57142857
A200: POL | B200: Baltic Sea, North Sea and Eastern Arctic, and North Atlantic | C200: Demersal trawlers | D200: 18-<24 m | E200: Demersal trawlers 18-24 m | F200: S | G200: Employment by age | H200: questionnaires | I200: A | J200: Every Year | K200: 1 | M200: 28 | N200: 15 | O200: 0.5357142857 | P200: 0.5357142857 | Q200: 53.57142857
... 204 more rows

Sheet Table3B Pop segments aquacultur
A1: Table 3B: Population segments for collection of economic and social data for aquaculture
Q2: WP years | R2: 2017-2019
Q3: AR year | R3: 2017
A4: MS | B4: Techniques | C4: Species group | D4: Type of variables (E/S) | E4: Variable | F4: Data source | G4: Type of data collection scheme | H4: Threshold (Y/N) | I4: Threshold Type | J4: Frequency | K4: Planned sample rate % | L4: Comments | M4: Frame population | N4: Achieved sample number | O4: Achieved Sample Rate % | P4: Response Rate % | Q4: Achieved Sample no/Planned sample no. | R4: AR Comment
A5: POL | B5: NA | C5: NA | D5: NA | E5: NA | F5: NA | G5: NA | H5: NA | J5: NA | K5: NA | L5: Based on the data until 2015, according to classification of aquaculture activities by Eurostat statistics, Poland has no marine aquaculture sector. Hence, no sampling is planned

Sheet Table3C Pop segments proces
A1: Table 3C: Population segments for collection of economic and social data for the processing industry
N2: WP years | O2: 2017-2019
N3: AR year | O3: 2017
A4: MS | B4: Segment | C4: Type of variables (E/S) | D4: Variables | E4: Data sources | F4: Type of data collection scheme | G4: Frequency | H4: Planned sample rate % | I4: Comments | J4: Frame population | K4: Achieved sample number | L4: Achieved Sample Rate % | M4: Response Rate % | N4: Achieved Sample no/Planned sample no. | O4: AR Comments
A5: POL | B5: Companies <= 10 | C5: E | D5: Turnover | E5: questionnaires | F5: A - Census | G5: every year | H5: 1 | J5: 35 | K5: 27 | M5: 0.7714 | N5: =K5/(J5*H5/100) -> 77.14285714
A6: POL | B6: Companies <= 10 | C6: E | D6: Other income | E6: questionnaires | F6: A - Census | G6: every year | H6: 1 | J6: 35 | K6: 27 | M6: 0.7714 | N6: =K6/(J6*H6/100) -> 77.14285714
A7: POL | B7: Companies <= 10 | C7: E | D7: Personnel costs | E7: questionnaires | F7: A - Census | G7: every year | H7: 1 | J7: 35 | K7: 27 | M7: 0.7714 | N7: 77.14285714
A8: POL | B8: Companies <= 10 | C8: E | D8: Value of unpaied labour | E8: questionnaires | F8: A - Census | G8: every year | H8: 1 | J8: 35 | K8: 27 | M8: 0.7714 | N8: 77.14285714
A9: POL | B9: Companies <= 10 | C9: E | D9: Energy costs | E9: questionnaires | F9: A - Census | G9: every year | H9: 1 | J9: 35 | K9: 27 | M9: 0.7714 | N9: 77.14285714
A10: POL | B10: Companies <= 10 | C10: E | D10: Purchase of fish and other raw material for production | E10: questionnaires | F10: A - Census | G10: every year | H10: 1 | J10: 35 | K10: 27 | M10: 0.7714 | N10: 77.14285714
A11: POL | B11: Companies <= 10 | C11: E | D11: Other operational costs | E11: questionnaires | F11: A - Census | G11: every year | H11: 1 | J11: 35 | K11: 27 | M11: 0.7714 | N11: 77.14285714
A12: POL | B12: Companies <= 10 | C12: E | D12: Operating subsidies | E12: questionnaires | F12: A - Census | G12: every year | H12: 1 | J12: 35 | K12: 27 | M12: 0.7714 | N12: 77.14285714
A13: POL | B13: Companies <= 10 | C13: E | D13: Subsidies on investments | E13: questionnaires | F13: A - Census | G13: every year | H13: 1 | J13: 35 | K13: 27 | M13: 0.7714 | N13: 77.14285714
A14: POL | B14: Companies <= 10 | C14: E | D14: Consumption of fixed capital | E14: questionnaires | F14: A - Census | G14: every year | H14: 1 | J14: 35 | K14: 27 | M14: 0.7714 | N14: 77.14285714
A15: POL | B15: Companies <= 10 | C15: E | D15: Total value of assets | E15: questionnaires | F15: A - Census | G15: every year | H15: 1 | J15: 35 | K15: 27 | M15: 0.7714 | N15: 77.14285714
A16: POL | B16: Companies <= 10 | C16: E | D16: Financial income | E16: questionnaires | F16: A - Census | G16: every year | H16: 1 | J16: 35 | K16: 27 | M16: 0.7714 | N16: 77.14285714
A17: POL | B17: Companies <= 10 | C17: E | D17: Financial expenditures | E17: questionnaires | F17: A - Census | G17: every year | H17: 1 | J17: 35 | K17: 27 | M17: 0.7714 | N17: 77.14285714
A18: POL | B18: Companies <= 10 | C18: E | D18: Net investments | E18: questionnaires | F18: A - Census | G18: every year | H18: 1 | J18: 35 | K18: 27 | M18: 0.7714 | N18: 77.14285714
A19: POL | B19: Companies <= 10 | C19: E | D19: Debt | E19: questionnaires | F19: A - Census | G19: every year | H19: 1 | J19: 35 | K19: 27 | M19: 0.7714 | N19: 77.14285714
A20: POL | B20: Companies <= 10 | C20: E | D20: Number of presons employed | E20: questionnaires | F20: A - Census | G20: every year | H20: 1 | J20: 35 | K20: 27 | M20: 0.7714 | N20: 77.14285714
A21: POL | B21: Companies <= 10 | C21: E | D21: FTE National | E21: questionnaires | F21: A - Census | G21: every year | H21: 1 | J21: 35 | K21: 27 | M21: 0.7714 | N21: 77.14285714
A22: POL | B22: Companies <= 10 | C22: E | D22: Unpaied labour | E22: questionnaires | F22: A - Census | G22: every year | H22: 1 | J22: 35 | K22: 27 | M22: 0.7714 | N22: 77.14285714
A23: POL | B23: Companies <= 10 | C23: E | D23: Number of hours worked by employees | E23: questionnaires | F23: A - Census | G23: every year | H23: 1 | J23: 35 | K23: 27 | M23: 0.7714 | N23: 77.14285714
A24: POL | B24: Companies <= 10 | C24: E | D24: No of eterprises | E24: questionnaires | F24: A - Census | G24: every year | H24: 1 | J24: 35 | K24: 27 | M24: 0.7714 | N24: 77.14285714
A25: POL | B25: Companies <= 10 | C25: E | D25: Weight of raw material per species and origin (optional) | E25: questionnaires | F25: A - Census | G25: every year | H25: 1 | J25: 35 | K25: 27 | M25: 0.7714 | N25: 77.14285714
A26: POL | B26: Companies <= 10 | C26: S | D26: Employment by gender | E26: questionnaires | F26: A - Census | G26: every year | H26: 1 | J26: 35 | K26: 27 | M26: 0.7714 | N26: 77.14285714
A27: POL | B27: Companies <= 10 | C27: S | D27: Employment by edge | E27: questionnaires | F27: A - Census | G27: every year | H27: 1 | J27: 35 | K27: 27 | M27: 0.7714 | N27: 77.14285714
A28: POL | B28: Companies <= 10 | C28: S | D28: Employment by education level | E28: questionnaires | F28: B - Probability Sample Survey | G28: every 3 years starting in 2018 | H28: 1 | J28: NA | K28: NA | L28: NA | M28: NA
A29: POL | B29: Companies <= 10 | C29: S | D29: Employment by nationality | E29: questionnaires | F29: B - Probability Sample Survey | G29: every 3 years starting in 2018 | H29: 1 | J29: NA | K29: NA | L29: NA | M29: NA
A30: POL | B30: Companies <= 10 | C30: S | D30: FTE National | E30: questionnaires | F30: A - Census | G30: every year | H30: 1 | J30: 35 | K30: 27 | M30: 0.7714 | N30: 77.14285714
A31: POL | B31: Companies 11-49 | C31: E | D31: Turnover | E31: questionnaires | F31: A - Census | G31: every year | H31: 1 | J31: 77 | K31: 63 | M31: 0.8182 | N31: 81.81818182
A32: POL | B32: Companies 11-49 | C32: E | D32: Other income | E32: questionnaires | F32: A - Census | G32: every year | H32: 1 | J32: 77 | K32: 63 | M32: 0.8182 | N32: 81.81818182
A33: POL | B33: Companies 11-49 | C33: E | D33: Personnel costs | E33: questionnaires | F33: A - Census | G33: every year | H33: 1 | J33: 77 | K33: 63 | M33: 0.8182 | N33: 81.81818182
A34: POL | B34: Companies 11-49 | C34: E | D34: Value of unpaied labour | E34: questionnaires | F34: A - Census | G34: every year | H34: 1 | J34: 77 | K34: 63 | M34: 0.8182 | N34: 81.81818182
A35: POL | B35: Companies 11-49 | C35: E | D35: Energy costs | E35: questionnaires | F35: A - Census | G35: every year | H35: 1 | J35: 77 | K35: 63 | M35: 0.8182 | N35: 81.81818182
A36: POL | B36: Companies 11-49 | C36: E | D36: Purchase of fish and other raw material for production | E36: questionnaires | F36: A - Census | G36: every year | H36: 1 | J36: 77 | K36: 63 | M36: 0.8182 | N36: 81.81818182
A37: POL | B37: Companies 11-49 | C37: E | D37: Other operational costs | E37: questionnaires | F37: A - Census | G37: every year | H37: 1 | J37: 77 | K37: 63 | M37: 0.8182 | N37: 81.81818182
A38: POL | B38: Companies 11-49 | C38: E | D38: Operating subsidies | E38: questionnaires | F38: A - Census | G38: every year | H38: 1 | J38: 77 | K38: 63 | M38: 0.8182 | N38: 81.81818182
A39: POL | B39: Companies 11-49 | C39: E | D39: Subsidies on investments | E39: questionnaires | F39: A - Census | G39: every year | H39: 1 | J39: 77 | K39: 63 | M39: 0.8182 | N39: 81.81818182
A40: POL | B40: Companies 11-49 | C40: E | D40: Consumption of fixed capital | E40: questionnaires | F40: A - Census | G40: every year | H40: 1 | J40: 77 | K40: 63 | M40: 0.8182 | N40: 81.81818182
A41: POL | B41: Companies 11-49 | C41: E | D41: Total value of assets | E41: questionnaires | F41: A - Census | G41: every year | H41: 1 | J41: 77 | K41: 63 | M41: 0.8182 | N41: 81.81818182
A42: POL | B42: Companies 11-49 | C42: E | D42: Financial income | E42: questionnaires | F42: A - Census | G42: every year | H42: 1 | J42: 77 | K42: 63 | M42: 0.8182 | N42: 81.81818182
A43: POL | B43: Companies 11-49 | C43: E | D43: Financial expenditures | E43: questionnaires | F43: A - Census | G43: every year | H43: 1 | J43: 77 | K43: 63 | M43: 0.8182 | N43: 81.81818182
A44: POL | B44: Companies 11-49 | C44: E | D44: Net investments | E44: questionnaires | F44: A - Census | G44: every year | H44: 1 | J44: 77 | K44: 63 | M44: 0.8182 | N44: 81.81818182
A45: POL | B45: Companies 11-49 | C45: E | D45: Debt | E45: questionnaires | F45: A - Census | G45: every year | H45: 1 | J45: 77 | K45: 63 | M45: 0.8182 | N45: 81.81818182
A46: POL | B46: Companies 11-49 | C46: E | D46: Number of presons employed | E46: questionnaires | F46: A - Census | G46: every year | H46: 1 | J46: 77 | K46: 63 | M46: 0.8182 | N46: 81.81818182
A47: POL | B47: Companies 11-49 | C47: E | D47: FTE National | E47: questionnaires | F47: A - Census | G47: every year | H47: 1 | J47: 77 | K47: 63 | M47: 0.8182 | N47: 81.81818182
A48: POL | B48: Companies 11-49 | C48: E | D48: Unpaied labour | E48: questionnaires | F48: A - Census | G48: every year | H48: 1 | J48: 77 | K48: 63 | M48: 0.8182 | N48: =K48/(J48*H48/100) -> 81.81818182
A49: POL | B49: Companies 11-49 | C49: E | D49: Number of hours worked by employees | E49: questionnaires | F49: A - Census | G49: every year | H49: 1 | J49: 77 | K49: 63 | M49: 0.8182 | N49: 81.81818182
A50: POL | B50: Companies 11-49 | C50: E | D50: No of eterprises | E50: questionnaires | F50: A - Census | G50: every year | H50: 1 | J50: 77 | K50: 63 | M50: 0.8182 | N50: 81.81818182
A51: POL | B51: Companies 11-49 | C51: E | D51: Weight of raw material per species and origin (optional) | E51: questionnaires | F51: A - Census | G51: every year | H51: 1 | J51: 77 | K51: 63 | M51: 0.8182 | N51: 81.81818182
A52: POL | B52: Companies 11-49 | C52: S | D52: Employment by gender | E52: questionnaires | F52: A - Census | G52: every year | H52: 1 | J52: 77 | K52: 63 | M52: 0.8182 | N52: 81.81818182
A53: POL | B53: Companies 11-49 | C53: S | D53: Employment by edge | E53: questionnaires | F53: A - Census | G53: every year | H53: 1 | J53: 77 | K53: 63 | M53: 0.8182 | N53: 81.81818182
A54: POL | B54: Companies 11-49 | C54: S | D54: Employment by education level | E54: questionnaires | F54: B - Probability Sample Survey | G54: every 3 years starting in 2018 | H54: 1 | J54: NA | K54: NA | L54: NA | M54: NA
A55: POL | B55: Companies 11-49 | C55: S | D55: Employment by nationality | E55: questionnaires | F55: B - Probability Sample Survey | G55: every 3 years starting in 2018 | H55: 1 | J55: NA | K55: NA | L55: NA | M55: NA
A56: POL | B56: Companies 11-49 | C56: S | D56: FTE National | E56: questionnaires | F56: A - Census | G56: every year | H56: 1 | J56: 77 | K56: 63 | M56: 0.8182 | N56: =K56/(J56*H56/100) -> 81.81818182
A57: POL | B57: Companies 50-250 | C57: E | D57: Turnover | E57: questionnaires | F57: A - Census | G57: every year | H57: 1 | J57: 57 | K57: 52 | M57: 0.9123 | N57: 91.22807018
A58: POL | B58: Companies 50-250 | C58: E | D58: Other income | E58: questionnaires | F58: A - Census | G58: every year | H58: 1 | J58: 57 | K58: 52 | M58: 0.9123 | N58: 91.22807018
A59: POL | B59: Companies 50-250 | C59: E | D59: Personnel costs | E59: questionnaires | F59: A - Census | G59: every year | H59: 1 | J59: 57 | K59: 52 | M59: 0.9123 | N59: 91.22807018
A60: POL | B60: Companies 50-250 | C60: E | D60: Value of unpaied labour | E60: questionnaires | F60: A - Census | G60: every year | H60: 1 | J60: 57 | K60: 52 | M60: 0.9123 | N60: 91.22807018
A61: POL | B61: Companies 50-250 | C61: E | D61: Energy costs | E61: questionnaires | F61: A - Census | G61: every year | H61: 1 | J61: 57 | K61: 52 | M61: 0.9123 | N61: 91.22807018
A62: POL | B62: Companies 50-250 | C62: E | D62: Purchase of fish and other raw material for production | E62: questionnaires | F62: A - Census | G62: every year | H62: 1 | J62: 57 | K62: 52 | M62: 0.9123 | N62: 91.22807018
A63: POL | B63: Companies 50-250 | C63: E | D63: Other operational costs | E63: questionnaires | F63: A - Census | G63: every year | H63: 1 | J63: 57 | K63: 52 | M63: 0.9123 | N63: 91.22807018
A64: POL | B64: Companies 50-250 | C64: E | D64: Operating subsidies | E64: questionnaires | F64: A - Census | G64: every year | H64: 1 | J64: 57 | K64: 52 | M64: 0.9123 | N64: 91.22807018
A65: POL | B65: Companies 50-250 | C65: E | D65: Subsidies on investments | E65: questionnaires | F65: A - Census | G65: every year | H65: 1 | J65: 57 | K65: 52 | M65: 0.9123 | N65: 91.22807018
A66: POL | B66: Companies 50-250 | C66: E | D66: Consumption of fixed capital | E66: questionnaires | F66: A - Census | G66: every year | H66: 1 | J66: 57 | K66: 52 | M66: 0.9123 | N66: 91.22807018
A67: POL | B67: Companies 50-250 | C67: E | D67: Total value of assets | E67: questionnaires | F67: A - Census | G67: every year | H67: 1 | J67: 57 | K67: 52 | M67: 0.9123 | N67: 91.22807018
A68: POL | B68: Companies 50-250 | C68: E | D68: Financial income | E68: questionnaires | F68: A - Census | G68: every year | H68: 1 | J68: 57 | K68: 52 | M68: 0.9123 | N68: 91.22807018
A69: POL | B69: Companies 50-250 | C69: E | D69: Financial expenditures | E69: questionnaires | F69: A - Census | G69: every year | H69: 1 | J69: 57 | K69: 52 | M69: 0.9123 | N69: 91.22807018
A70: POL | B70: Companies 50-250 | C70: E | D70: Net investments | E70: questionnaires | F70: A - Census | G70: every year | H70: 1 | J70: 57 | K70: 52 | M70: 0.9123 | N70: 91.22807018
A71: POL | B71: Companies 50-250 | C71: E | D71: Debt | E71: questionnaires | F71: A - Census | G71: every year | H71: 1 | J71: 57 | K71: 52 | M71: 0.9123 | N71: 91.22807018
A72: POL | B72: Companies 50-250 | C72: E | D72: Number of presons employed | E72: questionnaires | F72: A - Census | G72: every year | H72: 1 | J72: 57 | K72: 52 | M72: 0.9123 | N72: 91.22807018
A73: POL | B73: Companies 50-250 | C73: E | D73: FTE National | E73: questionnaires | F73: A - Census | G73: every year | H73: 1 | J73: 57 | K73: 52 | M73: 0.9123 | N73: 91.22807018
A74: POL | B74: Companies 50-250 | C74: E | D74: Unpaied labour | E74: questionnaires | F74: A - Census | G74: every year | H74: 1 | J74: 57 | K74: 52 | M74: 0.9123 | N74: 91.22807018
A75: POL | B75: Companies 50-250 | C75: E | D75: Number of hours worked by employees | E75: questionnaires | F75: A - Census | G75: every year | H75: 1 | J75: 57 | K75: 52 | M75: 0.9123 | N75: 91.22807018
A76: POL | B76: Companies 50-250 | C76: E | D76: No of eterprises | E76: questionnaires | F76: A - Census | G76: every year | H76: 1 | J76: 57 | K76: 52 | M76: 0.9123 | N76: =K76/(J76*H76/100) -> 91.22807018
A77: POL | B77: Companies 50-250 | C77: E | D77: Weight of raw material per species and origin (optional) | E77: questionnaires | F77: A - Census | G77: every year | H77: 1 | J77: 57 | K77: 52 | M77: 0.9123 | N77: 91.22807018
A78: POL | B78: Companies 50-250 | C78: S | D78: Employment by gender | E78: questionnaires | F78: A - Census | G78: every year | H78: 1 | J78: 57 | K78: 52 | M78: 0.9123 | N78: 91.22807018
A79: POL | B79: Companies 50-250 | C79: S | D79: Employment by edge | E79: questionnaires | F79: A - Census | G79: every year | H79: 1 | J79: 57 | K79: 52 | M79: 0.9123 | N79: 91.22807018
A80: POL | B80: Companies 50-250 | C80: S | D80: Employment by education level | E80: questionnaires | F80: B - Probability Sample Survey | G80: every 3 years starting in 2018 | H80: 1 | J80: NA | K80: NA | L80: NA | M80: NA
A81: POL | B81: Companies 50-250 | C81: S | D81: Employment by nationality | E81: questionnaires | F81: B - Probability Sample Survey | G81: every 3 years starting in 2018 | H81: 1 | J81: NA | K81: NA | L81: NA | M81: NA
A82: POL | B82: Companies 50-250 | C82: S | D82: FTE National | E82: questionnaires | F82: A - Census | G82: every year | H82: 1 | J82: 57 | K82: 52 | M82: 0.9123 | N82: =K82/(J82*H82/100) -> 91.22807018
A83: POL | B83: Companies > 250 | C83: E | D83: Turnover | E83: questionnaires | F83: A - Census | G83: every year | H83: 1 | J83: 12 | K83: 12 | M83: 1 | N83: 100
A84: POL | B84: Companies > 250 | C84: E | D84: Other income | E84: questionnaires | F84: A - Census | G84: every year | H84: 1 | J84: 12 | K84: 12 | M84: 1 | N84: 100
A85: POL | B85: Companies > 250 | C85: E | D85: Personnel costs | E85: questionnaires | F85: A - Census | G85: every year | H85: 1 | J85: 12 | K85: 12 | M85: 1 | N85: 100
A86: POL | B86: Companies > 250 | C86: E | D86: Value of unpaied labour | E86: questionnaires | F86: A - Census | G86: every year | H86: 1 | J86: 12 | K86: 12 | M86: 1 | N86: 100
A87: POL | B87: Companies > 250 | C87: E | D87: Energy costs | E87: questionnaires | F87: A - Census | G87: every year | H87: 1 | J87: 12 | K87: 12 | M87: 1 | N87: 100
A88: POL | B88: Companies > 250 | C88: E | D88: Purchase of fish and other raw material for production | E88: questionnaires | F88: A - Census | G88: every year | H88: 1 | J88: 12 | K88: 12 | M88: 1 | N88: 100
A89: POL | B89: Companies > 250 | C89: E | D89: Other operational costs | E89: questionnaires | F89: A - Census | G89: every year | H89: 1 | J89: 12 | K89: 12 | M89: 1 | N89: 100
A90: POL | B90: Companies > 250 | C90: E | D90: Operating subsidies | E90: questionnaires | F90: A - Census | G90: every year | H90: 1 | J90: 12 | K90: 12 | M90: 1 | N90: 100
A91: POL | B91: Companies > 250 | C91: E | D91: Subsidies on investments | E91: questionnaires | F91: A - Census | G91: every year | H91: 1 | J91: 12 | K91: 12 | M91: 1 | N91: 100
A92: POL | B92: Companies > 250 | C92: E | D92: Consumption of fixed capital | E92: questionnaires | F92: A - Census | G92: every year | H92: 1 | J92: 12 | K92: 12 | M92: 1 | N92: 100
A93: POL | B93: Companies > 250 | C93: E | D93: Total value of assets | E93: questionnaires | F93: A - Census | G93: every year | H93: 1 | J93: 12 | K93: 12 | M93: 1 | N93: 100
A94: POL | B94: Companies > 250 | C94: E | D94: Financial income | E94: questionnaires | F94: A - Census | G94: every year | H94: 1 | J94: 12 | K94: 12 | M94: 1 | N94: 100
A95: POL | B95: Companies > 250 | C95: E | D95: Financial expenditures | E95: questionnaires | F95: A - Census | G95: every year | H95: 1 | J95: 12 | K95: 12 | M95: 1 | N95: 100
A96: POL | B96: Companies > 250 | C96: E | D96: Net investments | E96: questionnaires | F96: A - Census | G96: every year | H96: 1 | J96: 12 | K96: 12 | M96: 1 | N96: 100
A97: POL | B97: Companies > 250 | C97: E | D97: Debt | E97: questionnaires | F97: A - Census | G97: every year | H97: 1 | J97: 12 | K97: 12 | M97: 1 | N97: 100
A98: POL | B98: Companies > 250 | C98: E | D98: Number of presons employed | E98: questionnaires | F98: A - Census | G98: every year | H98: 1 | J98: 12 | K98: 12 | M98: 1 | N98: 100
A99: POL | B99: Companies > 250 | C99: E | D99: FTE National | E99: questionnaires | F99: A - Census | G99: every year | H99: 1 | J99: 12 | K99: 12 | M99: 1 | N99: 100
A100: POL | B100: Companies > 250 | C100: E | D100: Unpaied labour | E100: questionnaires | F100: A - Census | G100: every year | H100: 1 | J100: 12 | K100: 12 | M100: 1 | N100: 100
A101: POL | B101: Companies > 250 | C101: E | D101: Number of hours worked by employees | E101: questionnaires | F101: A - Census | G101: every year | H101: 1 | J101: 12 | K101: 12 | M101: 1 | N101: 100
A102: POL | B102: Companies > 250 | C102: E | D102: No of eterprises | E102: questionnaires | F102: A - Census | G102: every year | H102: 1 | J102: 12 | K102: 12 | M102: 1 | N102: 100
A103: POL | B103: Companies > 250 | C103: E | D103: Weight of raw material per species and origin (optional) | E103: questionnaires | F103: A - Census | G103: every year | H103: 1 | J103: 12 | K103: 12 | M103: 1 | N103: 100
A104: POL | B104: Companies > 250 | C104: S | D104: Employment by gender | E104: questionnaires | F104: A - Census | G104: every year | H104: 1 | J104: 12 | K104: 12 | M104: 1 | N104: 100
A105: POL | B105: Companies > 250 | C105: S | D105: Employment by edge | E105: questionnaires | F105: A - Census | G105: every year | H105: 1 | J105: 12 | K105: 12 | M105: 1 | N105: 100
A106: POL | B106: Companies > 250 | C106: S | D106: Employment by education level | E106: questionnaires | F106: B - Probability Sample Survey | G106: every 3 years starting in 2018 | H106: 1 | J106: NA | K106: NA | L106: NA | M106: NA
A107: POL | B107: Companies > 250 | C107: S | D107: Employment by nationality | E107: questionnaires | F107: B - Probability Sample Survey | G107: every 3 years starting in 2018 | H107: 1 | J107: NA | K107: NA | L107: NA | M107: NA

Sheet Table4A Sampling plan descripti
A1: Table 4A: Sampling plan description for biological data
X2: WP years | Y2: 2017-2019
X3: AR year | Y3: 2017
P4: Conformity | S4: Informative Data
A5: MS | B5: MS participating in sampling | C5: Region | D5: RFMO/RFO/IO | E5: Sub-area / Fishing ground | F5: Scheme | G5: Stratum ID code | H5: PSU type | I5: Catch fractions covered | J5: Species/ Stocks covered for estimation of volume and length of catch fractions | K5: Seasonality (Temporal strata) | L5: Reference years | M5: Average Number of PSU during the reference years | N5: Planned number of PSUs | O5: Comments | P5: Total number of PSU in the sampling year | Q5: Achieved number of PSU in the sampling year | R5: % of achievement (100*Q/N) | S5: Number of unique vessels with activity in the stratum | T5: Number of unique vessels sampled | U5: Number of fishing trips in the stratum | V5: Number of fishing trips sampled | W5: Number of species with length measurements | X5: Total number of length measurements | Y5: AR Comments
A6: POL | B6: POL | C6: Baltic | D6: ICES | E6: 22-24 | F6: Demersal at sea and on shore | G6: POL DCT1 | H6: vessel trip | I6: landings + discards | J6: all species and stocks | K6: quarterly | L6: 2013-2015 | M6: 93 | N6: 4 | O6: coverage 85% | P6: 152 | Q6: 5 | R6: 125 | S6: 23 | T6: 5 | U6: 118 | V6: 5 | W6: 7 | X6: 3800
A7: POL | B7: POL | C7: Baltic | D7: ICES | E7: 22-24 | F7: Demersal at sea and on shore | G7: POL GNSC1 | H7: vessel trip | I7: landings + discards | J7: all species and stocks | K7: quarterly | L7: 2013-2015 | M7: 480 | N7: 6 | P7: 247 | Q7: 1 | R7: 16.66666667 | S7: 27 | T7: 1 | U7: 184 | V7: 1 | W7: 3 | X7: 85
A8: POL | B8: POL | C8: Baltic | D8: ICES | E8: 25-32 | F8: Demersal at sea and on shore | G8: POL DCT2 | H8: vessel trip | I8: landings + discards | J8: all species and stocks | K8: quarterly | L8: 2013-2015 | M8: 3100 | N8: 21 | O8: coverage 71% | P8: 1836 | Q8: 13 | R8: 61.9047619 | S8: 100 | T8: 7 | U8: 1750 | V8: 13 | W8: 7 | X8: 5592
A9: POL | B9: POL | C9: Baltic | D9: ICES | E9: 25-32 | F9: Demersal at sea and on shore | G9: POL GNSC2 | H9: vessel trip | I9: landings + discards | J9: all species and stocks | K9: quarterly | L9: 2013-2015 | M9: 8891 | N9: 14 | P9: 5589 | Q9: 5 | R9: 35.71428571 | S9: 176 | T9: 3 | U9: 3935 | V9: 5 | W9: 4 | X9: 1100
A10: POL | B10: POL | C10: Baltic | D10: ICES | E10: 22-32 | F10: Demersal at sea and on shore | G10: POL DTF | H10: vessel trip | I10: landings + discards | J10: all species and stocks | K10: quarterly | L10: 2013-2015 | M10: 1374 | N10: 26 | O10: coverage 82% | P10: 1224 | Q10: 6 | R10: 23.07692308 | S10: 62 | T10: 3 | U10: 1001 | V10: 6 | W10: 5 | X10: 2376
A11: POL | B11: POL | C11: Baltic | D11: ICES | E11: 22-32 | F11: Demersal at sea and on shore | G11: POL GNSF | H11: vessel trip | I11: landings + discards | J11: all species and stocks | K11: quarterly | L11: 2013-2015 | M11: 7997 | N11: 9 | P11: 9020 | Q11: 9 | R11: 100 | S11: 238 | T11: 8 | U11: 6713 | V11: 9 | W11: 8 | X11: 1292
A12: POL | B12: POL | C12: Baltic | D12: ICES | E12: 22-32 | F12: Pelagic at sea and on shore | G12: POL PST | H12: vessel trip | I12: landings + discards | J12: all species and stocks | K12: quarterly | L12: 2013-2015 | M12: 2546 | N12: 34 | O12: coverage 97% | P12: 2675 | Q12: 33 | R12: 97.05882353 | S12: 85 | T12: 15 | U12: 2483 | V12: 33 | W12: 11 | X12: 14183
A13: POL | B13: POL | C13: Baltic | D13: ICES | E13: 22-24 | F13: Pelagic at sea and on shore | G13: POL PHT1 | H13: vessel trip | I13: landings + discards | J13: all species and stocks | K13: quarterly | L13: 2013-2015 | M13: 60 | N13: 9 | O13: coverage 81% | P13: 91 | Q13: 5 | R13: 55.55555556 | S13: 13 | T13: 4 | U13: 72 | V13: 5 | W13: 6 | X13: 4205
A14: POL | B14: POL | C14: Baltic | D14: ICES | E14: 22-24 | F14: Pelagic at sea and on shore | G14: POL BH1 | H14: vessel trip | I14: landings + discards | J14: all species and stocks | K14: quarterly | L14: 2013-2015 | M14: 189 | N14: 3 | P14: 235 | Q14: 6 | R14: 200 | S14: 16 | T14: 2 | U14: 226 | V14: 6 | W14: 2 | X14: 1177 | Y14: 3 x trip HER FPO included
A15: POL | B15: POL | C15: Baltic | D15: ICES | E15: 25-32 | F15: Pelagic at sea and on shore | G15: POL PHT2 | H15: vessel trip | I15: landings + discards | J15: all species and stocks | K15: quarterly | L15: 2013-2015 | M15: 1166 | N15: 25 | O15: coverage 61% | P15: 2344 | Q15: 22 | R15: 88 | S15: 80 | T15: 11 | U15: 2175 | V15: 22 | W15: 10 | X15: 15262
A16: POL | B16: POL | C16: Baltic | D16: ICES | E16: 25-32 | F16: Pelagic at sea and on shore | G16: POL BH2 | H16: vessel trip | I16: landings + discards | J16: all species and stocks | K16: quarterly | L16: 2013-2015 | M16: 630 | N16: 5 | P16: 2366 | Q16: 3 | R16: 60 | S16: 51 | T16: 2 | U16: 732 | V16: 3 | W16: 2 | X16: 582 | Y16: 2 x trip HER FPO included
A17: POL | B17: POL | C17: Baltic | D17: ICES | E17: 22-24 | F17: Freshwater and eel at sea and on shore | G17: POL BFWS1 | H17: vessel trip | I17: landings + discards | J17: all species and stocks | K17: annual | L17: 2013-2015 | M17: 3800 | N17: 14 | O17: coverage 70% | P17: 3926 | Q17: 9 | R17: 64.28571429 | S17: 87 | T17: 6 | U17: 3526 | V17: 9 | W17: 17 | X17: 2643 | Y17: 2 x trip FBM FPO included
A18: POL | B18: POL | C18: Baltic | D18: ICES | E18: 25-32 | F18: Freshwater and eel at sea and on shore | G18: POL BFWS2 | H18: vessel trip | I18: landings + discards | J18: all species and stocks | K18: annual | L18: 2013-2015 | M18: 2836 | N18: 14 | O18: coverage 77% | P18: 3429 | Q18: 14 | R18: 100 | S18: 169 | T18: 11 | U18: 2867 | V18: 14 | W18: 16 | X18: 2280
A19: POL | B19: POL | C19: Baltic | D19: ICES | E19: 22-32 | F19: Salmonids at sea and on shore | G19: POL GNSSAL | H19: vessel trip | I19: landings + discards | J19: all species and stocks | K19: annual | L19: 2013-2015 | M19: 1777 | N19: 14 | O19: coverage 67% | P19: 2093 | Q19: 10 | R19: 71.42857143 | S19: 91 | T19: 1 | U19: 1365 | V19: 10 | W19: 1 | X19: 15
A20: POL | B20: POL | C20: Baltic | D20: ICES | E20: 22-32 | F20: Salmonids at sea and on shore | G20: POL LLDSAL | H20: vessel trip | I20: landings + discards | J20: all species and stocks | K20: annual | L20: 2013-2015 | M20: 314 | N20: 10 | P20: 543 | Q20: 8 | R20: 80 | S20: 35 | T20: 4 | U20: 352 | V20: 8 | W20: 4 | X20: 622
A21: POL | B21: POL | C21: North Sea and Eastern Arctic | D21: ICES | E21: I, II | F21: at sea | G21: LDF1 | H21: vessel trip | I21: landings + discards | J21: all species and stocks | K21: annual | L21: 2013-2015 | M21: 5 | N21: 1 | O21: coverage 100% | P21: 4 | Q21: 1 | R21: 100 | S21: 2 | T21: 1 | U21: 4 | V21: 1 | W21: 20 | X21: 13386
A22: POL | B22: DEU - LTU -LVA - NLD - POL | C22: other regions | D22: CECAF | E22: 34.1.3; 34.3.1 | F22: at sea | G22: LDF2 | H22: vessel trip | I22: landings + discards | J22: all species and stocks | K22: annual | L22: 2013-2015 | M22: 9 | N22: NA | O22: Multilateral agreement on joint sampling programme - | P22: 7 | Q22: 0 | S22: 1 | T22: 0 | U22: 7 | V22: 0 | W22: 0 | X22: 0 | Y22: Joint sampling programme coordinated by NLD - see Table 7C
A23: POL | B23: DEU - LTU - NLD - POL | C23: other regions | D23: SPRFMO | E23: SPRFMO Convention Area | F23: at sea | G23: LDF3 | H23: vessel trip | I23: landings + discards | J23: all species and stocks | K23: annual | L23: 2013-2015 | M23: 0 | N23: NA | O23: Multilateral agreement on joint sampling programme | P23: 10 | Q23: 3 | S23: 2 | T23: 1 | U23: 10 | V23: 3 | W23: 9 | X23: 14575 | Y23: Not planned in WP. However, from 2017 POL is coordinating joint sampling programme (see Table 7C). Sampling programme set in line with the SPRFMO Data Standards (CMM 02-2017). Scientific observer coverage of 10% of trips of the EU vessels meets the requirements of the SPRFMO Conservation and Managemnt Measure for Trachurus murphyi (CMM 01-2017).
A24: POL | B24: POL | C24: Baltic | D24: ICES | E24: 22-32 | F24: Demersal at sea and on shore | G24: POL SAN | H24: vessel trip | I24: landings + discards | J24: all species and stocks | K24: quarterly | L24: 2013-2015 | M24: 0 | N24: 0 | P24: 22 | Q24: 1 | S24: 6 | T24: 1 | U24: 22 | V24: 1 | W24: 3 | X24: 1443 | Y24: New row - Sandeel fishery was not selected as a sampling frame in the WP, but one trip was sampled in order to have some picture of this fishery
A25: POL | B25: POL | C25: Baltic | D25: ICES | E25: 25-23 | F25: Demersal at sea and on shore | G25: POL COD LLS | H25: vessel trip | I25: landings + discards | J25: all species and stocks | K25: quarterly | L25: 2013-2015 | M25: 799 | N25: 0 | P25: 601 | Q25: 1 | S25: 64 | T25: 1 | U25: 601 | V25: 1 | W25: 1 | X25: 95 | Y25: New row - Cod fishery using set longlines was not selected as a sampling frame in the WP, but one trip was sampled in order to have some picture of this fishery

Sheet Table4B Sampling frame descrip
A1: Table 4B: Sampling frame description for biological data
E2: WP years | F2: 2017-2019
E3: AR year | F3: 2017
A4: MS | B4: Stratum ID number | C4: Stratum | D4: Sampling frame description | E4: Method of PSU selection | F4: Comments
A5: POL | B5: POL DCT1 | C5: Baltic demersal trawlers targeting western cod | D5: Vessel list of 48 DTS landing cod in 3 ranked ports | E5: random draw
A6: POL | B6: POL GNSC1 | C6: Balctic gillnetters targeting western cod | D6: Vessel list of 57 GNTS landing cod in 5 ranked ports | E6: random draw
A7: POL | B7: POL DCT2 | C7: Baltic demersal trawlers targeting eastern cod | D7: Vessel list of 154 DTS landing cod in 6 ranked ports | E7: random draw
A8: POL | B8: POL GNSC2 | C8: Balctic gillnetters targeting eastern cod | D8: Vessel list of 251 GNTS landing cod in 12 ranked ports | E8: random draw
A9: POL | B9: POL DTF | C9: Baltic demersal trawlers targeting flatfish | D9: Vessel list of 101 DTS landing flatfish in 5 ranked ports | E9: random draw
A10: POL | B10: POL GNSF | C10: Balctic gillnetters targeting flatfish | D10: Vessel list of 361 GNTS landing cod in 23 ranked ports | E10: random draw
A11: POL | B11: POL PST | C11: Baltic sprat trawlers | D11: Vessel list of 121 PTS landing sprat in 6 ranked ports | E11: random draw
A12: POL | B12: POL PHT1 | C12: Batlic herring trawlers of SD 22-24 | D12: Vessel list of 15 PTS landing herring in 1 ranked port | E12: random draw
A13: POL | B13: POL BH1 | C13: Batlic onshore boats targeting herring of SD 22-24 | D13: Vessel list of 18 boats landing herring in 3 ranked port | E13: random draw
A14: POL | B14: POL PHT2 | C14: Batlic herring trawlers of SD 25-32 | D14: Vessel list of 100 PTS landing herring in 4 ranked port | E14: random draw
A15: POL | B15: POL BH2 | C15: Batlic onshore boats targeting herring of SD 25-32 | D15: Vessel list of 90 boats landing herring in 14 ranked port | E15: random draw
A16: POL | B16: POL BFWS1 | C16: Baltic boats targeting freshwater species of SD 22-24 | D16: Vessel list of 94 boats landing freshwater species and eel in 8 ranked port | E16: random draw
A17: POL | B17: POL BFWS2 | C17: Baltic boats targeting freshwater species of SD 25-32 | D17: Vessel list of 239 boats landing freshwater species and eel in 20 ranked port | E17: random draw
A18: POL | B18: POL GNSSAL | C18: Baltic onshore boats targeting salmonids | D18: Vessel list of 165 boats landing salmonids species in 10 ranked port | E18: random draw
A19: POL | B19: POL LLDSAL | C19: Baltic offshore longliners targeting salmon | D19: Vessel list of 51 longliners landing salmon in 4 ranked port | E19: random draw
A20: POL | B20: LDF1 | C20: Freezer trawler targetting cod in NS&EA | D20: 1 trawler targeting cod | E20: NA | F20: NS&EA - one vessel only - no selection needed
A21: POL | B21: LDF2 | C21: Pelagic trawlers fishing in CECAF | D21: Pelagic trawlers fishing in CECAF | E21: NA | F21: Multilateral agreement on joint sampling programme
A22: POL | B22: LDF3 | C22: Pelagic trawlers fishing in SPRFMO | D22: Pelagic trawlers fishing in SPRFMO | E22: NA | F22: Multilateral agreement on joint sampling programme

Sheet Table4C Data on the fisheries
A1: Table 4C: Data on the fisheries by member state
U2: WP years | V2: 2017-2019
U3: AR year | V3: 2017
A4: MS | B4: Region | C4: RFMO/RFO/IO | D4: Sub-area / Fishing ground | E4: Reference years | F4: Fleet segment / Metier | G4: Targeted species / species assemblage | H4: Average number of vessels | I4: Average number of fishing trips | J4: Average number of fishing days | K4: Average landings (tons) | L4: Average landings (tons) in national ports | M4: Average landings (tons) in foreign ports | N4: Comments | O4: Number of vessels | P4: Number of fishing trips | Q4: Number of fishing days | R4: Is the fleet segment/ metier covered by any stratum (Y/N) | S4: Landings (tons) | T4: Landings (tons) in national ports | U4: Landings (tons) in foreign ports | V4: AR Comments
A5: POL | B5: Baltic Sea | C5: ICES | D5: SD 22-24 | E5: 2013-2015 | F5: demersal trawlers | G5: cod | H5: 34 | I5: 101 | J5: 235 | K5: =L5+M5 -> 323.0701 | L5: 320.2714333 | M5: 2.798666667 | N5: Table 4C was filled in by metier and the sum of vessels of all metiers is higher than the total number of registered Polish fishing vessels. This is because many vessels use more than one gear type / metier. Moreover, the sampling scheme is stock based and as the fishing vessels can target more than one stock within one metier same vessels are included in many groups. | O5: 31 | P5: 152 | Q5: 298 | R5: Y | S5: =T5+U5 -> 535.8247 | T5: 532.2787 | U5: 3.546
A6: POL | B6: Baltic Sea | C6: ICES | D6: SD 25-32 | E6: 2013-2015 | F6: demersal trawlers | G6: cod | H6: 148 | I6: 3310 | J6: 5646 | K6: =L6+M6 -> 8033.24334 | L6: 8030.65434 | M6: 2.589 | O6: 110 | P6: 1836 | Q6: 2962 | R6: Y | S6: =T6+U6 -> 4826.916 | T6: 4826.216 | U6: 0.7
A7: POL | B7: Baltic Sea | C7: ICES | D7: SD 22-24 | E7: 2013-2015 | F7: gillnetters | G7: cod | H7: 51 | I7: 574 | J7: 756 | K7: 361.6568333 | L7: 360.8868333 | M7: 0.77 | O7: 42 | P7: 247 | Q7: 465 | R7: Y | S7: 278.4262 | T7: 278.4262 | U7: 0
A8: POL | B8: Baltic Sea | C8: ICES | D8: SD 25-32 | E8: 2013-2015 | F8: gillnetters | G8: cod | H8: 349 | I8: 12972 | J8: 14050 | K8: 3074.156733 | L8: 3074.156733 | M8: 0 | O8: 282 | P8: 5589 | Q8: 5965 | R8: Y | S8: 1266.906 | T8: 1266.636 | U8: 0.27
A9: POL | B9: Baltic Sea | C9: ICES | D9: SD 22-32 | E9: 2013-2015 | F9: demersal trawlers | G9: flounder, plaice, turbot | H9: 125 | I9: 1586 | J9: 3253 | K9: 8934.119147 | L9: 8929.13648 | M9: 4.982666667 | O9: 94 | P9: 1224 | Q9: 2454 | R9: Y | S9: 7864.403 | T9: 7826.551 | U9: 37.852
A10: POL | B10: Baltic Sea | C10: ICES | D10: SD 22-32 | E10: 2013-2015 | F10: gillnetters | G10: flounder, plaice, turbot | H10: 370 | I10: 10115 | J10: 10318 | K10: 2841.38539 | L10: 2841.348057 | M10: 0.03733333333 | O10: 339 | P10: 9020 | Q10: 9190 | R10: Y | S10: 2927.948 | T10: 2927.348 | U10: 0.6
A11: POL | B11: Baltic Sea | C11: ICES | D11: SD 22-32 | E11: 2013-2015 | F11: pelagic trawlers | G11: sprat | H11: 99 | I11: 2617 | J11: 3555 | K11: 63152.51542 | L11: 42908.73008 | M11: 20243.78533 | O11: 94 | P11: 2675 | Q11: 3406 | R11: Y | S11: 72424.85 | T11: 49057.93 | U11: 23366.92
A12: POL | B12: Baltic Sea | C12: ICES | D12: SD 22-24 | E12: 2013-2015 | F12: pelagic trawlers | G12: herring | H12: 15 | I12: 66 | J12: 133 | K12: 1922.009 | L12: 1808.917333 | M12: 113.0916667 | O12: 18 | P12: 91 | Q12: 169 | R12: Y | S12: 2002.958 | T12: 1912.708 | U12: 90.25
A13: POL | B13: Baltic Sea | C13: ICES | D13: SD 25-32 | E13: 2013-2015 | F13: pelagic trawlers | G13: herring | H13: 82 | I13: 1222 | J13: 1950 | K13: 21161.96942 | L13: 19309.84275 | M13: 1852.126667 | O13: 96 | P13: 2344 | Q13: 3550 | R13: Y | S13: 33540.98 | T13: 30444.88 | U13: 3096.1
A14: POL | B14: Baltic Sea | C14: ICES | D14: SD 22-24 | E14: 2013-2015 | F14: gillnetters | G14: herring | H14: 19 | I14: 193 | J14: 139 | K14: 355.153 | L14: 355.153 | M14: 0 | O14: 20 | P14: 235 | Q14: 235 | R14: Y | S14: 387.66 | T14: 387.66 | U14: 0
A15: POL | B15: Baltic Sea | C15: ICES | D15: SD 25-32 | E15: 2013-2015 | F15: gillnetters | G15: herring | H15: 168 | I15: 2015 | J15: 2016 | K15: 1128.79105 | L15: 1128.74105 | M15: 0.05 | O15: 227 | P15: 2366 | Q15: 2367 | R15: Y | S15: 1136.032 | T15: 1136.032 | U15: 0
A16: POL | B16: Baltic Sea | C16: ICES | D16: SD 22-24 | E16: 2013-2015 | F16: passive gears | G16: perch, pike-perch | H16: 130 | I16: 4323 | J16: 4323 | K16: 840.94828 | L16: 840.94828 | M16: 0 | O16: 124 | P16: 3926 | Q16: 3926 | R16: Y | S16: 802.2064 | T16: 802.2064 | U16: 0
A17: POL | B17: Baltic Sea | C17: ICES | D17: SD 25-32 | E17: 2013-2015 | F17: passive gears | G17: perch, pike-perch | H17: 225 | I17: 3210 | J17: 3210 | K17: 216.5909833 | L17: 216.5909833 | M17: 0 | O17: 219 | P17: 3429 | Q17: 3430 | R17: Y | S17: 210.625 | T17: 210.625 | U17: 0
A18: POL | B18: Baltic Sea | C18: ICES | D18: SD 22-32 | E18: 2013-2015 | F18: gillnetters | G18: salmon, sea trout | H18: 176 | I18: 2148 | J18: 2160 | K18: 78.30676667 | L18: 78.30676667 | M18: 0 | O18: 195 | P18: 2093 | Q18: 2144 | R18: Y | S18: 89.0379 | T18: 88.9659 | U18: 0.072
A19: POL | B19: Baltic Sea | C19: ICES | D19: SD 22-32 | E19: 2013-2015 | F19: longliners | G19: salmon, sea trout | H19: 45 | I19: 335 | J19: 541 | K19: 44.05065 | L19: 44.05065 | M19: 0 | O19: 64 | P19: 543 | Q19: 997 | R19: Y | S19: 102.577 | T19: 102.577 | U19: 0
A20: POL | B20: North Sea and Eastern Arctic | C20: ICES | D20: I, II | E20: 2013-2015 | F20: demersal trawlers | G20: cod | H20: 1 | I20: 5 | J20: 176 | K20: 5700.064 | L20: 0 | M20: 5700.064 | O20: 2 | P20: 4 | Q20: 158 | R20: Y | S20: 3962.563 | T20: 0 | U20: 3962.563
A21: POL | B21: other regions | C21: CECAF | D21: 34.1.3; 34.3.1 | E21: 2013-2015 | F21: pelagic trawlers | G21: pelagic species | H21: 2 | I21: 9 | J21: 324 | K21: 26189 | L21: 0 | M21: 26189 | O21: 1 | P21: 7 | Q21: 150 | R21: Y | S21: 12531.12 | T21: 0 | U21: 12531.12
A22: POL | B22: other regions | C22: SPRFMO | D22: SPRFMO Convention Area | E22: 2013-2015 | F22: pelagic trawlers | G22: pelagic species | H22: 0 | I22: 0 | J22: 0 | K22: 0 | L22: 0 | M22: 0 | O22: 0 | P22: 0 | Q22: 0 | R22: Y | S22: 0 | T22: 0 | U22: 0

Sheet Table4D Landing locations
A1: Table 4D: Landing locations
J2: WP years | K2: 2017-2019
J3: AR year | K3: 2017
A4: MS | B4: Region | C4: Sub-area / Fishing ground | D4: Reference years | E4: Landing locations(s) | F4: Average number of locations | G4: Average number of registered landings | H4: Average landed tonnage | I4: Average landed tonnage of national fleet | J4: Average landed tonnage of foreign fleet | K4: Comments
A5: POL | B5: Baltic Sea (ICES areas III b-d) | C5: 27.3.d | D5: 2013-2015 | E5: Major ports | F5: 9 | G5: 25371.66667 | H5: =I5+J5 -> 99943.10433 | I5: 96262.39109 | J5: 3680.713247
A6: POL | B6: Baltic Sea (ICES areas III b-d) | C6: 27.3.d | D6: 2013-2015 | E6: Other ports SD 24 | F6: 6 | G6: 2886.666667 | H6: 913.1732667 | I6: 913.1732667 | J6: 0
A7: POL | B7: Baltic Sea (ICES areas III b-d) | C7: 27.3.d | D7: 2013-2015 | E7: Other ports SD 25 | F7: 11 | G7: 5208.666667 | H7: 1962.779953 | I7: 1962.779953 | J7: 0
A8: POL | B8: Baltic Sea (ICES areas III b-d) | C8: 27.3.d | D8: 2013-2015 | E8: Other ports SD 26 | F8: 27 | G8: 13542.66667 | H8: 1624.11611 | I8: 1624.11611 | J8: 0
A9: POL | B9: Baltic Sea (ICES areas III b-d) | C9: 27.3.d | D9: 2013-2015 | E9: Szczecin Lagoon ports | F9: 6 | G9: 6112.333333 | H9: 1561.285633 | I9: 1561.285633 | J9: 0
A10: POL | B10: Baltic Sea (ICES areas III b-d) | C10: 27.3.d | D10: 2013-2015 | E10: Vistula Lagoon ports | F10: 8 | G10: 6508.333333 | H10: 2746.3169 | I10: 2746.3169 | J10: 0

Sheet Table5A Quality assurance frame
A1: Table 5A: Quality assurance framework for biological data
S2: WP years | T2: 2017-2019
S3: AR year | T3: 2017
H4: Sampling design | J4: Sampling implementation | K4: Data capture | M4: Data Storage | O4: Data processing
A5: MS | B5: MS participating in sampling | C5: Sampling year/ period | D5: Region | E5: RFMO/RFO/IO | F5: Name of sampling scheme | G5: Sampling frame | H5: Is the sampling design documented? | I5: Where can documentation on sampling design be found? | J5: Are non-responses and refusals recorded? | K5: Are quality checks to validate detailed data documented? | L5: Where can documentation on quality checks for data capture be found? | M5: In which national database are data stored? | N5: In which international database(s) are data stored? | O5: Are processes to evaluate data accuracy (bias and precision) documented? | P5: Where can documentation on processes to evaluate accuracy be found? | Q5: Are the editing and imputation methods documented? | R5: Where can documentation on editing and imputation be found? | S5: Comments | T5: AR Comments
A6: POL | B6: POL | C6: 2017 | D6: Baltic | E6: ICES | F6: all schemes | G6: all frames | H6: Y | I6: Polish Work Plan for data collection in the fisheries and aquaculture sectors 2017 - 2019 | J6: Y | K6: Y | L6: Coded in the national DCF database and application; Included in the Data Quality Check software - accessible only via intranet; R and SQL scripts stored in the Insitute's repository | M6: NPZDRpl | N6: RDB-FishFrame, Intercatch, JRC | O6: Y | P6: Included in the Data Accuracy Check application - accessible only via intranet | Q6: N | R6: NA | S6: Software for data quality and accuracy checks is still under development | T6: Imputation is not performed at national level but at Stock Data Coordination level. Data are provided to end user "as-is" (as collected,validated and recorded in national database).
A7: POL | B7: POL | C7: 2017 | D7: Baltic | E7: ICES | F7: At sea cod recreational fishery | G7: Angling with LHP on boats | H7: Y | I7: ICES WGRFS Report 2014; Poland_Annual_Report_2015_Text__31-May_2016 (http://dcf.mir.gdynia.pl/?page_id=363) | J7: Y | K7: Y | L7: Coded in the national DCF database and application; Included in the Data Quality Check software - accessible only via intranet | M7: NPZDRpl | N7: NA | O7: N | P7: NA | Q7: N | R7: NA | S7: Software for data quality and accuracy checks is still under development | T7: Imputation is not performed at national level. Data delivered to the ICS WGRFS. See Text Box 1D for comments
A8: POL | B8: POL | C8: 2017 | D8: North Sea and Eastern Arctic | E8: ICES | F8: at sea | G8: 1 trawler targeting cod | H8: Y | I8: http://dcf.mir.gdynia.pl/wp-content/uploads/2015/07/Poland_NP-Proposal_2011-2013_Text_Amended-for-2012.pdf | J8: N | K8: Y | L8: Coded in the national DCF database and application; Included in the Data Quality Check software - accessible only via intranet; R and SQL scripts stored in the Insitute's repository | M8: NPZDRpl | N8: RDB-FishFrame, Intercatch, JRC | O8: Y | P8: Included in the Data Accuracy Check application - accessible only via intranet | Q8: N | R8: NA | S8: Software for data quality and accuracy checks is still under development | T8: Non-responses and refusal are not applicable (one vessel involved). Imputation is not performed at national level but at Stock Data Coordination level. Data are provided to end user "as-is" (as collected,validated and recorded in national database).
A9: POL | B9: POL | C9: 2017 | D9: other regions | E9: CECAF | F9: at sea | G9: Pelagic trawlers fishing in CECAF | H9: Y | I9: http://dcf.mir.gdynia.pl/wp-content/uploads/2016/10/Sampling-Protocol_Pelagic_DCF_in_Cecaf_version-31-5-2011.pdf | J9: NA | K9: NA | L9: Coded in the national DCF database and application; Included in the Data Quality Check software - accessible only via intranet; R and SQL scripts stored in the Insitute's repository | M9: NA | N9: NA | O9: NA | P9: NA | Q9: NA | R9: NA | T9: Data collection and provision coordinated by NLD under joint sampling programme (see Table 7C)
A10: POL | B10: POL | C10: 2017 | D10: other regions | E10: SPRFMO | F10: at sea | G10: Pelagic trawlers fishing in SPRFMO | H10: Y | I10: http://dcf.mir.gdynia.pl/wp-content/uploads/2016/10/CMR-2015-01-Observer-manual-Pacific-v6.pdf | J10: N | K10: Y | L10: Coded in the national DCF database and application; Included in the Data Quality Check software - accessible only via intranet; R and SQL scripts stored in the Insitute's repository | M10: Temporary database in Excel | N10: Internal SPRFMO database | O10: Y | P10: Included in the Data Accuracy Check application - accessible only via intranet | Q10: N | R10: NA | S10: Software for data quality and accuracy checks is still under development | T10: Non-responses and refusal are not applicable for the SPRMFO area. Imputation is not performed at national level. Data delivered to the SPRFMO Secretariat and Scientific Committee. National database during modification to enable storage of data from SPRFMO.

Sheet Table5B Quality assurance frame
A1: Table 5B: Quality assurance framework for socio-economic data
AF2: WP years | AG2: 2017-2019
AF3: AR year | AG3: 2017
H4: Institutional environment | M4: Statistical processes | W4: Statistical Outputs
H5: P3 Impartiality and objectiveness | J5: P4 Confidentiality | M5: P5 Sound methodology | P5: P6 Appropriate statistical procedures | U5: P7 Non-excessive burden on respondents | V5: P8 Cost effectiveness | W5: P9 Relevance | X5: P10 Accuracy and reliability | Z5: P11 Timeliness and punctuality | AA5: P12 coherence and comparability | AC5: P13 Accessibility and Clarity | AF5: Comments | AG5: AR Comments
A6: MS | B6: Sector Name | C6: Sampling year/ period | D6: Region | E6: RFMO/RFO/IO/NSB | F6: Type of data collection scheme | G6: Data Sources | H6: Statistically sound sources and methods | I6: Error checking | J6: Are procedures for confidential data handling in place and documented? | K6: Are protocols to enforce confidentiality between DCF partners in place and documented? | L6: Are protocols to enforce confidentiality with external users in place and documented? | M6: Is sound methodology documented ? | N6: Does it follow international standards, guidelines and best practices? | O6: Are methodologies consistent at MS, regional and EU level? | P6: Is there consistency between administrative and other statistical data? | Q6: Are there agreements for access and quality of administrative data between partners? | R6: Are data collection, entry and coding checked? | S6: Are editing and imputation methods used and checked? | T6: Are revisions documented and available? | U6: Is duplication of data collection avoided? | V6: Do automatic techniques for data capture, data coding and validation exist? | W6: Are end-users listed and updated? | X6: Are sources, intermediate results and outputs regularly assessed and validated? | Y6: Are errors measured and documented? | Z6: Are procedures in place to ensure timely execution? | AA6: Are procedures in place to monitor internal coherence? | AB6: Are statistics comparable over time? | AC6: Are methodological documents publicly available? | AD6: Are data stored in databases? | AE6: Where can documentation be found?
A7: POL | B7: Fishing | C7: 2017-2019 | D7: All regions | E7: Institutions dealing with socioeconomic statistics | F7: Census, estimation | G7: questionairres, logbooks, first sale documents, Fleet register | H7: Y | I7: Y | J7: Y | K7: Y | L7: Y | M7: Y | N7: Y | O7: Y | P7: Y | Q7: Y | R7: Y | S7: Y | T7: Y | U7: Y | V7: Y | W7: Y | X7: Y | Y7: Y | Z7: Y | AA7: Y | AB7: Y | AC7: Y | AD7: Y | AE7: National law on public statistics and statistical surveys (http://isap.sejm.gov.pl/isap.nsf/download.xsp/WDU20160001426/O/D20161426.pdf); National regulation on the formats of reporting and statistical questionairres and rules of reporting data (http://prawo.sejm.gov.pl/isap.nsf/DocDetails.xsp?id=WDU20170000837); National formats and rules on reporting catch, landings, effort (http://www.cmr.gov.pl/index.html#header3-4)
A8: POL | B8: Processing | C8: 2017-2019 | D8: All regions | E8: Institutions dealing with socioeconomic statistics | F8: Census, estimation | G8: questionairres | H8: Y | I8: Y | J8: Y | K8: NA | L8: Y | M8: Y | N8: Y | O8: Y | P8: Y | Q8: NA | R8: Y | S8: Y | T8: Y | U8: Y | V8: Y | W8: Y | X8: Y | Y8: Y | Z8: Y | AA8: Y | AB8: Y | AC8: Y | AD8: Y

Sheet Table6A_Data_availability
A1: Table 6A: Data availability
I2: WP years | J2: 2017-2019
I3: AR year | J3: 2017
A4: MS | B4: Data set | C4: Section | D4: Variable group | E4: Year(s) of WP implementation | F4: Reference year | G4: Final data available after | H4: Comments | I4: Date when data was available | J4: AR Comments
A5: POL | B5: Fleet economic | C5: 3A | D5: Revenue/costs | E5: 2017-2019 | F5: N-1 | G5: N+1, November 30 | I5: February 15, 2018
A6: POL | B6: Aquaculture economic | H6: Based on the data until 2015, according to classification of aquaculture activities by Eurostat statistics, Poland has no marine aquaculture sector. Hence, no sampling is planned | I6: NA
A7: POL | B7: Fishing Activity Variable | C7: 3A | D7: capacity | E7: 2017-2019 | F7: N | G7: N+1, January 31 | I7: February 15, 2018
A8: POL | B8: Fishing Activity Variable | C8: 3A | D8: landings | E8: 2017-2019 | F8: N | G8: N+1, March 31 | I8: February 15, 2018
A9: POL | B9: Fish processing economic | C9: 3C | D9: all | E9: 2017-2019 | F9: N-1 | G9: N+1, November 30 | I9: February 15, 2018

Sheet Table7A_Planned Regional_coord
A1: Table 7A: Planned regional and international coordination
G2: WP years | H2: 2017-2019
G3: AR year | H3: 2017
A4: MS | B4: Acronym | C4: Name of meeting | D4: RFMO/RFO/IO | E4: Planned MS participation | F4: Comments | G4: Number of participants | H4: AR Comments
A5: POL | B5: RCM Baltic | C5: Regional Coordination Meeting for the Baltic Sea | E5: X | G5: 4
A6: POL | B6: RCM NS&EA | C6: Regional Coordination Meeting for the North Sea and Eastern Arctic | E6: X | G6: 1
A7: POL | B7: RCM LDF | C7: Regional Coordination Meeting for the Long Distance Fisheries | E7: X | G7: 1 | H7: two meetings in 2017
A8: POL | B8: EGFDC | C8: Expert Group on Fisheries Data Collection | E8: X | G8: 1
A9: POL | B9: PGECON | C9: Planning Group on Economic Issues | E9: X | G9: 1
A10: POL | B10: PGDATA | C10: Planning Group on Data Needs for Assessment and Advice | D10: ICES | E10: X | G10: 0 | H10: Not attended due to the experienced staff shortage at the time of the meeting.
A11: POL | B11: WGBIOP | C11: Working Group on Biological Parameters | D11: ICES | E11: X | G11: 1
A12: POL | B12: WGEEL | C12: Working Group on Eel | D12: ICES | E12: X | G12: 2
A13: POL | B13: WGBAST | C13: Working Group on Baltic Salmon and Trout | D13: ICES | E13: X | G13: 4
A14: POL | B14: WGRFS | C14: Working Group on Recreational Fisheries Surveys | D14: ICES | E14: X | G14: 2
A15: POL | B15: WGCATCH | C15: Working Group on Commercial Catches | D15: ICES | E15: X | G15: 2
A16: POL | B16: WGBIFS | C16: Working Group on Baltic International Fish Survey | D16: ICES | E16: X | G16: 3
A17: POL | B17: WGBFAS | C17: Baltic Fisheries Assessment Working Group | D17: ICES | E17: X | G17: 4
A18: POL | B18: WGCHAIRS | C18: Annual Meeting of Advisory Working Groups Chairs | D18: ICES | E18: X | G18: 1
A19: POL | B19: WGBYC | C19: Working Group on Bycatch of Protected Species | D19: ICES | E19: X | G19: 1
A20: POL | B20: WGBIOP | C20: Working Group on Biological Parameters | D20: ICES | E20: X | G20: 1
A21: POL | B21: WGSFD | C21: Working Group on Spatial Fisheries Data | D21: ICES | E21: X | G21: 0 | H21: Not planned in 2017 due to shortage of the experienced staff at the time of the meeting, but required data delivered to the WG.
A22: POL | B22: DIG | C22: Data and Information Group | D22: ICES | E22: X | G22: 0 | H22: Not planned in 2017 due to shortage of the experienced staff at the time of the meeting - participating through e-mail contacts.
A23: POL | B23: WKRDB | C23: Workshop on Regional Data Base | D23: ICES | E23: X | G23: 1 | H23: No Workshop in 2017. Participation in RDB Steering Committee meeting instead.
A24: POL | B24: WKBaltSalmon | C24: Baltic salmon Benchmark WKBaltSalmon | D24: ICES | E24: X | G24: 2
A25: POL | B25: WKEELDATA | C25: Working Group on Eel Data | D25: ICES | G25: 1 | H25: Not listed in WP
A26: POL | B26: WGZE | C26: ICES Working Group on Zooplankton Ecology | D26: ICES | G26: 1 | H26: Not listed in WP
A27: POL | B27: WGOH | C27: ICES Working Group on Oceanic Hydrography | D27: ICES | G27: 1 | H27: Not listed in WP
A28: POL | B28: WGTRUTTA | C28: ICES Working Group with the Aim to Develop Assessment Models and Establish Biological Reference Points for Sea Trout (Anadromous Salmo trutta) Populations | D28: ICES | G28: 2 | H28: Not listed in WP
A29: POL | B29: PGECON Worshop | C29: Workshop - Pilot on reporting economic data using activity thresholds | G29: 2 | H29: Not listed in WP
A30: POL | B30: WKPELA | C30: Benchmark Workshop on Pelagic Stocks | D30: ICES | G30: 1 | H30: Not listed in WP
A31: POL | B31: WKBEBCA | C31: Workshop on Biological Input to Eastern Baltic Cod Assessment | D31: ICES | G31: 1 | H31: Not listed in WP
A32: POL | C32: Training Workshop on sampling intensity - use of tool developed by MARE/2014/19 project (follow up of recommendation of the RCM Med&BS) | G32: 2 | H32: Not listed in WP
A33: POL | C33: ICES training on VMS and logbook data | D33: ICES | G33: 1 | H33: Not listed in WP
A34: POL | C34: ICES training - Introduction to the R environment | D34: ICES | G34: 2 | H34: Not listed in WP

Sheet Table7B_Follow up of Recommenda
A1: Table 7B: Follow-up of recommendations and agreements
J2: WP years | K2: 2017-2019
J3: AR year | K3: 2017
A4: MS | B4: Region | C4: RFMO/RFO/IO | D4: Source | E4: Section | F4: Topic | G4: Recommendation number | H4: Recommendation/ Agreement | I4: Follow-up action | J4: Comments | K4: MS action taken
A5: POL | B5: Baltic Sea | C5: ICES | D5: LM 2012 | E5: VII.C | F5: Metier related variables | G5: RCM Baltic 2012 | H5: MS should upload all landing data into the Regional Data Base allow-ing the RCM to analyse the possible needs for bilateral agreements. The RCMs should each year perform an analysis on landings in for-eign countries and conclude where bilateral agreements need to be made. MS should set up agreements, fixing the details of sampling, compilation and submission of data in each case when it is indicated by the RCM that a bilateral agreement is needed. To include the agreed analysis in FishFrame would be very convenient and time saving. MS should set up agreements, fixing the details of sampling, compi-lation and submission of data in each case it is concluded by the RCM that a bilateral agreement is needed. | I5: Poland follows the recommendation. Bilateral agreements were set in 2011 with Sweden and in 2013 with Denmark. | K5: Fulfilled. No action needed
A6: POL | B6: Baltic Sea | C6: ICES | D6: LM 2012 | E6: IV | F6: Metier related variables | G6: RCM Baltic 2012 | H6: To ensure possibilities for adequate sampling of biological and métier related data including landings in foreign MS, national institutes need to have online access to national logbook data and national VMS data. | I6: Fulfilled | K6: No action needed
A7: POL | B7: Other regions | C7: CECAF | D7: RCM LDF 2011 | E7: VII.C | F7: Sampling programme | G7: RCM LDF 2011 | H7: To implement a joint observer program in the fishery of small pelagic in the CECAF area during the years 2012 and 2013. | I7: Fulfilled | K7: Obsolete - No action needed
A8: POL | B8: Other regions | C8: SPRFMO | D8: RCM LDF 2013 | E8: VII.C | F8: Sampling programme | G8: RCM LDF 2013 | H8: To renew a joint observer program in the pelagic trawl fishery for small pelagic species in the CECAF area for another two years period. | I8: Fulfilled – Amendment extending the joint sampling program for 2014-2015 was signed | K8: New Amendments were signed in 2015 and 2016 extending the joint sampling program in CECAF area for years 2016 and 2017 respectively. (http://dcf.mir.gdynia.pl/?page_id=365)
A9: POL | B9: Other regions | C9: SPRFMO | D9: RCM LDF 2013 | E9: VII.C | F9: Sampling programme | G9: RCM LDF 2013 | H9: To implementation of the multilateral agreement on a joint sampling program of fisheries activity in the SPRMFO area | I9: Fulfilled – Agreement signed in 2015 | K9: A new Agreement was sign to implement the joint sampling program in SPRFMO area for 2017 and 2018. (http://dcf.mir.gdynia.pl/?page_id=365)
A10: POL | B10: All regions (all RCMs) | D10: LM 2013 | E10: V | F10: Quality assurance | G10: LM 12 | H10: MS to document Quality Control and Quality Approach procedures in summary for review at the next RCM. | I10: Fulfilled | K10: Obsolete - No action needed
A11: POL | B11: All regions | D11: LM 2014 | E11: V | F11: Implications of the landing obligation ‑ Scientific data collection and at‑sea sampling | G11: LM 2 | H11: RCM NS&EA recommends that MS maintain scientific schemes for the collection of scientific data for stock assessment and advice. Additionally that the role of scientific observer is not conflated with any monitoring role. Appropriate modifications to at‑sea sampling protocols and recording should be devised for sampling the retained discard fraction. | I11: Partly fulfilled | J11: At‑sea sampling schemes and protocols in place. Recording, storage and estimation process in national database to be solved once RDB is modified | K11: Fulfilled. No action needed
A12: POL | B12: All regions | D12: LM 2014 | E12: V | F12: Implications of the landing obligation ‑ Scientific data storage, IT systems and estimation | G12: LM 3 | H12: RCM NS&EA recommends that scientific institutions and ICES ensure that data recording systems, IT systems and estimation routines are able to appropriately deal with the retained discard fraction. Also, authorities should adjust logbooks and IT systems to Accommodate the accurate recordings of all catch components, including the part that can be released under the de minimis exemptions | I12: Ongoing | J12: Modification of the RDB (ICES) were initated in 2015. The national DB can be modified accordingly once RDB is set-up | K12: Fulfilled. No action needed
A13: POL | B13: All regions | D13: LM 2014 | E13: V | F13: Quality assurance | G13: LM 10 | H13: MS reload all their data in reference to the restricted lists. | I13: Fulfilled | J13: Data for 2011-2014 reloaded in 2015. Data for 2009-2010 reloaded in 2016. | K13: Obsolete - No action needed
A14: POL | B14: Baltic | C14: ICES | D14: LM 2014 | E14: V | F14: Quality assurance | G14: LM A1 | H14: All MS to ensure that all historical data (including data in salmon and eel) for the period 2009‑2013 are uploaded to RDB FishFrame | I14: Agreement fulfilled | K14: Obsolete - No action needed
A15: POL | B15: North Sea and Eastern Arctic | C15: ICES | D15: LM 2014 | E15: V | F15: Quality control | G15: LM A2 | H15: All MS attending the RCM NS&EA will document their data checks and quality control procedures in reference to the data capture and data processing stages of their national sampling programmes | I15: Agreement fulfilled | K15: Obsolete - No action needed
A16: POL | B16: North Sea and Eastern Arctic | C16: ICES | D16: LM 2015 | E16: V | F16: Quality assurance | G16: LM 11 | H16: All MS to upload their data in time for the RCM. | I16: Fulfilled | K16: Fulfilled and Ongoing
A17: POL | B17: Other regions | C17: CECAF, SPRFMO | D17: LM 2016 | E17: VII.C | F17: Sampling programme | G17: RCM LDF 2016 - 4 | H17: The current multi-annual and multi-lateral agreements for biological sampling in CECAF (partners: GER, LAT, LIT, NED, POL) and SPFRMO area (partners: GER, LIT, NED, POL) terminate as of 31st December 2016. Given that the current arrangements with a subcontractor can’t continue, a new set-up for the multi-lateral agreements is required. Poland and The Netherlands agreed to investigate possibilities to arrange a joint sampling plan. RCM LDF recommends Poland and The Netherlands to liaise and draft an agreement for the respective areas and to propose this draft to the other MS involved | I17: Ongoing | J17: Extention of sampling agreements for both regions (CECAF and SPRFMO) expecte by the end of 2016 or early 2017. | K17: Fulfilled (ses information in rows 8 and 9 above)

Sheet Table7C_Bi- and multilateral
A1: Table7C: Bi- and multilateral agreements
I3: WP years | J3: 2017-2019
I4: AR year | J4: 2017
A5: MSs | B5: Contact persons | C5: Content | D5: Coordination | E5: Description of sampling / sampling protocol / sampling intensity | F5: Data transmission | G5: Access to vessels | H5: Validity | I5: Comments | J5: AR Comments
A6: POL - DEU | B6: POL - Tomasz Nermer (nermer@mir.gdynia.pl); | C6: Biological sampling of yellow and silver eels from commercial fisheries in the Oder River Basin District will be covered by POL. | D6: NA | E6: Target sample size: 100 yellow and 100 silver eel from commercial fisheries in the Oder River Basin District (sample size might be adjusted to a lower level depending on the availability of eel from POL commercial fisheries). | F6: POL is responsible for submitting data to relevant ICES Expert Groups and to the EC. POL will provide data to DEU when requested. | G6: NA | H6: from 2013 onwards | I6: http://dcf.mir.gdynia.pl/?page_id=365 | J6: Obsolete
B7: DEU - Jan-Dag Pohlmann (jan.pohlmann@thuenen.de)
A8: POL - DNK | B8: POL - Irek Wojcik (iwojcik@mir.gdynia.pl) | C8: Vessels fishing under the Polish register, which land for first sale into Denmark, will be sampled as part of the Polish National Programme under the requirements of the EC Data Collection Framework (199/2008). | D8: NA | E8: Length and age of discards and landings | F8: DNK responsible for submitting data from DNK vessels, and POL from POL vessels, to the respective end-users. | G8: NA | H8: from 2013 onwards | I8: http://dcf.mir.gdynia.pl/?page_id=365 | J8: Ongoing
B9: DNK - Marie Storr-Paulsen (msp@aqua.dtu.dk)
A10: POL - SWE | B10: SWE - Anna Haslow (anna.haslow@havochvatten.se) | C10: Vessels fishing under the Polish register, which land for first sale into Sweden, will be sampled as part of the Polish Annual Workplan 2017. | D10: NA | E10: Length and age of discards and landings, in accordance with Polish Annual Workplan. | F10: SWE responsible for submitting data from SWE vessels, and POL from POL vessels, to the respective end-users. | G10: NA | H10: until 31 Dec 2017 | I10: (http://dcf.mir.gdynia.pl/?page_id=365) | J10: Terminated on 31 Dec 2017
B11: POL - Irek Wojcik (iwojcik@mir.gdynia.pl)
A12: DEU - LTU - LVA - NLD - POL | B12: LTU - Vilda Griuniene (Vilda.Griuniene@zum.lt) | C12: DEU, LVA, LTU, NLD, POL to cooperate in the biological data collection on pelagic fisheries in CECAF waters in 2014-2015 and 2016-2017 (new extension). | D12: NL to coordinate the execution of this multi-lateral agreement. NL will contract independent contractor 'Corten Marine Research' (CMR) as agent between NL and IMROP, the Mauritanian Fisheries Research Institute. CMR will hire Mauritanian observers from IMROP to carry out the actual sampling. CMR and IMROP will have an agreement in which the mutual obligations will be formalized; among others that only the additional costs for this specific task will be priced. | E12: Biological sampling carried on board fishing vessels in CECAF area by Mauritanian observers. Observers introduced by CMR and follow the sampling protocol as described in "Biological Data Collection of pelagic fisheries in CECAF waters in compliance with the DCF", version 31-05-2011. | F12: CMR is responsible for data collection, quality control and delivery to the CECAF pelagic working group of all data collected under this agreement. CMR also reports all data to CVO and CVO will distribute the data to the partners. | G12: Each Partner ensures access to its fleet for Mauritanian observers under this agreement. Denied access to vessels does not exempt a Partner from legal or financial obligations. | H12: This agreement commenced on January 1, 2012. It is subject to dissolve in case the pelagic fishery in the CECAF area by EU vessels closes. The agreement was extended to a new end date: 31 December 2016. It is planned to sign by the end of 2016 a new Amendment, extending the Agreement for 2017. | I12: (http://dcf.mir.gdynia.pl/?page_id=365) | J12: Extended until end of 2017 and terminated on 31 Dec 2017
B13: DEU - Christoph Stransky (christoph.stransky@thuenen.de)
B14: LVA - Georgs Kornilovs (georgs.kornilovs@bior.gov.lv)
B15: NLD - Sieto Verver (sieto.verver@wur.nl)
B16: POL - Irek Wojcik (iwojcik@mir.gdynia.pl)
A17: DEU - LTU - NLD - POL | B17: LTU - Vilda Griuniene (Vilda.Griuniene@zum.lt) | C17: DEU, LTU, NLD and POL to cooperate in the biological data collection on pelagic fisheries in SPRMFO waters. | D17: POL is planned to be responsible for placement observers onboard, in coordination with NLD in respect of the expected vessels' movements. | E17: Biological sampling will be carried out on board EU fishing vessels in SPRFMO area by observers arranged by POL in coordination with NLD in respect of the expected vessels' movements. These observers will follow the sampling protocol as described in “Observer Manual for biological data collection in SPRFMO waters”, based on data collection requirements set out in “SPRFMO. CMM 4.02. Conservation and Management Measure on Standards for the Collection, Reporting, Verification and Exchange of Data (SPRFMO Data Standards)”. | F17: POL is planned to be responsible for data collection, quality control and delivery to the SPRFMO scientific working group of all data collected under this agreement. POL will distribute the data to Partners upon request. | G17: Each Partner ensures access to its fleet for observers under this agreement. Denied access to vessels does not exempt a Partner from legal or financial obligations. | H17: 2017 - 2018 | I17: Agreement planned to be finalized and sign by the end of 2016 or early 2017. | J17: Agreement signed and Ongoing (http://dcf.mir.gdynia.pl/?page_id=365)
B18: DEU - Christoph Stransky (christoph.stransky@thuenen.de)
B19: NLD - Sieto Verver (sieto.verver@wur.nl)
B20: POL - Irek Wojcik (iwojcik@mir.gdynia.pl)

Sheet Sheet1
